Date Spend Occurred,Department Incurring Spend,Beneficiary Name,Summary of Purpose of Spend,Gross Amount,Merchant Category
02/10/2023,LD-Autism Central Team Care,A & T Caring Servives,Home Care Services,"1,960.00",Other Care
02/10/2023,Send Personal Budgets (SW),Redacted Personal Data ,External Placement Fees,"2,375.00",Individual - NEC
02/10/2023,WAVERLEY LOCAL CARE OP,Agincare Live In Care South East Ltd,Home Care Services,"2,762.06",Dom Care - Adults
02/10/2023,WAVERLEY LOCAL CARE OP,Agincare Live In Care South East Ltd,Home Care Services,"2,433.62",Dom Care - Adults
02/10/2023,EPSOM & EWELL LOCAL CARE OP,Aims Homecare Ltd,Home Care Services,"5,159.84",Dom Care - Adults
02/10/2023,MOLE VALLEY LOCAL CARE OP,Aims Homecare Ltd,Home Care Services,"5,159.84",Dom Care - Adults
02/10/2023,GUILDFORD LOCAL CARE OP,Ajustar24 Care Ltd,Home Care Services,"11,863.36",Dom Care - Adults
02/10/2023,WAVERLEY LOCAL CARE OP,Ajustar24 Care Ltd,Home Care Services,"11,863.36",Dom Care - Adults
02/10/2023,Send Personal Budgets (SW),Redacted Personal Data ,External Placement Fees,"4,126.81",Individual - NEC
02/10/2023,GUILDFORD LOCAL CARE OP,Albury Care Ltd,Home Care Services,"2,300.00",Dom Care - Adults
02/10/2023,GUILDFORD CMHRS CARE,Alexanders Supported Living Ltd,Supported Living - working age,"1,478.08",Dom Care - Children
02/10/2023,EPSOM & EWELL LOCAL CARE PD,Alpenbest Ltd,Home Care Services,"7,423.80",Not Applicable
02/10/2023,EPSOM & EWELL LOCAL CARE OP,AM2PM Quality Care Ltd,Home Care Services,"2,642.50",Residential - OP
02/10/2023,ELMBRIDGE LOCAL CARE OP,Amily Homecare,Home Care Services,"3,964.52",Dom Care - Adults
02/10/2023,WOKING LOCAL CARE PD,AnsaCare Ltd,Home Care Services,"4,470.48",Other Care
02/10/2023,LD-Autism Central Team Care,AnsaCare Ltd,Home Care Services,"4,470.48",Other Care
02/10/2023,GUILDFORD LOCAL CARE PD,Around The Clock Care Agency Ltd,Home Care Services,"6,482.28",Residential - OP
02/10/2023,,Ashley COE (A) Primary School,Inter Legal Entity Balance,"1,600.00",Schools
02/10/2023,ROBERT PHILLIPS TRUST REVENUE,Ashley COE (A) Primary School,Movement in Reserves,"1,600.00",Schools
02/10/2023,EIF 3 & 4 YR OLD,Bletchingley Village Primary School,Contributions to third parties,770.00,Schools
02/10/2023,LD-Autism Central Team Care,Boyce Care Ltd,Supported Living - working age,"5,483.40",Supp Living - MH
02/10/2023,LD-Autism Central Team Care,Boyce Care Ltd,Supported Living - working age,"7,606.41",Supp Living - MH
02/10/2023,LAND & PROPERTY CAPITAL,Breyer Group Plc,"Construction, Conversion & Renovation","29,471.64",General Build Maint
02/10/2023,SURREY HEATH LOCAL CARE OP,BS24 Ltd,Home Care Services,"6,178.62",Other Care
02/10/2023,CAPITAL FINANCING,Burhill Primary School,Schools Interest paid/charged,"12,634.36",Schools
02/10/2023,CAPITAL FINANCING,Burstow Primary School,Schools Interest paid/charged,"3,332.56",Schools
02/10/2023,CAPITAL FINANCING,Bushy Hill Junior School,Schools Interest paid/charged,"2,691.12",Schools
02/10/2023,REIGATE & BANSTEAD LOCAL CARE OP,Care More Ltd,Home Care Services,"2,658.88",Residential - OP
02/10/2023,SURREY HEATH LOCAL CARE OP,Care4u Healthcare Ltd,Home Care Services,"6,664.28",Dom Care - Adults
02/10/2023,REIGATE & BANSTEAD LOCAL CARE OP,Care4u Healthcare Ltd,Home Care Services,"6,664.28",Dom Care - Adults
02/10/2023,REIGATE & BANSTEAD LOCAL CARE PD,Care4u Healthcare Ltd,Home Care Services,769.58,Dom Care - Adults
02/10/2023,LD-Autism Central Team Care,Care4u Healthcare Ltd,Home Care Services,531.16,Dom Care - Adults
02/10/2023,REIGATE & BANSTEAD LOCAL CARE OP,Care4u Healthcare Ltd,Home Care Services,656.46,Dom Care - Adults
02/10/2023,REIGATE & BANSTEAD LOCAL CARE OP,Care4u Healthcare Ltd,Home Care Services,"1,494.85",Dom Care - Adults
02/10/2023,REIGATE & BANSTEAD LOCAL CARE OP,Care4u Healthcare Ltd,Home Care Services,703.90,Dom Care - Adults
02/10/2023,EPSOM & EWELL LOCAL CARE OP,Care4u Healthcare Ltd,Home Care Services,656.46,Dom Care - Adults
02/10/2023,SURREY HEATH LOCAL CARE OP,Care4u Healthcare Ltd,Home Care Services,"1,061.31",Dom Care - Adults
02/10/2023,SURREY HEATH LOCAL CARE PD,Care4u Healthcare Ltd,Home Care Services,855.54,Dom Care - Adults
02/10/2023,SURREY HEATH LOCAL CARE PD,Care4u Healthcare Ltd,Home Care Services,"1,312.92",Dom Care - Adults
02/10/2023,TANDRIDGE LOCAL CARE OP,Care4u Healthcare Ltd,Home Care Services,"1,635.62",Dom Care - Adults
02/10/2023,SURREY HEATH LOCAL CARE OP,Care4u Healthcare Ltd,Home Care Services,504.00,Dom Care - Adults
02/10/2023,SURREY HEATH LOCAL CARE OP,Care4u Healthcare Ltd,Home Care Services,"1,008.00",Dom Care - Adults
02/10/2023,SURREY HEATH LOCAL CARE OP,Care4u Healthcare Ltd,Home Care Services,"1,406.16",Dom Care - Adults
02/10/2023,REIGATE & BANSTEAD LOCAL CARE OP,Care4u Healthcare Ltd,Home Care Services,504.00,Dom Care - Adults
02/10/2023,EPSOM & EWELL LOCAL CARE OP,Care4u Healthcare Ltd,Home Care Services,"1,219.68",Dom Care - Adults
02/10/2023,EPSOM & EWELL LOCAL CARE OP,Care4u Healthcare Ltd,Home Care Services,570.50,Dom Care - Adults
02/10/2023,SURREY HEATH LOCAL CARE PD,Care4u Healthcare Ltd,Home Care Services,570.50,Dom Care - Adults
02/10/2023,REIGATE & BANSTEAD LOCAL CARE OP,Care4u Healthcare Ltd,Home Care Services,"1,008.00",Dom Care - Adults
02/10/2023,REIGATE & BANSTEAD LOCAL CARE OP,Care4u Healthcare Ltd,Home Care Services,914.76,Dom Care - Adults
02/10/2023,REIGATE & BANSTEAD LOCAL CARE PD,Care4u Healthcare Ltd,Home Care Services,"1,388.80",Dom Care - Adults
02/10/2023,SURREY HEATH LOCAL CARE OP,Care4u Healthcare Ltd,Home Care Services,694.40,Dom Care - Adults
02/10/2023,TANDRIDGE LOCAL CARE OP,Care4u Healthcare Ltd,Home Care Services,504.00,Dom Care - Adults
02/10/2023,LD-Autism Central Team Care,Care4u Healthcare Ltd,Home Care Services,682.92,Dom Care - Adults
02/10/2023,SURREY HEATH LOCAL CARE OP,Care4u Healthcare Ltd,Home Care Services,"1,008.00",Dom Care - Adults
02/10/2023,REIGATE & BANSTEAD LOCAL CARE OP,Care4u Healthcare Ltd,Home Care Services,871.20,Dom Care - Adults
02/10/2023,REIGATE & BANSTEAD LOCAL CARE OP,Care4u Healthcare Ltd,Home Care Services,"1,312.92",Dom Care - Adults
02/10/2023,SURREY HEATH LOCAL CARE OP,Care4u Healthcare Ltd,Home Care Services,711.12,Dom Care - Adults
02/10/2023,REIGATE & BANSTEAD LOCAL CARE OP,Care4u Healthcare Ltd,Home Care Services,656.46,Dom Care - Adults
02/10/2023,SURREY HEATH LOCAL CARE OP,Care4u Healthcare Ltd,Home Care Services,"1,008.00",Dom Care - Adults
02/10/2023,REIGATE & BANSTEAD LOCAL CARE OP,Care4u Healthcare Ltd,Home Care Services,"1,312.92",Dom Care - Adults
02/10/2023,REIGATE & BANSTEAD LOCAL CARE OP,Care4u Healthcare Ltd,Home Care Services,"1,320.48",Dom Care - Adults
02/10/2023,GUILDFORD LOCAL CARE PD,Caremark (Guildford & Woking),Home Care Services,"7,682.22",Dom Care - Adults
02/10/2023,SPELTHORNE LOCAL CARE OP,Caremark(Runnymede & Spelthorne),Home Care Services,"2,052.54",Dom Care - Adults
02/10/2023,SURREY HEATH LOCAL CARE PD,Caring Professional Solutions Ltd,Home Care Services,"2,312.52",Dom Care - Adults
02/10/2023,CAPITAL FINANCING,Chertsey Nursery School,Schools Interest paid/charged,"2,897.24",Schools
02/10/2023,CAPITAL FINANCING,Clarendon County Primary School,Schools Interest paid/charged,"1,876.63",Nurseries
02/10/2023,REASONABLE ADJUSTMENTS,Redacted Personal Data ,Translating & Interpreter Services,"1,125.00",Individual - NEC
02/10/2023,,Colours Building Ltd,Inter Legal Entity Balance,"160,237.12",M-D (Property)
02/10/2023,FEASIBILTY FUNDING - SCHOOL PROJECTS,Colours Building Ltd,Fees,"41,181.67",M-D (Property)
02/10/2023,LEGAL EXPENSES - CORPORATE GROUP,Davitt Jones Bould - (Solicitor),VAT Outgoings (Input Tax),510.80,General Support
02/10/2023,LEGAL EXPENSES - CORPORATE GROUP,Davitt Jones Bould - (Solicitor),VAT Outgoings (Input Tax),"1,935.01",General Support
02/10/2023,Send Personal Budgets (SW),Redacted Personal Data ,External Placement Fees,"3,434.97",Individual - NEC
02/10/2023,SPELTHORNE LOCAL CARE PD,Direct Independent Care Ltd,Home Care Services,"2,446.00",Dom Care - Adults
02/10/2023,CAPITAL FINANCING,Dorking Nursery School,Schools Interest paid/charged,"2,752.31",Nurseries
02/10/2023,Send Personal Budgets (SE),Redacted Personal Data ,External Placement Fees,"1,396.49",Individual - NEC
02/10/2023,HOMES FOR UKRAINE,Elmbridge Borough Council,"Grants, Contributions & Donations","415,697.00",Grants - Member Allocation
02/10/2023,RUNNYMEDE LOCAL CARE OP,Enterprise Care Support Ltd,Home Care Services,"1,236.94",Dom Care - Adults
02/10/2023,INSURANCE FUND - MOTOR FLEET,Enterprise Rent A Car,Long Term - Other provisions,"3,163.20",Insurance Services
02/10/2023,CORPORATE INCOME AND EXPENDITURE,Environment Agency,Flood Levy Precept,"297,856.23",Costs
02/10/2023,EPSOM PRIMARY,Epsom Primary School,Cash Equivalents,"512,598.97",Schools
02/10/2023,EPSOM PRIMARY,Epsom Primary School,Cash Equivalents,"53,803.84",Schools
02/10/2023,MOLE VALLEY LOCAL CARE OP,Excellence Healthcare Services Ltd,Home Care Services,"2,072.00",Specialist Assess
02/10/2023,EPSOM & EWELL LOCAL CARE PD,Exodus Health Care Services,Home Care Services,"4,336.08",Dom Care - Adults
02/10/2023,WAVERLEY LOCAL CARE OP,Faiths Walk Healthcare Services Ltd,Home Care Services,"2,658.88",Dom Care - Adults
02/10/2023,ELMBRIDGE LOCAL CARE OP,Flow Healthcare Ltd,Home Care Services,"4,910.24",Dom Care - Adults
02/10/2023,STREETWORKS - SECTION 50,G D Contracting Ltd,Long Term - Deferred Liabilities,865.00,Org & Bus Consult
02/10/2023,GUILDFORD LOCAL CARE OP,Goldtech Care Services Ltd,Home Care Services,"9,650.62",Other Care
02/10/2023,NE AGENCY/SPI POST 16-EDUC,Great Oaks Charitable Trust,External Placement Fees,"4,588.00",Educ Finance Serv
02/10/2023,NE AGENCY/SPI POST 16-EDUC,Great Oaks Charitable Trust,External Placement Fees,"4,947.43",Educ Finance Serv
02/10/2023,GUILDFORD LOCAL CARE OP,Green Arrow Homecare,Home Care Services,"9,343.60",Residential - OP
02/10/2023,CAPITAL FINANCING,Grovelands Primary School,Schools Interest paid/charged,"5,274.82",Venue Hire
02/10/2023,CAPITAL FINANCING,Guildford Children's Centre,Schools Interest paid/charged,"4,105.66",Grants - Member Allocation
02/10/2023,CAPITAL FINANCING,Heather Ridge Infant School,Schools Interest paid/charged,681.16,Grants - Member Allocation
02/10/2023,RUNNYMEDE LOCAL CARE PD,Hfh Healthcare,Home Care Services,"3,591.60",Dom Care - Adults
02/10/2023,GUILDFORD LOCAL CARE PD,Home Instead Senior Care,Home Care Services,"2,085.80",Dom Care - Adults
02/10/2023,PHA HEALTH CHECKS,Horton Pharmacy,Other Agencies/Contractors,683.33,Sexual Health
02/10/2023,BUSINESS SUPPORT & CUSTOMER SERVICE TEAM,Humphreys Tarmacing Services Ltd,Payments to Private Contractors,"2,490.00",Highway - Construct
02/10/2023,"ASHLEY PARK HOUSE, WALTON ON THAMES",Hurst Warne Commercial Property,Rental Property Service Charge,"5,233.32",Estates Mgt Services
02/10/2023,SPELTHORNE LOCAL CARE OP,Immaculate Care Ltd,Home Care Services,"2,648.24",Residential - OP
02/10/2023,WAVERLEY LOCAL CARE OP,Independant People Homecare Services,Home Care Services,"1,479.60",Dom Care - Adults
02/10/2023,ENVIRONMENT & INFRASTRUCTURE CAPITAL,Invvu Construction Consultants Ltd,Payments to Private Contractors,"3,636.00",M&E Maintenance
02/10/2023,GUILDFORD LOCAL CARE OP,IRC Care Services Limited,Home Care Services,"4,552.80",Dom Care - Adults
02/10/2023,Send Personal Budgets (SE),Redacted Personal Data,External Placement Fees,"9,675.55",Individual - NEC
02/10/2023,TRANSPORT POLICY TEAM,Keith Murray Consultants Ltd,Consultancy Services,"4,573.34",Property Management
02/10/2023,ENVIRONMENT & INFRASTRUCTURE CAPITAL,Kenward Groundworks,"Construction, Conversion & Renovation","4,020.00",Not Applicable
02/10/2023,ENVIRONMENT & INFRASTRUCTURE CAPITAL,Kenward Groundworks,"Construction, Conversion & Renovation","10,680.00",Not Applicable
02/10/2023,STREETCARS DIRECT DEBIT,LeasePlan uk Ltd T/A Automotive Leasing,Short Term - Other creditors,"7,758.88",Veh Leasing >1 Year
02/10/2023,AUTOMOTIVE LEASING DIRECT DEBIT,LeasePlan uk Ltd T/A Automotive Leasing,Short Term - Other creditors,"1,494.18",Veh Leasing >1 Year
02/10/2023,AUTOMOTIVE LEASING DIRECT DEBIT,LeasePlan uk Ltd T/A Automotive Leasing,Short Term - Other creditors,"7,203.83",Veh Leasing >1 Year
02/10/2023,STREETCARS DIRECT DEBIT,LeasePlan uk Ltd T/A Automotive Leasing,Short Term - Other creditors,"19,879.40",Veh Leasing >1 Year
02/10/2023,AUTOMOTIVE LEASING DIRECT DEBIT,LeasePlan uk Ltd T/A Automotive Leasing,Short Term - Other creditors,865.48,Veh Leasing >1 Year
02/10/2023,CAPITAL FINANCING,Leatherhead Trinity School & Nursery,Schools Interest paid/charged,"1,769.84",Health Visiting
02/10/2023,WEST ASHTEAD PRIMARY,LEO Academy Trust,Cash Equivalents,"222,608.15",Schools
02/10/2023,WEST ASHTEAD PRIMARY,LEO Academy Trust,Cash Equivalents,"25,975.91",Schools
02/10/2023,CAPITAL FINANCING,Littleton COE Nursery & Infant School,Schools Interest paid/charged,627.53,Grants - Member Allocation
02/10/2023,CAPITAL FINANCING,Long Ditton St Marys COE Junior School,Schools Interest paid/charged,"1,782.84",Schools
02/10/2023,LONG DITTON ST MARYS CEJ,Long Ditton St Marys COE Junior School,Electricity,985.86,Schools
02/10/2023,WAVERLEY LOCAL CARE OP,Longdene Homecare,Home Care Services,"2,157.12",Dom Care - Adults
02/10/2023,GUILDFORD LOCAL CARE OP,Longdene Homecare,Home Care Services,"2,157.12",Dom Care - Adults
02/10/2023,SURREY HILLS AONB,Markus Dell Film,Fees,539.60,Design & Photography
02/10/2023,NORTH WEST CWD NON-LAC CARE,Medgen Ltd,Home Care Services,"2,279.46",Occupational Therapy
02/10/2023,STAFF EXPERIENCE AND WELLBEING,Mel Research Ltd,Fees,"9,014.40",Testing & Inspection Serv
02/10/2023,GENERAL PROPERTY A/C DEPOSITS,Merstham Community Cafe CIC,Long Term - Deferred Liabilities,"4,625.00",Grants - Member Allocation
02/10/2023,TANDRIDGE LOCAL CARE OP,Mettle & Bond Care,Home Care Services,"3,338.72",Dom Care - Adults
02/10/2023,GUILDFORD LOCAL CARE PD,Midshires Care Ltd,Home Care Services,"2,200.00",Dom Care - Adults
02/10/2023,WAVERLEY LOCAL CARE OP,Missions Healthcare Services Ltd,Home Care Services,"6,124.72",Dom Care - Adults
02/10/2023,WAVERLEY LOCAL CARE OP,Mnara Health Ltd,Home Care Services,"7,589.50",Residential - LD
02/10/2023,SOUTH EAST AGENCY PLACE (ED),Moor House School & College,External Placement Fees,"2,884.66",School Support Serv
02/10/2023,SOUTH EAST AGENCY PLACE (ED),Moor House School & College,External Placement Fees,"2,884.66",School Support Serv
02/10/2023,NORTH EAST AGENCY PLACE (ED),Moor House School & College,External Placement Fees,"2,884.66",School Support Serv
02/10/2023,NORTH WEST AGENCY PLACE (ED),Moor House School & College,External Placement Fees,"3,162.25",School Support Serv
02/10/2023,SOUTH EAST AGENCY PLACE (ED),Moor House School & College,External Placement Fees,"4,588.88",School Support Serv
02/10/2023,NORTH EAST AGENCY PLACE (ED),Moor House School & College,External Placement Fees,"3,035.63",School Support Serv
02/10/2023,SOUTH EAST AGENCY PLACE (ED),Moor House School & College,External Placement Fees,"3,140.88",School Support Serv
02/10/2023,NORTH WEST AGENCY PLACE (ED),Moor House School & College,External Placement Fees,"3,433.69",School Support Serv
02/10/2023,SOUTH EAST AGENCY PLACE (ED),Moor House School & College,External Placement Fees,"3,433.69",School Support Serv
02/10/2023,NE AGENCY/SPI POST 16-EDUC,Moor House School & College,External Placement Fees,"3,433.69",School Support Serv
02/10/2023,SOUTH EAST AGENCY PLACE (ED),Moor House School & College,External Placement Fees,"3,695.15",School Support Serv
02/10/2023,SOUTH EAST AGENCY PLACE (ED),Moor House School & College,External Placement Fees,"3,035.71",School Support Serv
02/10/2023,SOUTH EAST AGENCY PLACE (ED),Moor House School & College,External Placement Fees,"3,379.69",School Support Serv
02/10/2023,SOUTH EAST AGENCY PLACE (ED),Moor House School & College,External Placement Fees,"3,086.88",School Support Serv
02/10/2023,SOUTH EAST AGENCY PLACE (ED),Moor House School & College,External Placement Fees,"3,379.70",School Support Serv
02/10/2023,SOUTH EAST AGENCY PLACE (ED),Moor House School & College,External Placement Fees,"3,035.63",School Support Serv
02/10/2023,SOUTH EAST AGENCY PLACE (ED),Moor House School & College,External Placement Fees,"2,936.31",School Support Serv
02/10/2023,SOUTH EAST AGENCY PLACE (ED),Moor House School & College,External Placement Fees,"2,884.66",School Support Serv
02/10/2023,NORTH EAST AGENCY PLACE (ED),Moor House School & College,External Placement Fees,"3,499.25",School Support Serv
02/10/2023,SOUTH EAST AGENCY PLACE (ED),Moor House School & College,External Placement Fees,"2,654.84",School Support Serv
02/10/2023,NORTH WEST AGENCY PLACE (ED),Moor House School & College,External Placement Fees,"3,035.63",School Support Serv
02/10/2023,SE AGENCY/SPI POST 16-EDUC,Moor House School & College,External Placement Fees,"4,219.01",School Support Serv
02/10/2023,SOUTH EAST AGENCY PLACE (ED),Moor House School & College,External Placement Fees,"3,140.88",School Support Serv
02/10/2023,SOUTH WEST AGENCY PLACE (ED),Moor House School & College,External Placement Fees,"5,015.90",School Support Serv
02/10/2023,SOUTH EAST AGENCY PLACE (ED),Moor House School & College,External Placement Fees,"3,433.69",School Support Serv
02/10/2023,NORTH WEST AGENCY PLACE (ED),Moor House School & College,External Placement Fees,"3,140.88",School Support Serv
02/10/2023,SOUTH EAST AGENCY PLACE (ED),Moor House School & College,External Placement Fees,"2,848.07",School Support Serv
02/10/2023,SE AGENCY/SPI POST 16-EDUC,Moor House School & College,External Placement Fees,"4,024.71",School Support Serv
02/10/2023,SE AGENCY/SPI POST 16-EDUC,Moor House School & College,External Placement Fees,"4,219.01",School Support Serv
02/10/2023,SE AGENCY/SPI POST 16-EDUC,Moor House School & College,External Placement Fees,"4,219.01",School Support Serv
02/10/2023,SOUTH EAST AGENCY PLACE (ED),Moor House School & College,External Placement Fees,"3,217.78",School Support Serv
02/10/2023,SOUTH EAST AGENCY PLACE (ED),Moor House School & College,External Placement Fees,"2,654.84",School Support Serv
02/10/2023,SOUTH EAST AGENCY PLACE (ED),Moor House School & College,External Placement Fees,"3,217.78",School Support Serv
02/10/2023,SOUTH EAST AGENCY PLACE (ED),Moor House School & College,External Placement Fees,"3,845.15",School Support Serv
02/10/2023,NORTH WEST AGENCY PLACE (ED),Moor House School & College,External Placement Fees,"4,308.77",School Support Serv
02/10/2023,SOUTH EAST AGENCY PLACE (ED),Moor House School & College,External Placement Fees,"2,754.16",School Support Serv
02/10/2023,SOUTH EAST AGENCY PLACE (ED),Moor House School & College,External Placement Fees,"4,292.50",School Support Serv
02/10/2023,NORTH EAST AGENCY PLACE (ED),Moor House School & College,External Placement Fees,"3,605.06",School Support Serv
02/10/2023,SOUTH EAST AGENCY PLACE (ED),Moor House School & College,External Placement Fees,"3,464.36",School Support Serv
02/10/2023,NORTH WEST AGENCY PLACE (ED),Moor House School & College,External Placement Fees,"8,480.40",School Support Serv
02/10/2023,SOUTH EAST AGENCY PLACE (ED),Moor House School & College,External Placement Fees,"2,936.31",School Support Serv
02/10/2023,SOUTH EAST AGENCY PLACE (ED),Moor House School & College,External Placement Fees,"3,896.41",School Support Serv
02/10/2023,SE AGENCY/SPI POST 16-EDUC,Moor House School & College,External Placement Fees,"3,743.24",School Support Serv
02/10/2023,SOUTH EAST AGENCY PLACE (ED),Moor House School & College,External Placement Fees,"3,109.23",School Support Serv
02/10/2023,SOUTH EAST AGENCY PLACE (ED),Moor House School & College,External Placement Fees,"3,726.50",School Support Serv
02/10/2023,SOUTH EAST AGENCY PLACE (ED),Moor House School & College,External Placement Fees,"2,982.62",School Support Serv
02/10/2023,SOUTH EAST AGENCY PLACE (ED),Moor House School & College,External Placement Fees,"3,999.71",School Support Serv
02/10/2023,NORTH WEST AGENCY PLACE (ED),Moor House School & College,External Placement Fees,"2,936.31",School Support Serv
02/10/2023,NORTH WEST AGENCY PLACE (ED),Moor House School & College,External Placement Fees,"4,292.51",School Support Serv
02/10/2023,NORTH EAST AGENCY PLACE (ED),Moor House School & College,External Placement Fees,"9,313.79",School Support Serv
02/10/2023,CORPORATE INCOME AND EXPENDITURE,Network Rail Infrastructure Ltd,Write Back - Unrecovered Debts,"7,384.80",Local Bus
02/10/2023,HIGHWAYS CAPITAL,Network Rail Infrastructure Ltd,"Construction, Conversion & Renovation","1,502.23",Local Bus
02/10/2023,CAPITAL FINANCING,North Downs Primary School,Schools Interest paid/charged,"2,420.81",Schools
02/10/2023,NORTH DOWNS PRIMARY SCHOOL,North Downs Primary School,Cash Equivalents,"6,964.23",Schools
02/10/2023,GUILDFORD LOCAL CARE PD,Novus Care Ltd,Home Care Services,"11,072.88",Dom Care - Adults
02/10/2023,WAVERLEY LOCAL CARE PD,Novus Care Ltd,Home Care Services,"11,072.88",Dom Care - Adults
02/10/2023,CAPITAL FINANCING,Oatlands School,Schools Interest paid/charged,"3,767.85",Grants - Member Allocation
02/10/2023,SOUTH EAST AGENCY PLACE (ED),Philpots Manor School Ltd,External Placement Fees,"5,275.79",Not Applicable
02/10/2023,SOUTH EAST AGENCY PLACE (ED),Philpots Manor School Ltd,External Placement Fees,"5,275.79",Not Applicable
02/10/2023,SOUTH EAST AGENCY PLACE (ED),Philpots Manor School Ltd,External Placement Fees,"11,989.36",Not Applicable
02/10/2023,EIF 3 & 4 YR OLD,Playtime Nursery - Shepperton,Contributions to third parties,715.00,Nurseries
02/10/2023,EIF 3 & 4 YR OLD,Playtime Nursery - Shepperton,Contributions to third parties,"1,000.00",Nurseries
02/10/2023,EIF 3 & 4 YR OLD,Playtime Nursery - Shepperton,Contributions to third parties,"1,000.00",Nurseries
02/10/2023,CAPITAL FINANCING,Polesden Lacey Infant School,Schools Interest paid/charged,864.20,Schools
02/10/2023,REIGATE & BANSTEAD LOCAL CARE OP,Primrose Healthcare Services Ltd,Home Care Services,"1,590.12",Residential - OP
02/10/2023,GUILDFORD LOCAL CARE OP,Proxy Care Personnel Ltd,Home Care Services,"8,411.84",Dom Care - Adults
02/10/2023,EPSOM & EWELL LOCAL CARE OP,Proxy Care Personnel Ltd,Home Care Services,"8,411.84",Dom Care - Adults
02/10/2023,WAVERLEY LOCAL CARE PD,Ranger Home Care Ltd,Home Care Services,"2,499.98",Dom Care - Adults
02/10/2023,Send Personal Budgets (NE),Redacted Personal Data ,External Placement Fees,"3,617.08",Individual - NEC
02/10/2023,Send Personal Budgets (SE),Redacted Personal Data,External Placement Fees,"3,864.57",Individual - NEC
02/10/2023,SW UASC & NRPF 18+ CARE,Redacted Personal Data,Children's Act S24 Payments,952.50,Adults direct payment
02/10/2023,NORTH WEST CWD NON-LAC CARE,Redacted Personal Data,Direct Payments,"9,774.34",Invoicing Plan Req.
02/10/2023,NORTH WEST CWD NON-LAC CARE,Redacted Personal Data,Direct Payments,"2,900.56",Invoicing Plan Req.
02/10/2023,REIGATE & BANSTEAD LOCAL CARE OP,Redacted Personal Data,Direct Payments,780.06,Adults direct payment
02/10/2023,SPELTHORNE LOCAL CARE OP,Redacted Personal Data,Direct Payments,"1,651.06",Individual - NEC
02/10/2023,NW AREA SEN MANAGEMENT TEAM,Redacted Personal Data,Compensation Claims payments,"1,950.00",Non-Staff Expenses
02/10/2023,SPELTHORNE LOCAL CARE OP,Redacted Personal Data,Direct Payments,864.60,Direct Payments
02/10/2023,Send Personal Budgets (SE),Redacted Personal Data,External Placement Fees,"4,151.45",Adults direct payment
02/10/2023,SW PERSONAL BUDGET POST 16,Redacted Personal Data,External Placement Fees,"2,414.00",Individual - NEC
02/10/2023,Send Personal Budgets (SW),Redacted Personal Data,External Placement Fees,"2,335.72",Individual - NEC
02/10/2023,Send Personal Budgets (SE),Redacted Personal Data,External Placement Fees,"2,509.69",Individual - NEC
02/10/2023,Send Personal Budgets (NE),Redacted Personal Data,External Placement Fees,"4,639.00",Individual - NEC
02/10/2023,NE PERSONAL BUDGET POST 16,Redacted Personal Data,External Placement Fees,"3,851.71",Individual - NEC
02/10/2023,SE PERSONAL BUDGET POST 16,Redacted Personal Data,External Placement Fees,"6,478.12",Individual - NEC
02/10/2023,SE PERSONAL BUDGET POST 16,Redacted Personal Data,External Placement Fees,"1,337.55",Carers
02/10/2023,Send Personal Budgets (NE),Redacted Personal Data,External Placement Fees,"4,310.37",Individual - NEC
02/10/2023,SPELTHORNE LOCAL CARE OP,Reedsfield Care Ltd,Home Care Services,"2,762.28",Dom Care - Adults
02/10/2023,CAPITAL FINANCING,Reigate Priory Community Junior School,Schools Interest paid/charged,"2,818.13",Schools
02/10/2023,CAPITAL FINANCING,SCC Ash Grange Primary School,Schools Interest paid/charged,713.10,Schools
02/10/2023,CAPITAL FINANCING,SCC Ash Manor School,Schools Interest paid/charged,"9,332.39",Schools
02/10/2023,CAPITAL FINANCING,SCC Ashford COE Primary School,Schools Interest paid/charged,"1,487.53",Grants - Member Allocation
02/10/2023,CAPITAL FINANCING,SCC Ashford Park Primary School,Schools Interest paid/charged,"7,361.70",Schools
02/10/2023,CAPITAL FINANCING,SCC Audley Primary School,Schools Interest paid/charged,"1,868.15",Schools
02/10/2023,CAPITAL FINANCING,SCC Badshot Lea Village Infant School,Schools Interest paid/charged,"2,635.61",Schools
02/10/2023,CAPITAL FINANCING,SCC Bagshot Infant School,Schools Interest paid/charged,"1,736.88",Schools
02/10/2023,CAPITAL FINANCING,SCC Barnett Wood Infant School,Schools Interest paid/charged,"2,342.75",Schools
02/10/2023,CAPITAL FINANCING,SCC Beacon Hill Community School,Schools Interest paid/charged,999.27,Schools
02/10/2023,CAPITAL FINANCING,SCC Bell Farm Junior School,Schools Interest paid/charged,"7,019.66",Schools
02/10/2023,CAPITAL FINANCING,SCC Bisley COE Primary School,Schools Interest paid/charged,"3,513.72",Schools
02/10/2023,BISLEY CEP,SCC Bisley COE Primary School,Hospitality,"1,712.95",Schools
02/10/2023,BISLEY CEP,SCC Bisley COE Primary School,Cash Equivalents,"2,896.52",Schools
02/10/2023,CAPITAL FINANCING,SCC Bramley COE (VA) Infant,Schools Interest paid/charged,"1,194.91",Schools
02/10/2023,CAPITAL FINANCING,SCC Brooklands School,Schools Interest paid/charged,826.86,Schools
02/10/2023,CAPITAL FINANCING,SCC Buckland Primary School,Schools Interest paid/charged,"2,878.49",Schools
02/10/2023,CAPITAL FINANCING,SCC Busbridge COE (A) Junior School,Schools Interest paid/charged,"1,606.42",Schools
02/10/2023,CAPITAL FINANCING,SCC Chandler COE (A) Junior School,Schools Interest paid/charged,801.15,Schools
02/10/2023,CAPITAL FINANCING,SCC Chandlers Field Primary School,Schools Interest paid/charged,"3,275.88",Schools
02/10/2023,CHANDLERS FIELD PRY W MOLESEY,SCC Chandlers Field Primary School,Agency Supply Staff,"2,697.48",Schools
02/10/2023,CAPITAL FINANCING,SCC Charlwood Village Primary School,Schools Interest paid/charged,580.68,Schools
02/10/2023,CHARLWOOD VILLAGE INFANT HORLEY,SCC Charlwood Village Primary School,Training Expenses - External General,571.39,Schools
02/10/2023,CAPITAL FINANCING,SCC Chennestone Primary Community School,Schools Interest paid/charged,"1,498.29",Schools
02/10/2023,CAPITAL FINANCING,SCC Chilworth COE (A) Infant School,Schools Interest paid/charged,"1,176.33",Schools
02/10/2023,CAPITAL FINANCING,SCC Chobham St Lawrence COE (A) Primary,Schools Interest paid/charged,"1,835.86",Schools
02/10/2023,CAPITAL FINANCING,SCC Claygate Primary School,Schools Interest paid/charged,"2,710.70",Schools
02/10/2023,CAPITAL FINANCING,SCC Clifton Hill School,Schools Interest paid/charged,"3,387.56",Schools
02/10/2023,CAPITAL FINANCING,SCC Cranleigh COE Primary School,Schools Interest paid/charged,"1,187.67",Schools
02/10/2023,CAPITAL FINANCING,SCC Cranmere Primary School,Schools Interest paid/charged,"3,339.56",Schools
02/10/2023,SCHOOLS CAPITAL,SCC Dormansland Primary School,"Construction, Conversion & Renovation","4,920.45",Schools
02/10/2023,DORMANSLAND PRIMARY LINGFIELD,SCC Dormansland Primary School,Equipment & Materials Learning,"1,799.54",Schools
02/10/2023,DORMANSLAND PRIMARY LINGFIELD,SCC Dormansland Primary School,Catering,"3,394.72",Schools
02/10/2023,CAPITAL FINANCING,SCC Epsom Downs Primary School &,Schools Interest paid/charged,"12,208.03",Schools
02/10/2023,CAPITAL FINANCING,SCC Ewell Grove Infant & Nursery School,Schools Interest paid/charged,"5,009.14",Schools
02/10/2023,CAPITAL FINANCING,SCC Ewhurst COE (A) Infant School,Schools Interest paid/charged,537.09,Schools
02/10/2023,CAPITAL FINANCING,SCC Farncombe COE (C) Infant School,Schools Interest paid/charged,"1,374.15",Schools
02/10/2023,CAPITAL FINANCING,SCC Felbridge Primary School,Schools Interest paid/charged,"1,495.70",Schools
02/10/2023,CAPITAL FINANCING,SCC Fetcham Village Infant School,Schools Interest paid/charged,594.42,Grants - Member Allocation
02/10/2023,FETCHAM VILLAGE INFANT,SCC Fetcham Village Infant School,"Property Repairs, Maintenance & Alterations","1,355.98",Grants - Member Allocation
02/10/2023,CAPITAL FINANCING,SCC Freemantles School,Schools Interest paid/charged,"2,678.40",Schools
02/10/2023,CAPITAL FINANCING,SCC Furzefield Community Primary School,Schools Interest paid/charged,"2,691.35",Schools
02/10/2023,CAPITAL FINANCING,SCC Glebelands School,Schools Interest paid/charged,"6,304.31",Schools
02/10/2023,CAPITAL FINANCING,SCC Godalming Junior School,Schools Interest paid/charged,"3,100.75",Schools
02/10/2023,CAPITAL FINANCING,SCC Gosden House School,Schools Interest paid/charged,"2,822.93",Schools
02/10/2023,CAPITAL FINANCING,SCC Grayswood COE (A) Infant School,Schools Interest paid/charged,"1,434.52",Schools
02/10/2023,CAPITAL FINANCING,SCC Greville Primary School,Schools Interest paid/charged,"5,265.00",Grants - Member Allocation
02/10/2023,CAPITAL FINANCING,SCC Horley Infant School,Schools Interest paid/charged,"5,278.41",Schools
02/10/2023,CAPITAL FINANCING,SCC Horsell COE (A) Junior School,Schools Interest paid/charged,"2,079.58",Schools
02/10/2023,CAPITAL FINANCING,SCC Hurst Green Infant School,Schools Interest paid/charged,997.70,Schools
02/10/2023,CAPITAL FINANCING,SCC Hurst Park Primary School,Schools Interest paid/charged,855.35,Schools
02/10/2023,CAPITAL FINANCING,SCC Kingswood Primary School,Schools Interest paid/charged,"1,021.54",Schools
02/10/2023,CAPITAL FINANCING,SCC Laleham COE (VA) Primary School,Schools Interest paid/charged,"3,617.80",Schools
02/10/2023,CAPITAL FINANCING,SCC Langshott Infant School,Schools Interest paid/charged,"4,410.32",Schools
02/10/2023,CAPITAL FINANCING,SCC Limpsfield COE Infant School,Schools Interest paid/charged,815.16,Schools
02/10/2023,CAPITAL FINANCING,SCC Limpsfield Grange School,Schools Interest paid/charged,"1,000.31",Schools
02/10/2023,CAPITAL FINANCING,SCC Lingfield Primary School,Schools Interest paid/charged,"2,458.18",Schools
02/10/2023,CAPITAL FINANCING,SCC Lyne & Longcross COE (A) School,Schools Interest paid/charged,"3,010.44",Schools
02/10/2023,CAPITAL FINANCING,SCC Manby Lodge Infant School,Schools Interest paid/charged,"3,618.76",Schools
02/10/2023,CAPITAL FINANCING,SCC Manor Mead School,Schools Interest paid/charged,"3,025.02",Schools
02/10/2023,MANOR MEAD & WALTON LEIGH SCHOOLS (FED),SCC Manor Mead School,Contract Cleaning,"11,038.34",Schools
02/10/2023,CAPITAL FINANCING,SCC Manorcroft Primary School,Schools Interest paid/charged,"1,166.71",Schools
02/10/2023,MANORCROFT PRIMARY EGHAM,SCC Manorcroft Primary School,Consultancy Services,"4,430.97",Schools
02/10/2023,CAPITAL FINANCING,SCC Manorfield Primary & Nursery School,Schools Interest paid/charged,"2,027.67",Schools
02/10/2023,CAPITAL FINANCING,SCC Meadowcroft Community Infant School,Schools Interest paid/charged,"1,387.94",Schools
02/10/2023,CAPITAL FINANCING,SCC Meath Green Infant School,Schools Interest paid/charged,"1,618.27",Schools
02/10/2023,CAPITAL FINANCING,SCC Meath Green Junior School,Schools Interest paid/charged,"1,816.89",Schools
02/10/2023,CAPITAL FINANCING,SCC Merrow COE (C) Infant School,Schools Interest paid/charged,"1,103.19",Schools
02/10/2023,CAPITAL FINANCING,SCC Milford School,Schools Interest paid/charged,"2,229.10",Schools
02/10/2023,CAPITAL FINANCING,SCC Moss Lane School,Schools Interest paid/charged,"1,228.87",Schools
02/10/2023,CAPITAL FINANCING,SCC Newdigate COE Endowed (A) Infant,Schools Interest paid/charged,"1,443.85",Schools
02/10/2023,CAPITAL FINANCING,SCC Nutfield Church COE Primary School,Schools Interest paid/charged,"1,736.63",Schools
02/10/2023,CAPITAL FINANCING,SCC Oakfield Junior School,Schools Interest paid/charged,"1,761.13",Schools
02/10/2023,CAPITAL FINANCING,SCC Oakwood School,Schools Interest paid/charged,"23,737.02",Schools
02/10/2023,CAPITAL FINANCING,SCC Ongar Place Primary School,Schools Interest paid/charged,"3,171.85",Schools
02/10/2023,CAPITAL FINANCING,SCC Onslow Infant School,Schools Interest paid/charged,"1,235.07",Schools
02/10/2023,CAPITAL FINANCING,SCC Philip Southcote School,Schools Interest paid/charged,"7,316.49",Schools
02/10/2023,CAPITAL FINANCING,SCC Portesbery School,Schools Interest paid/charged,886.46,Schools
02/10/2023,CAPITAL FINANCING,SCC Prior Heath Community Infant School,Schools Interest paid/charged,"1,267.67",Schools
02/10/2023,CAPITAL FINANCING,SCC Reigate Parish COE(A) Primary School,Schools Interest paid/charged,"2,523.46",Schools
02/10/2023,CAPITAL FINANCING,SCC Riverview COE Primary School &,Schools Interest paid/charged,"3,563.32",Grants - Member Allocation
02/10/2023,CAPITAL FINANCING,SCC Royal Alexandra & Albert School,Schools Interest paid/charged,"1,367.91",Schools
02/10/2023,CAPITAL FINANCING,SCC Royal Kent COE Primary School,Schools Interest paid/charged,"2,219.51",Schools
02/10/2023,CAPITAL FINANCING,SCC Shawfield Primary School,Schools Interest paid/charged,"1,447.81",Schools
02/10/2023,CAPITAL FINANCING,SCC Shere COE (A) Infant School,Schools Interest paid/charged,"3,354.35",Schools
02/10/2023,CAPITAL FINANCING,SCC Shottermill Infant School,Schools Interest paid/charged,"1,296.46",Schools
02/10/2023,CAPITAL FINANCING,SCC Shottermill Junior School,Schools Interest paid/charged,"1,970.04",Schools
02/10/2023,CAPITAL FINANCING,SCC St Andrews Catholic Secondary School,Schools Interest paid/charged,"17,433.02",Schools
02/10/2023,CAPITAL FINANCING,SCC St Annes Catholic Primary School,Schools Interest paid/charged,"2,560.22",Schools
02/10/2023,CAPITAL FINANCING,SCC St Anns Heath Junior School,Schools Interest paid/charged,801.83,Schools
02/10/2023,CAPITAL FINANCING,SCC St Bartholomews COE (A) Primary Sch,Schools Interest paid/charged,"2,274.75",Schools
02/10/2023,CAPITAL FINANCING,SCC St Bedes School,Schools Interest paid/charged,"13,785.03",School Support Serv
02/10/2023,CAPITAL FINANCING,SCC St Clements Catholic Primary School,Schools Interest paid/charged,"1,167.42",Schools
02/10/2023,ST CUTHBERTS CATH PRY ENGLEFIELD,SCC St Cuthberts Catholic Primary School,Agency Supply Staff,"4,913.31",Schools
02/10/2023,ST CUTHBERTS CATH PRY ENGLEFIELD,SCC St Cuthberts Catholic Primary School,Agency Supply Staff,"3,206.43",Schools
02/10/2023,CAPITAL FINANCING,SCC St Dunstan's Catholic Primary School,Schools Interest paid/charged,"4,376.21",Schools
02/10/2023,CAPITAL FINANCING,SCC ST Francis Catholic Primary School,Schools Interest paid/charged,986.80,Schools
02/10/2023,CAPITAL FINANCING,SCC St Giles COE (A) Infant School,Schools Interest paid/charged,"1,048.63",Schools
02/10/2023,CAPITAL FINANCING,SCC St James COE (A) Primary School,Schools Interest paid/charged,925.60,Schools
02/10/2023,CAPITAL FINANCING,SCC St Johns COE (A) Infant School,Schools Interest paid/charged,"1,145.47",Schools
02/10/2023,CAPITAL FINANCING,SCC St Johns COE (A) Primary School,Schools Interest paid/charged,"2,689.66",Schools
02/10/2023,CAPITAL FINANCING,SCC St Josephs Catholic Primary School,Schools Interest paid/charged,"3,426.33",Schools
02/10/2023,CAPITAL FINANCING,SCC St Joseph's Catholic Primary School,Schools Interest paid/charged,"6,026.45",Schools
02/10/2023,CAPITAL FINANCING,SCC St Joseph's Catholic Primary School,Schools Interest paid/charged,893.80,Schools
02/10/2023,CAPITAL FINANCING,SCC St Joseph's Catholic Primary School,Schools Interest paid/charged,"1,934.03",Schools
02/10/2023,ST JOSEPHS CATH PRIMARY DORKING,SCC St Joseph's Catholic Primary School,Electricity,"1,484.70",Schools
02/10/2023,ST JOSEPHS CATH PRIMARY EPSOM,SCC St Joseph's Catholic Primary School,"Property Repairs, Maintenance & Alterations","2,232.45",Schools
02/10/2023,ST JOSEPHS CATH PRIMARY DORKING,SCC St Joseph's Catholic Primary School,IT Hardware Purchase,"2,187.13",Schools
02/10/2023,ST JOSEPHS CATH PRIMARY EPSOM,SCC St Joseph's Catholic Primary School,"Property Repairs, Maintenance & Alterations",943.70,Schools
02/10/2023,CAPITAL FINANCING,SCC St Lawrence COE (A) Junior School,Schools Interest paid/charged,"1,045.60",Schools
02/10/2023,CAPITAL FINANCING,SCC St Martins COE (C) Primary School,Schools Interest paid/charged,"1,240.51",Schools
02/10/2023,CAPITAL FINANCING,SCC St Mary's COE (A) Infant School,Schools Interest paid/charged,831.48,Schools
02/10/2023,CAPITAL FINANCING,SCC St Marys COE (C) Primary School,Schools Interest paid/charged,"2,202.35",Schools
02/10/2023,CAPITAL FINANCING,SCC St Matthews COE (A) Infant School,Schools Interest paid/charged,"1,366.91",Schools
02/10/2023,ST MATTHEWS CEI DOWNSIDE,SCC St Matthews COE (A) Infant School,Equipment & Materials Learning,"2,379.12",Schools
02/10/2023,SCHOOLS CAPITAL,SCC St Matthews COE (A) Infant School,"Construction, Conversion & Renovation","1,898.74",Schools
02/10/2023,CAPITAL FINANCING,SCC St Nicholas COE (A) Infant School,Schools Interest paid/charged,579.60,Schools
02/10/2023,CAPITAL FINANCING,SCC St Nicholas COE Primary School,Schools Interest paid/charged,"3,465.02",Schools
02/10/2023,CAPITAL FINANCING,SCC St Pauls COE Primary School,Schools Interest paid/charged,"4,186.20",Schools
02/10/2023,CAPITAL FINANCING,SCC St Pauls RC Primary School,Schools Interest paid/charged,"1,266.25",Schools
02/10/2023,CAPITAL FINANCING,SCC St Peters COE Primary School,Schools Interest paid/charged,"4,195.73",Schools
02/10/2023,CAPITAL FINANCING,SCC St Peter's RC Primary School,Schools Interest paid/charged,"5,631.22",Schools
02/10/2023,CAPITAL FINANCING,SCC Stamford Green Primary School,Schools Interest paid/charged,"4,870.67",Schools
02/10/2023,STAMFORD GREEN PRIMARY EPSOM,SCC Stamford Green Primary School,"Property Repairs, Maintenance & Alterations","4,956.39",Schools
02/10/2023,STAMFORD GREEN PRIMARY EPSOM,SCC Stamford Green Primary School,Cash Equivalents,"13,360.61",Schools
02/10/2023,CAPITAL FINANCING,SCC Stepgates Community School,Schools Interest paid/charged,601.79,School Trips
02/10/2023,CAPITAL FINANCING,SCC Sunnydown School,Schools Interest paid/charged,"3,670.23",Schools
02/10/2023,CAPITAL FINANCING,SCC Thames Ditton Infant School,Schools Interest paid/charged,"3,290.84",Schools
02/10/2023,CAPITAL FINANCING,SCC The Grange Community Infant School,Schools Interest paid/charged,"1,906.96",Schools
02/10/2023,SCHOOLS CAPITAL,SCC The Grange Community Infant School,"Construction, Conversion & Renovation","7,828.73",Schools
02/10/2023,CAPITAL FINANCING,SCC The Hythe Primary School,Schools Interest paid/charged,"7,076.79",Schools
02/10/2023,CAPITAL FINANCING,SCC The Orchard Infant School,Schools Interest paid/charged,695.51,Schools
02/10/2023,CAPITAL FINANCING,SCC The Priory COE (VA) School,Schools Interest paid/charged,"7,881.32",Schools
02/10/2023,CAPITAL FINANCING,SCC Thorpe COE (A) Primary School,Schools Interest paid/charged,"2,077.98",Schools
02/10/2023,CAPITAL FINANCING,SCC Thorpe Lea Primary School,Schools Interest paid/charged,"1,835.02",Schools
02/10/2023,SCHOOLS CAPITAL,SCC Thorpe Lea Primary School,"Construction, Conversion & Renovation","6,213.49",Schools
02/10/2023,THORPE LEA PRIMARY EGHAM,SCC Thorpe Lea Primary School,"Property Repairs, Maintenance & Alterations","3,258.18",Schools
02/10/2023,CAPITAL FINANCING,SCC Tillingbourne Junior School,Schools Interest paid/charged,"1,806.70",Schools
02/10/2023,TILLINGBOURNE JUNIOR,SCC Tillingbourne Junior School,IT Hardware Purchase,"1,234.24",Schools
02/10/2023,TILLINGBOURNE JUNIOR,SCC Tillingbourne Junior School,Cash Equivalents,"2,223.79",Schools
02/10/2023,CAPITAL FINANCING,SCC Town Farm Primary School & Nursery,Schools Interest paid/charged,"4,338.43",Schools
02/10/2023,TOWN FARM PRIMARY STANWELL,SCC Town Farm Primary School & Nursery,IT Hardware Purchase,"7,433.19",Schools
02/10/2023,CAPITAL FINANCING,SCC Trumps Green Infant School,Schools Interest paid/charged,"1,262.93",Schools
02/10/2023,CAPITAL FINANCING,SCC Walsh COE Junior School,Schools Interest paid/charged,"2,061.54",Schools
02/10/2023,CAPITAL FINANCING,SCC Walsh Memorial COE (C) Infant School,Schools Interest paid/charged,"1,379.37",Schools
02/10/2023,CAPITAL FINANCING,SCC Walton On The Hill Primary School,Schools Interest paid/charged,"1,500.47",Schools
02/10/2023,CAPITAL FINANCING,SCC West Byfleet Community Infant School,Schools Interest paid/charged,"1,110.53",Schools
02/10/2023,CAPITAL FINANCING,SCC West Byfleet Junior School,Schools Interest paid/charged,"1,321.43",Schools
02/10/2023,WEST BYFLEET JUNIOR,SCC West Byfleet Junior School,Educational Visits Holidays Camps Toys,"5,483.21",Schools
02/10/2023,CAPITAL FINANCING,SCC William Cobbett Primary School,Schools Interest paid/charged,"4,030.75",Schools
02/10/2023,WILLIAM COBBETT JUNIOR FARNHAM,SCC William Cobbett Primary School,"Property Repairs, Maintenance & Alterations","2,945.40",Schools
02/10/2023,CAPITAL FINANCING,SCC Witley COE (C) Infant School,Schools Interest paid/charged,"1,261.45",Schools
02/10/2023,CAPITAL FINANCING,SCC Wonersh & Shamley Green COE (A),Schools Interest paid/charged,"1,453.84",Schools
02/10/2023,CAPITAL FINANCING,SCC Woodfield School,Schools Interest paid/charged,"3,233.34",Schools
02/10/2023,CAPITAL FINANCING,SCC Woodlands School,Schools Interest paid/charged,"5,007.22",Schools
02/10/2023,CAPITAL FINANCING,SCC Worplesdon Primary School,Schools Interest paid/charged,"3,478.27",Schools
02/10/2023,JOINT FIRE CONTROL,Securitas Security Services (UK) Limited,Consultancy Services,944.94,Not Applicable
02/10/2023,WOKING LOCALITY TEAM,SHA Disability Consultancy Ltd,Other Community Care,"5,323.75",Specialist Serv
02/10/2023,NORTH WEST CWD NON-LAC CARE,Shooting Star Childrens Hospices,Residential Care Respite,"1,230.00",Grants - Community
02/10/2023,EPSOM & EWELL LOCAL CARE OP,Silverjen Ltd,Home Care Services,"13,193.88",Dom Care - Adults
02/10/2023,WOKING LOCAL CARE OP,Simply Carers,Home Care Services,"5,087.04",Extra Care (IL)
02/10/2023,EPSOM & EWELL LOCAL CARE OP,Simply Carers,Home Care Services,"5,087.04",Extra Care (IL)
02/10/2023,GUILDFORD LOCAL CARE OP,Skies Home Care Ltd,Home Care Services,"10,048.70",Dom Care - Adults
02/10/2023,SURREY HEATH LOCAL CARE OP,Skies Home Care Ltd,Home Care Services,"10,048.70",Dom Care - Adults
02/10/2023,ELMBRIDGE LOCAL CARE OP,Skies Home Care Ltd,Home Care Services,"10,048.70",Dom Care - Adults
02/10/2023,MOLE VALLEY LOCAL CARE OP,Skyline Home Care Services Ltd,Home Care Services,642.99,Residential - OP
02/10/2023,DIRECT COSTS CONCESSIONARY FARES,SmartCitizen Ltd,Payments to Private Contractors,"1,668.00",Appl Serv Provision
02/10/2023,DIRECT COSTS CONCESSIONARY FARES,SmartCitizen Ltd,Payments to Private Contractors,"3,250.38",Appl Serv Provision
02/10/2023,DIRECT COSTS CONCESSIONARY FARES,SmartCitizen Ltd,Payments to Private Contractors,"11,417.34",Appl Serv Provision
02/10/2023,DIRECT COSTS CONCESSIONARY FARES,SmartCitizen Ltd,Payments to Private Contractors,613.75,Appl Serv Provision
02/10/2023,DIRECT COSTS CONCESSIONARY FARES,SmartCitizen Ltd,Payments to Private Contractors,"12,285.12",Appl Serv Provision
02/10/2023,DIRECT COSTS CONCESSIONARY FARES,SmartCitizen Ltd,Payments to Private Contractors,"3,250.38",Appl Serv Provision
02/10/2023,LD-Autism Central Team Care,Sonic Carz,Public Transport - Non Staff,"1,008.00",Taxi Hire (SEN Only)
02/10/2023,CAPITAL FINANCING,Southfield Park Primary School,Schools Interest paid/charged,"2,038.86",Schools
02/10/2023,ST CHARLES BORROMEO CATH PRIMARY,St Charles Borromeo Catholic Primary Sch,Sale of Dinners,548.80,Schools
02/10/2023,CAPITAL FINANCING,St James COE Primary School,Schools Interest paid/charged,"3,813.73",Schools
02/10/2023,ST JAMES CEP WEYBRIDGE,St James COE Primary School,Cash Equivalents,"1,270.07",Schools
02/10/2023,ST JAMES CEP WEYBRIDGE,St James COE Primary School,Cash Equivalents,"6,814.85",Schools
02/10/2023,SCHOOLS CAPITAL,St James COE Primary School,"Construction, Conversion & Renovation","8,698.22",Schools
02/10/2023,CAPITAL FINANCING,St Judes COE Junior School,Schools Interest paid/charged,949.34,Schools
02/10/2023,CAPITAL FINANCING,St Mary's COE Junior School,Schools Interest paid/charged,"4,668.38",Schools
02/10/2023,CORPORATE SERVICES CAPITAL,Stantec UK Ltd,Consultancy Services,"18,364.03",Furniture - Office
02/10/2023,SUBSTANCE MISUSE SUPPLEMENTARY GRANT,Surrey & Borders Partnership NHS Trust,Other Agencies/Contractors,"6,045.00",Residential - MH
02/10/2023,LD-Autism Central Team Care,Swan School Services Ltd,Day Care Transport,756.00,Multi-purpose Veh
02/10/2023,CONDITION REPAIRS - TEAM 1 - NPR,T Earis Countryside Ltd,"Property Repairs, Maintenance & Alterations","14,400.05",Green Works
02/10/2023,REIGATE & BANSTEAD LOCAL CARE OP,Tadworth Grove Residential & Nursing,Residential Care Respite Dementia,749.36,Residential - LD
02/10/2023,ENVIRONMENT & INFRASTRUCTURE CAPITAL,Thameswey Sustainable Communites Ltd,"Construction, Conversion & Renovation","13,100.00",Waste Disposal Serv
02/10/2023,CUSTOMER TRANSFORM,The Creative Colony Ltd,Training Expenses - External General,"2,364.00",Youth Engagement
02/10/2023,CAPITAL FINANCING,The Federation of Earlswood Schools,Schools Interest paid/charged,"5,234.81",Venue Hire
02/10/2023,LD-Autism Central Team Care,The Green Care Home,Residential Care,"133,857.97",Specialist Serv
02/10/2023,ELMBRIDGE LOCAL CARE OP,The Peaches Healthcare Ltd,Home Care Services,"2,711.24",Dom Care - Adults
02/10/2023,WAVERLEY LOCAL CARE OP,Third Hand Healthcare Ltd,Home Care Services,"6,985.30",Residential - OP
02/10/2023,BUSINESS SUPPORT & CUSTOMER SERVICE TEAM,TJ Hunt Contracting Ltd,Payments to Private Contractors,"1,200.00",Not Applicable
02/10/2023,BUSINESS SUPPORT & CUSTOMER SERVICE TEAM,TJ Hunt Contracting Ltd,Payments to Private Contractors,"1,320.00",Not Applicable
02/10/2023,BUSINESS SUPPORT & CUSTOMER SERVICE TEAM,TJ Hunt Contracting Ltd,Payments to Private Contractors,"1,584.00",Not Applicable
02/10/2023,BUSINESS SUPPORT & CUSTOMER SERVICE TEAM,TJ Hunt Contracting Ltd,Payments to Private Contractors,"2,184.00",Not Applicable
02/10/2023,BUSINESS SUPPORT & CUSTOMER SERVICE TEAM,TJ Hunt Contracting Ltd,Payments to Private Contractors,"1,320.00",Not Applicable
02/10/2023,BUSINESS SUPPORT & CUSTOMER SERVICE TEAM,TJ Hunt Contracting Ltd,Payments to Private Contractors,"1,896.00",Not Applicable
02/10/2023,BUSINESS SUPPORT & CUSTOMER SERVICE TEAM,TJ Hunt Contracting Ltd,Payments to Private Contractors,"1,350.00",Not Applicable
02/10/2023,BUSINESS SUPPORT & CUSTOMER SERVICE TEAM,TJ Hunt Contracting Ltd,Payments to Private Contractors,"1,548.00",Not Applicable
02/10/2023,NORTH EAST AGENCY PLACE (ED),Tormead School,External Placement Fees,"8,521.88",SEND Agncy Placement
02/10/2023,NORTH EAST AGENCY PLACE (ED),Tormead School,External Placement Fees,"1,778.50",SEND Agncy Placement
02/10/2023,NORTH EAST AGENCY PLACE (ED),Tormead School,External Placement Fees,"16,651.34",SEND Agncy Placement
02/10/2023,STRATEGIC TREE MAINTENANCE - NPR,Transform Landscapes,"Property Repairs, Maintenance & Alterations","6,566.26",Arboricultural Works
02/10/2023,STRATEGIC TREE MAINTENANCE - NPR,Transform Landscapes,"Property Repairs, Maintenance & Alterations","4,362.78",Arboricultural Works
02/10/2023,SOUTH EAST AGENCY PLACE (ED),Treehouse Educare Ltd,External Placement Fees,"4,563.61",SEND Agncy Placement
02/10/2023,SOUTH WEST AGENCY PLACE (ED),Treehouse Educare Ltd,External Placement Fees,"4,563.61",SEND Agncy Placement
02/10/2023,SOUTH EAST AGENCY PLACE (ED),Treehouse Educare Ltd,External Placement Fees,"5,061.55",SEND Agncy Placement
02/10/2023,NORTH WEST AGENCY PLACE (ED),Treehouse Educare Ltd,External Placement Fees,"4,450.28",SEND Agncy Placement
02/10/2023,NORTH WEST AGENCY PLACE (ED),Treehouse Educare Ltd,External Placement Fees,"4,450.26",SEND Agncy Placement
02/10/2023,SOUTH EAST AGENCY PLACE (ED),Treehouse Educare Ltd,External Placement Fees,"4,563.61",SEND Agncy Placement
02/10/2023,SOUTH EAST AGENCY PLACE (ED),Treehouse Educare Ltd,External Placement Fees,"4,450.28",SEND Agncy Placement
02/10/2023,SOUTH WEST AGENCY PLACE (ED),Treehouse Educare Ltd,External Placement Fees,"4,450.27",SEND Agncy Placement
02/10/2023,SOUTH WEST AGENCY PLACE (ED),Treehouse Educare Ltd,External Placement Fees,"4,630.40",SEND Agncy Placement
02/10/2023,SOUTH EAST AGENCY PLACE (ED),Treehouse Educare Ltd,External Placement Fees,"4,450.28",SEND Agncy Placement
02/10/2023,SOUTH EAST AGENCY PLACE (ED),Treehouse Educare Ltd,External Placement Fees,"4,450.36",SEND Agncy Placement
02/10/2023,SOUTH EAST AGENCY PLACE (ED),Treehouse Educare Ltd,External Placement Fees,"4,563.61",SEND Agncy Placement
02/10/2023,SOUTH EAST AGENCY PLACE (ED),Treehouse Educare Ltd,External Placement Fees,"10,420.61",SEND Agncy Placement
02/10/2023,NORTH WEST AGENCY PLACE (ED),Treehouse Educare Ltd,External Placement Fees,"7,227.97",SEND Agncy Placement
02/10/2023,REIGATE & BANSTEAD LOCAL CARE OP,Triple Care Healthcare Services,Home Care Services,"20,968.34",Dom Care - Adults
02/10/2023,LD-Autism Central Team Care,Tru Care Ltd,Supported Living - working age,"5,245.60",Residential - OP
02/10/2023,ELMBRIDGE LOCAL CARE OP,UK Star Care Ltd,Home Care Services,"2,359.84",Residential - MH
02/10/2023,SOUTH WEST AGENCY PLACE (ED),Undershaw School,External Placement Fees,"2,284.38",SEND Agncy Placement
02/10/2023,SOUTH WEST AGENCY PLACE (ED),Undershaw School,External Placement Fees,"3,093.96",SEND Agncy Placement
02/10/2023,SOUTH WEST AGENCY PLACE (ED),Undershaw School,External Placement Fees,"2,591.25",SEND Agncy Placement
02/10/2023,SOUTH WEST AGENCY PLACE (ED),Undershaw School,External Placement Fees,"2,640.26",SEND Agncy Placement
02/10/2023,SOUTH WEST AGENCY PLACE (ED),Undershaw School,External Placement Fees,"2,563.25",SEND Agncy Placement
02/10/2023,SOUTH WEST AGENCY PLACE (ED),Undershaw School,External Placement Fees,"2,783.28",SEND Agncy Placement
02/10/2023,SOUTH WEST AGENCY PLACE (ED),Undershaw School,External Placement Fees,"3,555.45",SEND Agncy Placement
02/10/2023,SOUTH WEST AGENCY PLACE (ED),Undershaw School,External Placement Fees,"2,844.87",SEND Agncy Placement
02/10/2023,SOUTH WEST AGENCY PLACE (ED),Undershaw School,External Placement Fees,"2,602.06",SEND Agncy Placement
02/10/2023,NORTH EAST AGENCY PLACE (ED),Undershaw School,External Placement Fees,"2,767.44",SEND Agncy Placement
02/10/2023,SOUTH WEST AGENCY PLACE (ED),Undershaw School,External Placement Fees,"3,180.30",SEND Agncy Placement
02/10/2023,SOUTH WEST AGENCY PLACE (ED),Undershaw School,External Placement Fees,"3,303.07",SEND Agncy Placement
02/10/2023,SOUTH WEST AGENCY PLACE (ED),Undershaw School,External Placement Fees,"3,525.13",SEND Agncy Placement
02/10/2023,SOUTH WEST AGENCY PLACE (ED),Undershaw School,External Placement Fees,"2,276.29",SEND Agncy Placement
02/10/2023,SOUTH WEST AGENCY PLACE (ED),Undershaw School,External Placement Fees,"2,592.50",SEND Agncy Placement
02/10/2023,SOUTH WEST AGENCY PLACE (ED),Undershaw School,External Placement Fees,"3,642.92",SEND Agncy Placement
02/10/2023,SOUTH WEST AGENCY PLACE (ED),Undershaw School,External Placement Fees,"2,669.15",SEND Agncy Placement
02/10/2023,NORTH WEST AGENCY PLACE (ED),Undershaw School,External Placement Fees,"3,339.29",SEND Agncy Placement
02/10/2023,SOUTH WEST AGENCY PLACE (ED),Undershaw School,External Placement Fees,"2,480.90",SEND Agncy Placement
02/10/2023,SOUTH WEST AGENCY PLACE (ED),Undershaw School,External Placement Fees,"4,852.32",SEND Agncy Placement
02/10/2023,NORTH WEST AGENCY PLACE (ED),Undershaw School,External Placement Fees,"4,554.72",SEND Agncy Placement
02/10/2023,NORTH EAST AGENCY PLACE (ED),Undershaw School,External Placement Fees,"2,689.40",SEND Agncy Placement
02/10/2023,SOUTH WEST AGENCY PLACE (ED),Undershaw School,External Placement Fees,"2,830.03",SEND Agncy Placement
02/10/2023,NORTH EAST AGENCY PLACE (ED),Undershaw School,External Placement Fees,"2,135.53",SEND Agncy Placement
02/10/2023,NORTH WEST AGENCY PLACE (ED),Undershaw School,External Placement Fees,"2,433.14",SEND Agncy Placement
02/10/2023,SOUTH WEST AGENCY PLACE (ED),Undershaw School,External Placement Fees,"3,017.78",SEND Agncy Placement
02/10/2023,SOUTH WEST AGENCY PLACE (ED),Undershaw School,External Placement Fees,"3,880.70",SEND Agncy Placement
02/10/2023,NORTH WEST AGENCY PLACE (ED),Undershaw School,External Placement Fees,"2,637.37",SEND Agncy Placement
02/10/2023,SOUTH WEST AGENCY PLACE (ED),Undershaw School,External Placement Fees,"2,799.00",SEND Agncy Placement
02/10/2023,NORTH WEST AGENCY PLACE (ED),Undershaw School,External Placement Fees,"3,093.78",SEND Agncy Placement
02/10/2023,NORTH WEST AGENCY PLACE (ED),Undershaw School,External Placement Fees,"2,773.48",SEND Agncy Placement
02/10/2023,SOUTH WEST AGENCY PLACE (ED),Undershaw School,External Placement Fees,"2,838.83",SEND Agncy Placement
02/10/2023,NORTH WEST AGENCY PLACE (ED),Undershaw School,External Placement Fees,"3,052.48",SEND Agncy Placement
02/10/2023,SOUTH WEST AGENCY PLACE (ED),Undershaw School,External Placement Fees,"2,577.42",SEND Agncy Placement
02/10/2023,SOUTH WEST AGENCY PLACE (ED),Undershaw School,External Placement Fees,"2,857.13",SEND Agncy Placement
02/10/2023,SOUTH WEST AGENCY PLACE (ED),Undershaw School,External Placement Fees,"2,669.49",SEND Agncy Placement
02/10/2023,SOUTH WEST AGENCY PLACE (ED),Undershaw School,External Placement Fees,"3,622.45",SEND Agncy Placement
02/10/2023,SOUTH WEST AGENCY PLACE (ED),Undershaw School,External Placement Fees,"2,646.79",SEND Agncy Placement
02/10/2023,SOUTH WEST AGENCY PLACE (ED),Undershaw School,External Placement Fees,"3,083.73",SEND Agncy Placement
02/10/2023,SURREY HEATH LOCAL CARE OP,Vine Social Care Agency Ltd,Home Care Services,"8,905.68",Residential - OP
02/10/2023,LD-Autism Central Team Care,Voyage Ltd,Day Care Services,"5,408.52",Residential - MH
02/10/2023,SURREY HEATH LOCAL CARE PD,Watershed Care Services,Home Care Services,"4,360.72",Dom Care - Adults
02/10/2023,SOUTH EAST AGENCY PLACE (ED),Wells Park School,Payments to Other Local Authorities,880.96,SEN OLA
02/10/2023,AND EX-TRANSFORMATION,Westco Trading Ltd,Consultancy Services,"11,088.00",PR & Image
02/10/2023,CAPITAL FINANCING,Wharf Nursery School,Schools Interest paid/charged,"2,389.09",Nurseries
02/10/2023,TANDRIDGE LOCAL CARE OP,Windmill Manor Care Home,Nursing Care,"5,796.25",Respite - OP
02/10/2023,CAPITAL FINANCING,Winston Churchill School,Schools Interest paid/charged,"9,086.07",Schools
02/10/2023,GUILDFORD LOCAL CARE PD,Woodleigh Healthcare Ltd,Home Care Services,"2,697.68",Not Applicable
02/10/2023,GUILDFORD LOCAL CARE PD,Woodleigh Healthcare Ltd,Home Care Services,"9,699.80",Not Applicable
02/10/2023,WAVERLEY LOCAL CARE OP,Woodleigh Healthcare Ltd,Home Care Services,"9,699.80",Not Applicable
02/10/2023,YATTENDON SCHOOL HORLEY,Yattendon Junior School,Salaries,"13,942.67",Schools
03/10/2023,WAVERLEY CMHRS CARE,Alexanders Supported Living Ltd,Supported Living - working age,"3,137.62",Dom Care - Children
03/10/2023,SURREY HEATH CMHRS CARE,Alexanders Supported Living Ltd,Supported Living - working age,"3,884.01",Dom Care - Children
03/10/2023,SW ALTERNATIVE SEN POST 16,AMC Sen Home Support,External Placement Fees,"5,760.00",SEND Agncy Placement
03/10/2023,SEN HOME TO SCHOOL TRANSPORT,Ashford Childrens Care Ltd,Hire of Transport - Non Staff,"2,280.00",Sup Living Children
03/10/2023,EIF 3 & 4 YR OLD,Bambini Nursery,Contributions to third parties,"1,667.00",Nurseries
03/10/2023,LD-Autism Central Team Care,Boyce Care Ltd,Supported Living - working age,"3,620.70",Supp Living - MH
03/10/2023,BURBANK COMMUNITY HOME,Burbank Community Home,Educational Visits Holidays Camps Toys,576.41,Residential - MH
03/10/2023,SCS TEACHER/OTHER/SUMMER,Bushy Hill Junior School,School Balances,"6,825.00",Schools
03/10/2023,NE CARE - CARE LEAVERS,CAMHS Professionals Ltd,Therapy,"15,672.00",Family Support
03/10/2023,Woking C&G OP,Care Outlook Ltd,Home Care Services,"6,200.00",Not Applicable
03/10/2023,Woking C&G OP,Care Outlook Ltd,Home Care Services,"6,000.00",Not Applicable
03/10/2023,EIF 3 & 4 YR OLD,Caterpillars Pre School Walton Ltd,Contributions to third parties,"2,000.00",Nurseries
03/10/2023,MEMBERS DEVELOPMENT,Centre For Governance And Scrutiny,Training Expenses - External General,"2,717.88",Conference Attend
03/10/2023,ACTIVE SURREY,Chelsea FC Foundation Ltd,"Grants, Contributions & Donations","1,920.00",Grants - Community
03/10/2023,CORONER,CitySprint (UK) Ltd,Coroner's Expenses,"1,084.16",Couriers
03/10/2023,LAND & PROPERTY CAPITAL,CO2PEC Ltd,"Construction, Conversion & Renovation","194,832.76",Energy Efficiency
03/10/2023,LAND & PROPERTY CAPITAL,Colours Building Ltd,Transfer Expenditure REFCUS,"148,963.28",M-D (Property)
03/10/2023,EIF 3 & 4 YR OLD,Crescent Nursery School,Contributions to third parties,"1,000.00",Nurseries
03/10/2023,EIF 3 & 4 YR OLD,Cuddington Croft Primary School,Contributions to third parties,"2,000.00",Schools
03/10/2023,RANGER HOUSE GUILDFORD,Davitt Jones Bould - (Solicitor),Legal Expenses,"1,176.60",General Support
03/10/2023,COMMERCIAL MANAGEMENT,Davitt Jones Bould - (Solicitor),Fees,"1,500.72",General Support
03/10/2023,SURREY HEATH LOCAL CARE PD,Disability Initiative,Day Care Services,"1,250.93",Day Care - PSD
03/10/2023,ACTIVE SURREY,Esher Rugby Football Club Ltd,"Grants, Contributions & Donations","2,700.00",Sport & Fitness
03/10/2023,SEN HOME TO SCHOOL TRANSPORT,Euclid Ltd,IT Software Maintenance,991.38,Appl Serv Provision
03/10/2023,SEN HOME TO SCHOOL TRANSPORT,Euclid Ltd,IT Software Maintenance,552.42,Appl Serv Provision
03/10/2023,CORONER,Frimley Health NHS Foundation Trust,Hire of Property,"16,320.00",Not Applicable
03/10/2023,CORONER,Frimley Health NHS Foundation Trust,Hire of Property,"18,691.20",Not Applicable
03/10/2023,CORONER,Frimley Health NHS Foundation Trust,Hire of Property,"27,212.40",Not Applicable
03/10/2023,CORONER,Frimley Health NHS Foundation Trust,Hire of Property,"20,280.00",Not Applicable
03/10/2023,CORONER,Frimley Health NHS Foundation Trust,Hire of Property,"22,044.00",Not Applicable
03/10/2023,CORONER,Frimley Health NHS Foundation Trust,Hire of Property,"20,521.20",Not Applicable
03/10/2023,ACTIVE SURREY,Guildford Shakespeare Company,"Grants, Contributions & Donations","3,324.30",Grants - Member Allocation
03/10/2023,ACTIVE SURREY,Harrison Lowe Ltd,"Grants, Contributions & Donations","2,560.00",Non Trade Payment
03/10/2023,WOKING LOCAL CARE PD,High View Care Services Ltd,Residential Care,"40,477.08",Residential - OP
03/10/2023,EIF 3 & 4 YR OLD,Holy Trinity Pre School Ltd,Contributions to third parties,"1,934.00",Schools
03/10/2023,EIF 3 & 4 YR OLD,Holy Trinity Pre School Ltd,Contributions to third parties,"1,934.00",Schools
03/10/2023,EIF 2 YR OLD,Holy Trinity Pre-School Ltd,Contributions to third parties,800.00,Nursery
03/10/2023,EIF 3 & 4 YR OLD,Holy Trinity Pre-School Ltd,Contributions to third parties,800.00,Nursery
03/10/2023,SOUTH WEST AGENCY PLACE (ED),Hurst Lodge,External Placement Fees,571.21,SEN Specialist Supp
03/10/2023,NORTH WEST AGENCY PLACE (ED),Hurst Lodge,External Placement Fees,"2,320.00",SEN Specialist Supp
03/10/2023,NORTH WEST AGENCY PLACE (ED),Hurst Lodge,External Placement Fees,"1,472.99",SEN Specialist Supp
03/10/2023,NORTH WEST AGENCY PLACE (ED),Hurst Lodge,External Placement Fees,"4,682.00",SEN Specialist Supp
03/10/2023,NORTH EAST AGENCY PLACE (ED),Hurst Lodge,External Placement Fees,"1,600.00",SEN Specialist Supp
03/10/2023,NORTH EAST AGENCY PLACE (ED),Hurst Lodge,External Placement Fees,"2,428.00",SEN Specialist Supp
03/10/2023,NORTH EAST AGENCY PLACE (ED),Hurst Lodge,External Placement Fees,"1,600.00",SEN Specialist Supp
03/10/2023,NE AGENCY/SPI POST 16-EDUC,Hurst Lodge,External Placement Fees,"1,752.17",SEN Specialist Supp
03/10/2023,NORTH EAST AGENCY PLACE (ED),Hurst Lodge,External Placement Fees,"1,600.00",SEN Specialist Supp
03/10/2023,NORTH EAST AGENCY PLACE (ED),Hurst Lodge,External Placement Fees,"1,650.00",SEN Specialist Supp
03/10/2023,SOUTH WEST AGENCY PLACE (ED),Hurst Lodge,External Placement Fees,"1,600.00",SEN Specialist Supp
03/10/2023,NORTH WEST AGENCY PLACE (ED),Hurst Lodge,External Placement Fees,547.54,SEN Specialist Supp
03/10/2023,NORTH EAST AGENCY PLACE (ED),Hurst Lodge,External Placement Fees,734.05,SEN Specialist Supp
03/10/2023,NORTH WEST AGENCY PLACE (ED),Hurst Lodge,External Placement Fees,"2,664.65",SEN Specialist Supp
03/10/2023,NORTH WEST AGENCY PLACE (ED),Hurst Lodge,External Placement Fees,547.53,SEN Specialist Supp
03/10/2023,NORTH WEST AGENCY PLACE (ED),Hurst Lodge,External Placement Fees,"1,554.67",SEN Specialist Supp
03/10/2023,ACTIVE SURREY,In2Care Ltd,"Grants, Contributions & Donations","3,200.00",Non-Staff Training
03/10/2023,ACTIVE SURREY,Kidwise,"Grants, Contributions & Donations",624.00,Non Trade Payment
03/10/2023,ACTIVE SURREY,Kinetic Foundation,"Grants, Contributions & Donations","2,407.43",Grants - Member Allocation
03/10/2023,SCS SUPPORT/OTHER/SUMMER,Kings International College,School Balances,"4,230.00",Grants - Member Allocation
03/10/2023,SCS SUPPORT/OTHER/SUMMER,Kings International College,School Balances,"2,231.00",Grants - Member Allocation
03/10/2023,SCS SUPPORT/OTHER/SUMMER,Kings International College,School Balances,"1,666.54",Grants - Member Allocation
03/10/2023,SCS TEACHER/OTHER/SUMMER,Kings International College,School Balances,936.00,Grants - Member Allocation
03/10/2023,SCS TEACHER/OTHER/SUMMER,Kings International College,School Balances,"1,560.42",Grants - Member Allocation
03/10/2023,DOMESTIC HOMICIDE REVIEW CENTRAL SUPPORT,Know More Ltd,External Placement Fees,"3,375.00",Day Services
03/10/2023,OTHER HOMES LANGDOWN,Langdown Hostel,Long Term - Deferred Liabilities,579.00,Supp Living - MH
03/10/2023,OTHER HOMES LANGDOWN,Langdown Hostel,Long Term - Deferred Liabilities,610.00,Supp Living - MH
03/10/2023,LEATHERHEAD TRINITY SCHOOL,Leatherhead Trinity School & Nursery,Cash Equivalents,"200,660.00",Health Visiting
03/10/2023,SCS TEACHER/OTHER/SUMMER,Leatherhead Trinity School & Nursery,School Balances,"14,742.00",Health Visiting
03/10/2023,ACTIVE SURREY,Macca Sports Academies Ltd,"Grants, Contributions & Donations","6,480.00",Non Trade Payment
03/10/2023,LAND & PROPERTY CAPITAL,Management & Construction Services Ltd,"Construction, Conversion & Renovation","121,549.30",Edu Establishments
03/10/2023,CIVIL PARKING ENFORCEMENT (CPE),Marston Holdings Ltd,Payments to Private Contractors,"20,524.92",Roads Surveys
03/10/2023,HR CORPORATE TRAINING L&D,Medi Aid (UK) Ltd,Training Expenses - External General,510.00,Staff Training
03/10/2023,ASC L&D TRAINING,Medi Aid (UK) Ltd,Training Expenses - External General,510.00,Staff Training
03/10/2023,SCC - INVESTMENT MANAGEMENT,Minerva Analytics Ltd,Fees,"6,880.50",Non-Staff Expenses
03/10/2023,AGENCY NON CWD SOCIAL CARE,My Choice Children's Homes Ltd,External Placement Fees,"18,644.33",Not Applicable
03/10/2023,AGENCY NON CWD SOCIAL CARE,My Choice Children's Homes Ltd,External Placement Fees,"18,644.33",Not Applicable
03/10/2023,ACTIVE SURREY,Next Thing Education Camps Ltd,"Grants, Contributions & Donations","3,168.00",Non Trade Payment
03/10/2023,NORTH DOWNS PRIMARY SCHOOL,North Downs Primary School,Purchase of Equipment,"3,093.20",Schools
03/10/2023,WOKING CMHRS CARE,Oakley House Ltd,Residential Care,"29,178.57",Residential - LD
03/10/2023,SE CARE - CP & COURT LAC,Optimum Cars Ltd,Social Care Transport,"1,027.00",Taxi Hire (SEN Only)
03/10/2023,SCHOOLS CAPITAL,Park Mead Primary School,"Construction, Conversion & Renovation","26,549.74",Schools
03/10/2023,FEASIBILTY FUNDING - SCHOOL PROJECTS,Pick Everard,Fees,"25,034.80",M-D (Property)
03/10/2023,FEASIBILITY FUNDING,Pick Everard,Fees,"43,905.11",M-D (Property)
03/10/2023,LAND & PROPERTY CAPITAL,Pick Everard,Transfer Expenditure REFCUS,"22,204.70",M-D (Property)
03/10/2023,POLESDEN LACEY INFANT SCHOOL,Polesden Lacey Infant School,Other Hired & Contracting Services,669.44,Schools
03/10/2023,EIF 3 & 4 YR OLD,Rainbow Children Community Pre School,Contributions to third parties,570.00,Schools
03/10/2023,EIF 2 YR OLD,Rainbow Children Community Pre School,Contributions to third parties,"1,000.00",Schools
03/10/2023,SW AREA SEN MANAGEMENT TEAM,Redacted Personal Data,Compensation Claims payments,"11,400.00",Non-Staff Expenses
03/10/2023,NE AREA SEN MANAGEMENT TEAM,Redacted Personal Data,Compensation Claims payments,550.00,Non-Staff Expenses
03/10/2023,NE AREA SEN MANAGEMENT TEAM,Redacted Personal Data,Compensation Claims payments,900.00,Non-Staff Expenses
03/10/2023,SURREY HEATH LOCAL CARE PD,Redacted Personal Data,Direct Payments,840.10,Adults direct payment
03/10/2023,REIGATE & BANSTEAD LOCAL CARE OP,Redacted Personal Data,Direct Payments,576.34,Adults direct payment
03/10/2023,REIGATE & BANSTEAD LOCAL CARE PD,Redacted Personal Data,Direct Payments,"7,746.70",Adults direct payment
03/10/2023,Send Personal Budgets (SE),Redacted Personal Data,External Placement Fees,"7,098.71",Adults direct payment
03/10/2023,ACTIVE SURREY,Redacted Personal Data,"Grants, Contributions & Donations",990.00,Direct Payments
03/10/2023,SEN HOME TO SCHOOL TRANSPORT,Redacted Personal Data,Public Transport - Non Staff,"1,027.51",CYP Transport
03/10/2023,GUILDFORD LOCAL CARE OP,Redacted Personal Data,Direct Payments,555.00,Adults direct payment
03/10/2023,REIGATE & BANSTEAD LOCAL CARE OP,Redacted Personal Data,Direct Payments,"2,437.16",Adults direct payment
03/10/2023,SOUTH EAST CWD NON-LAC CARE,Redacted Personal Data,Direct Payments,"2,577.85",Individual - NEC
03/10/2023,SW PERSONAL BUDGET POST 16,Redacted Personal Data,External Placement Fees,"8,419.19",Adults direct payment
03/10/2023,NE PERSONAL BUDGET POST 16,Redacted Personal Data,External Placement Fees,"5,282.95",Family Support
03/10/2023,Send Personal Budgets (SW),Redacted Personal Data,External Placement Fees,547.53,Individual - NEC
03/10/2023,Send Personal Budgets (NW),Redacted Personal Data,External Placement Fees,"3,733.98",Individual - NEC
03/10/2023,Send Personal Budgets (NE),Redacted Personal Data,External Placement Fees,"3,290.71",Adults direct payment
03/10/2023,Send Personal Budgets (NW),Redacted Personal Data,External Placement Fees,"4,308.37",Adults direct payment
03/10/2023,Send Personal Budgets (SW),Redacted Personal Data,External Placement Fees,532.50,Individual - NEC
03/10/2023,NE PERSONAL BUDGET POST 16,Redacted Personal Data,External Placement Fees,"1,259.28",Adults direct payment
03/10/2023,SE CARE - NON-LAC CP & COURT,Redacted Personal Data,Children's Act S24 Payments,"4,550.00",Direct Payments
03/10/2023,SW CARE - LAC,Redacted Personal Data,Housing related support,752.00,Invoicing Plan Req.
03/10/2023,SW UASC & NRPF 18+ CARE,Redacted Personal Data,Housing related support,850.00,Individual - NEC
03/10/2023,LAC SAVINGS MATCH FUNDING,Redacted Personal Data,Direct Payments,627.63,Invoicing Plan Req.
03/10/2023,BIKEABILITY - CYCLE TRAINING,Restorative Now,Training Expenses - External General,900.00,Staff Training
03/10/2023,HIGHWAY MAINT CONTRACT - O'HEAD & PROFIT,Ringway Infrastructure Services Ltd,Payments to Private Contractors,"316,692.14",Highway - Construct
03/10/2023,HIGHWAYS CAPITAL,Ringway Infrastructure Services Ltd,"Construction, Conversion & Renovation","2,499.23",Highway - Construct
03/10/2023,HIGHWAYS CAPITAL,Ringway Infrastructure Services Ltd,"Construction, Conversion & Renovation","1,464.47",Highway - Construct
03/10/2023,HIGHWAYS CAPITAL,Ringway Infrastructure Services Ltd,"Construction, Conversion & Renovation","264,194.76",Highway - Construct
03/10/2023,HIGHWAYS CAPITAL,Ringway Infrastructure Services Ltd,"Construction, Conversion & Renovation","1,788.31",Highway - Construct
03/10/2023,HIGHWAYS CAPITAL,Ringway Infrastructure Services Ltd,"Construction, Conversion & Renovation","33,384.40",Highway - Construct
03/10/2023,HIGHWAYS CAPITAL,Ringway Infrastructure Services Ltd,"Construction, Conversion & Renovation","13,860.54",Highway - Construct
03/10/2023,HIGHWAYS CAPITAL,Ringway Infrastructure Services Ltd,"Construction, Conversion & Renovation","103,927.70",Highway - Construct
03/10/2023,HIGHWAYS CAPITAL,Ringway Infrastructure Services Ltd,"Construction, Conversion & Renovation","7,183.66",Highway - Construct
03/10/2023,HIGHWAYS CAPITAL,Ringway Infrastructure Services Ltd,"Construction, Conversion & Renovation","1,464.47",Highway - Construct
03/10/2023,HIGHWAYS CAPITAL,Ringway Infrastructure Services Ltd,"Construction, Conversion & Renovation","2,106.66",Highway - Construct
03/10/2023,HIGHWAYS CAPITAL,Ringway Infrastructure Services Ltd,"Construction, Conversion & Renovation","29,105.57",Highway - Construct
03/10/2023,HIGHWAYS CAPITAL,Ringway Infrastructure Services Ltd,"Construction, Conversion & Renovation","1,464.47",Highway - Construct
03/10/2023,HIGHWAYS CAPITAL,Ringway Infrastructure Services Ltd,"Construction, Conversion & Renovation","3,342.48",Highway - Construct
03/10/2023,HIGHWAYS CAPITAL,Ringway Infrastructure Services Ltd,"Construction, Conversion & Renovation","121,598.39",Highway - Construct
03/10/2023,HIGHWAYS CAPITAL,Ringway Infrastructure Services Ltd,"Construction, Conversion & Renovation","8,032.04",Highway - Construct
03/10/2023,HIGHWAYS CAPITAL,Ringway Infrastructure Services Ltd,"Construction, Conversion & Renovation","71,223.71",Highway - Construct
03/10/2023,HIGHWAYS CAPITAL,Ringway Infrastructure Services Ltd,"Construction, Conversion & Renovation","1,142.65",Highway - Construct
03/10/2023,HIGHWAYS CAPITAL,Ringway Infrastructure Services Ltd,"Construction, Conversion & Renovation","2,351.15",Highway - Construct
03/10/2023,HIGHWAYS CAPITAL,Ringway Infrastructure Services Ltd,"Construction, Conversion & Renovation","25,080.00",Highway - Construct
03/10/2023,HIGHWAYS CAPITAL,Ringway Infrastructure Services Ltd,"Construction, Conversion & Renovation","10,500.65",Highway - Construct
03/10/2023,HIGHWAYS CAPITAL,Ringway Infrastructure Services Ltd,"Construction, Conversion & Renovation","1,464.47",Highway - Construct
03/10/2023,HIGHWAYS CAPITAL,Ringway Infrastructure Services Ltd,"Construction, Conversion & Renovation","16,304.35",Highway - Construct
03/10/2023,HIGHWAYS CAPITAL,Ringway Infrastructure Services Ltd,"Construction, Conversion & Renovation","9,062.33",Highway - Construct
03/10/2023,HIGHWAYS CAPITAL,Ringway Infrastructure Services Ltd,"Construction, Conversion & Renovation","1,464.47",Highway - Construct
03/10/2023,HIGHWAYS CAPITAL,Ringway Infrastructure Services Ltd,"Construction, Conversion & Renovation","6,718.85",Highway - Construct
03/10/2023,HIGHWAYS CAPITAL,Ringway Infrastructure Services Ltd,"Construction, Conversion & Renovation","45,706.93",Highway - Construct
03/10/2023,HIGHWAYS CAPITAL,Ringway Infrastructure Services Ltd,"Construction, Conversion & Renovation","9,753.78",Highway - Construct
03/10/2023,HIGHWAYS CAPITAL,Ringway Infrastructure Services Ltd,"Construction, Conversion & Renovation","70,721.09",Highway - Construct
03/10/2023,HIGHWAYS CAPITAL,Ringway Infrastructure Services Ltd,"Construction, Conversion & Renovation","22,994.66",Highway - Construct
03/10/2023,GENERAL MAINT PRINCIPAL ROADS,Ringway Infrastructure Services Ltd,Payments to Private Contractors,"8,756.93",Highway - Construct
03/10/2023,GENERAL MAINT PRINCIPAL ROADS,Ringway Infrastructure Services Ltd,Payments to Private Contractors,"7,387.42",Highway - Construct
03/10/2023,GENERAL MAINT PRINCIPAL ROADS,Ringway Infrastructure Services Ltd,Payments to Private Contractors,"2,181.53",Highway - Construct
03/10/2023,HIGHWAYS CAPITAL,Ringway Infrastructure Services Ltd,"Construction, Conversion & Renovation","1,464.47",Highway - Construct
03/10/2023,HIGHWAYS CAPITAL,Ringway Infrastructure Services Ltd,"Construction, Conversion & Renovation","147,790.15",Highway - Construct
03/10/2023,HIGHWAYS CAPITAL,Ringway Infrastructure Services Ltd,"Construction, Conversion & Renovation","3,371.47",Highway - Construct
03/10/2023,HIGHWAYS CAPITAL,Ringway Infrastructure Services Ltd,"Construction, Conversion & Renovation","9,001.92",Highway - Construct
03/10/2023,HIGHWAYS CAPITAL,Ringway Infrastructure Services Ltd,"Construction, Conversion & Renovation","22,642.68",Highway - Construct
03/10/2023,HIGHWAYS CAPITAL,Ringway Infrastructure Services Ltd,"Construction, Conversion & Renovation","6,000.00",Highway - Construct
03/10/2023,HIGHWAYS CAPITAL,Ringway Infrastructure Services Ltd,"Construction, Conversion & Renovation","9,191.33",Highway - Construct
03/10/2023,HIGHWAYS CAPITAL,Ringway Infrastructure Services Ltd,"Construction, Conversion & Renovation","4,532.03",Highway - Construct
03/10/2023,HIGHWAYS CAPITAL,Ringway Infrastructure Services Ltd,"Construction, Conversion & Renovation","12,000.00",Highway - Construct
03/10/2023,HIGHWAYS CAPITAL,Ringway Infrastructure Services Ltd,"Construction, Conversion & Renovation","538,208.95",Highway - Construct
03/10/2023,HIGHWAYS CAPITAL,Ringway Infrastructure Services Ltd,"Construction, Conversion & Renovation","14,495.96",Highway - Construct
03/10/2023,HIGHWAYS CAPITAL,Ringway Infrastructure Services Ltd,"Construction, Conversion & Renovation","103,761.64",Highway - Construct
03/10/2023,HIGHWAYS CAPITAL,Ringway Infrastructure Services Ltd,"Construction, Conversion & Renovation","66,540.89",Highway - Construct
03/10/2023,HIGHWAYS CAPITAL,Ringway Infrastructure Services Ltd,"Construction, Conversion & Renovation","47,860.25",Highway - Construct
03/10/2023,HIGHWAYS CAPITAL,Ringway Infrastructure Services Ltd,"Construction, Conversion & Renovation","63,698.09",Highway - Construct
03/10/2023,DCP - SIGNALS - PR,Ringway Infrastructure Services Ltd,Payments to Private Contractors,"1,464.47",Highway - Construct
03/10/2023,HIGHWAYS CAPITAL,Ringway Infrastructure Services Ltd,"Construction, Conversion & Renovation","3,350.18",Highway - Construct
03/10/2023,HIGHWAYS CAPITAL,Ringway Infrastructure Services Ltd,"Construction, Conversion & Renovation","17,033.51",Highway - Construct
03/10/2023,HIGHWAYS CAPITAL,Ringway Infrastructure Services Ltd,"Construction, Conversion & Renovation","128,971.38",Highway - Construct
03/10/2023,HIGHWAYS CAPITAL,Ringway Infrastructure Services Ltd,"Construction, Conversion & Renovation","30,268.87",Highway - Construct
03/10/2023,HIGHWAYS CAPITAL,Ringway Infrastructure Services Ltd,"Construction, Conversion & Renovation","4,286.03",Highway - Construct
03/10/2023,GENERAL MAINT PRINCIPAL ROADS,Ringway Infrastructure Services Ltd,Payments to Private Contractors,"11,223.52",Highway - Construct
03/10/2023,HIGHWAYS CAPITAL,Ringway Infrastructure Services Ltd,"Construction, Conversion & Renovation","9,258.55",Highway - Construct
03/10/2023,HIGHWAYS CAPITAL,Ringway Infrastructure Services Ltd,"Construction, Conversion & Renovation","3,416.08",Highway - Construct
03/10/2023,HIGHWAYS CAPITAL,Ringway Infrastructure Services Ltd,"Construction, Conversion & Renovation","25,996.37",Highway - Construct
03/10/2023,HIGHWAYS CAPITAL,Ringway Infrastructure Services Ltd,"Construction, Conversion & Renovation","9,002.45",Highway - Construct
03/10/2023,HIGHWAYS CAPITAL,Ringway Infrastructure Services Ltd,"Construction, Conversion & Renovation","55,375.98",Highway - Construct
03/10/2023,HIGHWAYS CAPITAL,Ringway Infrastructure Services Ltd,"Construction, Conversion & Renovation","4,300.16",Highway - Construct
03/10/2023,HIGHWAYS CAPITAL,Ringway Infrastructure Services Ltd,"Construction, Conversion & Renovation","64,670.40",Highway - Construct
03/10/2023,HIGHWAYS CAPITAL,Ringway Infrastructure Services Ltd,"Construction, Conversion & Renovation","32,939.28",Highway - Construct
03/10/2023,HIGHWAYS CAPITAL,Ringway Infrastructure Services Ltd,"Construction, Conversion & Renovation","12,398.48",Highway - Construct
03/10/2023,HIGHWAYS CAPITAL,Ringway Infrastructure Services Ltd,"Construction, Conversion & Renovation","27,553.84",Highway - Construct
03/10/2023,HIGHWAYS CAPITAL,Ringway Infrastructure Services Ltd,"Construction, Conversion & Renovation","15,253.51",Highway - Construct
03/10/2023,HIGHWAYS CAPITAL,Ringway Infrastructure Services Ltd,"Construction, Conversion & Renovation","16,519.08",Highway - Construct
03/10/2023,HIGHWAYS CAPITAL,Ringway Infrastructure Services Ltd,"Construction, Conversion & Renovation","5,269.37",Highway - Construct
03/10/2023,HIGHWAYS CAPITAL,Ringway Infrastructure Services Ltd,"Construction, Conversion & Renovation","5,366.48",Highway - Construct
03/10/2023,HIGHWAYS CAPITAL,Ringway Infrastructure Services Ltd,"Construction, Conversion & Renovation","2,902.82",Highway - Construct
03/10/2023,HIGHWAY REPAIRS - COUNTYWIDE PR,Ringway Infrastructure Services Ltd,Payments to Private Contractors,"50,749.36",Highway - Construct
03/10/2023,HIGHWAYS CAPITAL,Ringway Infrastructure Services Ltd,"Construction, Conversion & Renovation","5,366.48",Highway - Construct
03/10/2023,HIGHWAYS CAPITAL,Ringway Infrastructure Services Ltd,"Construction, Conversion & Renovation","3,941.26",Highway - Construct
03/10/2023,HIGHWAYS CAPITAL,Ringway Infrastructure Services Ltd,"Construction, Conversion & Renovation","21,671.14",Highway - Construct
03/10/2023,OTHER HOMES RODNEY HOUSE,Rodney House HFE,Long Term - Deferred Liabilities,"1,315.45",Residential - MH
03/10/2023,SE CARE - CARE LEAVERS,Rosebery Housing Association,Housing related support,554.40,Grants - Member Allocation
03/10/2023,LD-Autism Central Team Care,Sans Soucie Home Care Ltd,Other Community Care,"1,183.52",Day Services
03/10/2023,LD-Autism Central Team Care,Sans Soucie Home Care Ltd,Other Community Care,"1,229.04",Day Services
03/10/2023,BEACON HILL COMM HINDHEAD,SCC Beacon Hill Community School,Cash Equivalents,"20,000.00",Schools
03/10/2023,CRANLEIGH C OF E VC PRIMARY SCHOOL,SCC Cranleigh COE Primary School,Other Hired & Contracting Services,"6,596.86",Schools
03/10/2023,CRANLEIGH C OF E VC PRIMARY SCHOOL,SCC Cranleigh COE Primary School,Other Hired & Contracting Services,"7,040.93",Schools
03/10/2023,HORSELL CEJ WOKING,SCC Horsell COE (A) Junior School,Agency Supply Staff,"8,708.00",Schools
03/10/2023,LYNE AND LONG CROSS CE,SCC Lyne & Longcross COE (A) School,Equipment & Materials Learning,"1,223.15",Schools
03/10/2023,ST CUTHBERTS CATH PRY ENGLEFIELD,SCC St Cuthberts Catholic Primary School,Cash Equivalents,"30,000.00",Schools
03/10/2023,ST MARYS CEI SHACKLEFORD,SCC St Marys COE (VC) Infant School,Consultancy Services,"1,924.84",Schools
03/10/2023,SCHOOLS CAPITAL,SCC St Peters COE Primary School,"Construction, Conversion & Renovation","1,679.28",Schools
03/10/2023,ST PETERS CEP WRECCLESHAM,SCC St Peters COE Primary School,Cash Equivalents,"9,333.71",Schools
03/10/2023,ST PETERS CEP WRECCLESHAM,SCC St Peters COE Primary School,Cash Equivalents,"8,579.04",Schools
03/10/2023,SCS SUPPORT/OTHER/SUMMER,Send COE Primary School,School Balances,"2,546.25",Schools
03/10/2023,WOKING LOCALITY TEAM,SHA Disability Consultancy Ltd,Other Community Care,"2,255.75",Specialist Serv
03/10/2023,ACTIVE SURREY,Sports Plus Scheme,"Grants, Contributions & Donations",797.30,Non Trade Payment
03/10/2023,ACTIVE SURREY,Sports4Kids UK Ltd,"Grants, Contributions & Donations","19,800.00",Family Support
03/10/2023,EIF 3 & 4 YR OLD,St Marys Pre School,Contributions to third parties,800.00,Nursery
03/10/2023,ACTIVE SURREY,Step8Up Ltd,"Grants, Contributions & Donations","1,044.00",Non Trade Payment
03/10/2023,LAND & PROPERTY CAPITAL,Stepnell Ltd,"Construction, Conversion & Renovation","3,630.70",Professional Project
03/10/2023,LD-Autism Central Team Care,Surrey & Borders Partnership NHS Trust,Residential Care Respite,624.60,Residential - MH
03/10/2023,RUNNYMEDE LOCAL CARE OP,Surrey Helping Hands Ltd,Home Care Services,"1,522.42",Dom Care - Adults
03/10/2023,RUNNYMEDE LOCAL CARE PD,Surrey Helping Hands Ltd,Home Care Services,"1,627.92",Dom Care - Adults
03/10/2023,RUNNYMEDE CMHRS CARE,Surrey Helping Hands Ltd,Home Care Services,"1,537.70",Dom Care - Adults
03/10/2023,RUNNYMEDE LOCAL CARE OP,Surrey Helping Hands Ltd,Home Care Services,"1,550.36",Dom Care - Adults
03/10/2023,RUNNYMEDE LOCAL CARE OP,Surrey Helping Hands Ltd,Home Care Services,"1,500.52",Dom Care - Adults
03/10/2023,RUNNYMEDE LOCAL CARE OP,Surrey Helping Hands Ltd,Home Care Services,"1,550.36",Dom Care - Adults
03/10/2023,RUNNYMEDE LOCAL CARE OP,Surrey Helping Hands Ltd,Home Care Services,"1,284.64",Dom Care - Adults
03/10/2023,RUNNYMEDE LOCAL CARE OP,Surrey Helping Hands Ltd,Home Care Services,578.62,Dom Care - Adults
03/10/2023,RUNNYMEDE LOCAL CARE OP,Surrey Helping Hands Ltd,Home Care Services,572.88,Dom Care - Adults
03/10/2023,LAND & PROPERTY CAPITAL,The McAvoy Group Ltd,"Construction, Conversion & Renovation","958,148.02",Edu Establishments
03/10/2023,NORTH WEST AGENCY PLACE (ED),The Pines School,Payments to Other Local Authorities,"3,639.31",SEN OLA
03/10/2023,LD-Autism Central Team Care,The Whitemore Centre,Day Care Services,933.79,Day Care - OP
03/10/2023,NORTH EAST CWD NON-LAC CARE,Topaz Care & Support Company Ltd,Home Care Services,576.00,Short break
03/10/2023,HIGHWAY DESIGN & DELIVERY TEAM,Topcon Positioning GB Ltd,Purchase of Equipment,"4,196.30",Highway - Construct
03/10/2023,STRATEGIC TREE MAINTENANCE - NPR,Transform Landscapes,"Property Repairs, Maintenance & Alterations","6,566.26",Arboricultural Works
03/10/2023,STRATEGIC TREE MAINTENANCE - NPR,Transform Landscapes,"Property Repairs, Maintenance & Alterations","4,362.78",Arboricultural Works
03/10/2023,CORPORATE ESTATE,Utility Results,Consultancy Services,"3,000.00",Env Consultancy
03/10/2023,CORPORATE ESTATE,Utility Results,Consultancy Services,"3,000.00",Env Consultancy
03/10/2023,REIGATE FIRE STATION,Veolia ES (UK) Ltd,Refuse Collection,903.84,Building Waste Mgt
03/10/2023,WOODHATCH,Veolia ES (UK) Ltd,Refuse Collection,852.34,Building Waste Mgt
03/10/2023,NE PERSONAL BUDGET POST 16,Redacted Personal Data ,External Placement Fees,"1,506.43",Individual - NEC
03/10/2023,EIF 3 & 4 YR OLD,West Byfleet Nursery Ltd,Contributions to third parties,800.00,Nursery
03/10/2023,NORTH EAST CWD NON-LAC CARE,White Lodge Centre,Residential Care Respite,"1,295.00",Day Care - PSD
03/10/2023,NORTH WEST CWD NON-LAC CARE,White Lodge Centre,Residential Care Respite,740.00,Day Care - PSD
03/10/2023,ACTIVE SURREY,YMCA East Surrey,"Grants, Contributions & Donations","15,557.00",Not Applicable
03/10/2023,CENTRAL COMMUNICATIONS,YouGov PLC,Consultancy Services,"27,216.00",Subscriptions
03/10/2023,NULL,Yunex Ltd,Returned BACS - Accounts Payable,"34,400.98",Customised & Bespoke
04/10/2023,GATEWAY TO RESOURCES,Access UK Ltd,Subscriptions (non staff),648.32,Social Care Consult
04/10/2023,HIGHWAY ENGINEERING TEAM,Adeo Global Consulting Ltd,Agency Supply Staff,"8,280.00",Env Consultancy
04/10/2023,AREA CARE VOUCHERS HOLDING CODE,Allpay Ltd,Contributions to third parties,"4,963.60",Misc One-off
04/10/2023,SOUTH EAST CWD NON-LAC CARE,Ambition 24 Hours,Home Care Services,"3,717.60",Supp Living - MH
04/10/2023,SOUTH EAST CWD NON-LAC CARE,Ambition 24 Hours,Home Care Services,"3,485.42",Supp Living - MH
04/10/2023,SOUTH WEST CWD NON-LAC CARE,Ambition 24 Hours,Home Care Services,"5,163.98",Supp Living - MH
04/10/2023,NE IPSB - ACADEMIES,Ashley COE (A) Primary School,External Placement Fees,"1,397.71",Schools
04/10/2023,NE IPSB - ACADEMIES,Ashley COE (A) Primary School,External Placement Fees,800.78,Schools
04/10/2023,NE IPSB - ACADEMIES,Ashley COE (A) Primary School,External Placement Fees,781.41,Schools
04/10/2023,NE IPSB - ACADEMIES,Ashley COE (A) Primary School,External Placement Fees,800.78,Schools
04/10/2023,NE IPSB - ACADEMIES,Ashley COE (A) Primary School,External Placement Fees,"4,698.49",Schools
04/10/2023,CARE LEAVERS PACKAGES,Aspirationz Ltd,External Placement Fees,"7,830.41",Sup Living Children
04/10/2023,ASYLUM SEEKERS 16-17,Aspirationz Ltd,External Placement Fees,"11,691.42",Sup Living Children
04/10/2023,AGENCY NON CWD SOCIAL CARE,Aspirationz Ltd,External Placement Fees,799.02,Sup Living Children
04/10/2023,AGENCY NON CWD SOCIAL CARE,Aspirationz Ltd,External Placement Fees,"10,797.42",Sup Living Children
04/10/2023,ASYLUM SEEKERS 16-17,Aspirationz Ltd,External Placement Fees,"11,744.57",Sup Living Children
04/10/2023,AGENCY NON CWD SOCIAL CARE,Aspirationz Ltd,External Placement Fees,"2,462.57",Sup Living Children
04/10/2023,SE IPSB - ACADEMIES,Aurora Academies Trust,External Placement Fees,771.23,Schools
04/10/2023,NE IPSB - ACADEMIES,Banstead Infant School,External Placement Fees,502.31,Schools
04/10/2023,SE IPSB - ACADEMIES,Banstead Infant School,External Placement Fees,600.14,Schools
04/10/2023,SE IPSB - ACADEMIES,Banstead Infant School,External Placement Fees,600.14,Schools
04/10/2023,NW IPSB - ACADEMIES,Barnsbury Primary School Academy,External Placement Fees,702.96,Schools
04/10/2023,NW IPSB - ACADEMIES,Barnsbury Primary School Academy,External Placement Fees,619.50,Schools
04/10/2023,NW IPSB - ACADEMIES,Barnsbury Primary School Academy,External Placement Fees,619.50,Schools
04/10/2023,NW IPSB - ACADEMIES,Barnsbury Primary School Academy,External Placement Fees,829.00,Schools
04/10/2023,NW IPSB - ACADEMIES,Barnsbury Primary School Academy,External Placement Fees,800.78,Schools
04/10/2023,NW IPSB - ACADEMIES,Barnsbury Primary School Academy,External Placement Fees,524.34,Schools
04/10/2023,NW IPSB - ACADEMIES,Beaufort Primary School,External Placement Fees,619.50,Grants - Member Allocation
04/10/2023,NW IPSB - ACADEMIES,Beaufort Primary School,External Placement Fees,702.96,Grants - Member Allocation
04/10/2023,NW IPSB - ACADEMIES,Beaufort Primary School,External Placement Fees,619.50,Grants - Member Allocation
04/10/2023,NW IPSB - ACADEMIES,Beaufort Primary School,External Placement Fees,502.31,Grants - Member Allocation
04/10/2023,NW IPSB - ACADEMIES,Beaufort Primary School,External Placement Fees,619.50,Grants - Member Allocation
04/10/2023,NW IPSB - ACADEMIES,Beaufort Primary School,External Placement Fees,502.31,Grants - Member Allocation
04/10/2023,NW IPSB - ACADEMIES,Beaufort Primary School,External Placement Fees,702.96,Grants - Member Allocation
04/10/2023,NW IPSB - ACADEMIES,Beaufort Primary School,External Placement Fees,600.14,Grants - Member Allocation
04/10/2023,NW IPSB - ACADEMIES,Beaufort Primary School,External Placement Fees,619.50,Grants - Member Allocation
04/10/2023,NW IPSB - ACADEMIES,Beaufort Primary School,External Placement Fees,502.31,Grants - Member Allocation
04/10/2023,NW IPSB - ACADEMIES,Beaufort Primary School,External Placement Fees,524.34,Grants - Member Allocation
04/10/2023,NORTH WEST AGENCY PLACE (ED),Beech Lodge School,External Placement Fees,"2,683.65",SEND Agncy Placement
04/10/2023,NORTH EAST AGENCY PLACE (ED),Beech Lodge School,External Placement Fees,"2,554.86",SEND Agncy Placement
04/10/2023,SOUTH WEST AGENCY PLACE (ED),Beech Lodge School,External Placement Fees,"4,232.76",SEND Agncy Placement
04/10/2023,NORTH EAST AGENCY PLACE (ED),Beech Lodge School,External Placement Fees,"3,045.90",SEND Agncy Placement
04/10/2023,NORTH EAST AGENCY PLACE (ED),Beech Lodge School,External Placement Fees,"3,206.20",SEND Agncy Placement
04/10/2023,NORTH WEST AGENCY PLACE (ED),Beech Lodge School,External Placement Fees,"2,525.31",SEND Agncy Placement
04/10/2023,NORTH EAST AGENCY PLACE (ED),Beech Lodge School,External Placement Fees,"4,732.71",SEND Agncy Placement
04/10/2023,NORTH WEST AGENCY PLACE (ED),Beechkeys Ltd,External Placement Fees,855.00,SEND Agncy Placement
04/10/2023,SOUTH EAST AGENCY PLACE (ED),Beechkeys Ltd,External Placement Fees,855.00,SEND Agncy Placement
04/10/2023,SOUTH EAST AGENCY PLACE (ED),Beechkeys Ltd,External Placement Fees,542.55,SEND Agncy Placement
04/10/2023,NW IPSB - ACADEMIES,Bishop David Brown School,External Placement Fees,524.34,Grants - Member Allocation
04/10/2023,NW IPSB - ACADEMIES,Bishop David Brown School,External Placement Fees,771.23,Grants - Member Allocation
04/10/2023,NW IPSB - ACADEMIES,Bishop David Brown School,External Placement Fees,524.34,Grants - Member Allocation
04/10/2023,NW IPSB - ACADEMIES,Bishop David Brown School,External Placement Fees,524.34,Grants - Member Allocation
04/10/2023,NW IPSB - ACADEMIES,Bishop David Brown School,External Placement Fees,524.34,Grants - Member Allocation
04/10/2023,NW IPSB - ACADEMIES,Bishop David Brown School,External Placement Fees,524.34,Grants - Member Allocation
04/10/2023,SW IPSB - ACADEMIES,Bishop David Brown School,External Placement Fees,524.34,Grants - Member Allocation
04/10/2023,NE IPSB - ACADEMIES,Blenheim High School,External Placement Fees,524.34,Schools
04/10/2023,NE IPSB - ACADEMIES,Blenheim High School,External Placement Fees,"9,000.00",Schools
04/10/2023,NE IPSB - NON DELEGATED,Blenheim High School,External Placement Fees,502.31,Schools
04/10/2023,NE IPSB - ACADEMIES,Blenheim High School,External Placement Fees,986.30,Schools
04/10/2023,NE IPSB - ACADEMIES,Blenheim High School,External Placement Fees,524.34,Schools
04/10/2023,NE IPSB - ACADEMIES,Blenheim High School,External Placement Fees,524.34,Schools
04/10/2023,NE IPSB - ACADEMIES,Blenheim High School,External Placement Fees,771.23,Schools
04/10/2023,NE IPSB - ACADEMIES,Blenheim High School,External Placement Fees,524.34,Schools
04/10/2023,NE IPSB - ACADEMIES,Blenheim High School,External Placement Fees,524.34,Schools
04/10/2023,NE IPSB - ACADEMIES,Blenheim High School,External Placement Fees,524.34,Schools
04/10/2023,NE IPSB - ACADEMIES,Blenheim High School,External Placement Fees,771.23,Schools
04/10/2023,SE IPSB - ACADEMIES,Blenheim High School,External Placement Fees,524.34,Schools
04/10/2023,NE IPSB - ACADEMIES,Blenheim High School,External Placement Fees,524.34,Schools
04/10/2023,NE IPSB - ACADEMIES,Blenheim High School,External Placement Fees,771.23,Schools
04/10/2023,NE IPSB - ACADEMIES,Blenheim High School,External Placement Fees,771.23,Schools
04/10/2023,NE IPSB - ACADEMIES,Blenheim High School,External Placement Fees,524.34,Schools
04/10/2023,NE IPSB - ACADEMIES,Blenheim High School,External Placement Fees,524.34,Schools
04/10/2023,SE IPSB - ACADEMIES,Blenheim High School,External Placement Fees,"1,755.41",Schools
04/10/2023,NE IPSB - ACADEMIES,Blenheim High School,External Placement Fees,524.34,Schools
04/10/2023,NE IPSB - ACADEMIES,Blenheim High School,External Placement Fees,524.34,Schools
04/10/2023,NE IPSB - ACADEMIES,Blenheim High School,External Placement Fees,"1,722.62",Schools
04/10/2023,NE IPSB - ACADEMIES,Blenheim High School,External Placement Fees,524.34,Schools
04/10/2023,NE IPSB - ACADEMIES,Blenheim High School,External Placement Fees,771.23,Schools
04/10/2023,NE IPSB - ACADEMIES,Blenheim High School,External Placement Fees,524.34,Schools
04/10/2023,NE IPSB - ACADEMIES,Blenheim High School,External Placement Fees,524.34,Schools
04/10/2023,NE IPSB - NON DELEGATED,Blenheim High School,External Placement Fees,"8,741.26",Schools
04/10/2023,SE IPSB - ACADEMIES,Bletchingley Village Primary School,External Placement Fees,797.57,Schools
04/10/2023,SE IPSB - ACADEMIES,Bletchingley Village Primary School,External Placement Fees,771.23,Schools
04/10/2023,SE IPSB - ACADEMIES,Bletchingley Village Primary School,External Placement Fees,771.23,Schools
04/10/2023,SE IPSB - ACADEMIES,Bletchingley Village Primary School,External Placement Fees,800.78,Schools
04/10/2023,SE IPSB - ACADEMIES,Bletchingley Village Primary School,External Placement Fees,800.62,Schools
04/10/2023,SW IPSB - ACADEMIES,Boxgrove Primary School,External Placement Fees,800.78,Grants - Member Allocation
04/10/2023,SW IPSB - ACADEMIES,Boxgrove Primary School,External Placement Fees,800.78,Grants - Member Allocation
04/10/2023,SW IPSB - ACADEMIES,Boxgrove Primary School,External Placement Fees,702.96,Grants - Member Allocation
04/10/2023,SW IPSB - ACADEMIES,Boxgrove Primary School,External Placement Fees,524.34,Grants - Member Allocation
04/10/2023,SW IPSB - ACADEMIES,Boxgrove Primary School,External Placement Fees,771.23,Grants - Member Allocation
04/10/2023,SE EDUCATION PSYCHOLOGISTS,Redacted Personal Data ,Consultancy Services,"7,400.00",Educ Consultancy
04/10/2023,TANDRIDGE LOCAL CARE OP,Britannia Homecare Ltd,Home Care Services,545.58,Not Applicable
04/10/2023,REIGATE & BANSTEAD LOCAL CARE OP,Britannia Homecare Ltd,Home Care Services,833.56,Not Applicable
04/10/2023,REIGATE & BANSTEAD LOCAL CARE OP,Britannia Homecare Ltd,Home Care Services,675.48,Not Applicable
04/10/2023,TANDRIDGE LOCAL CARE OP,Britannia Homecare Ltd,Home Care Services,833.56,Not Applicable
04/10/2023,TANDRIDGE LOCAL CARE OP,Britannia Homecare Ltd,Home Care Services,727.44,Not Applicable
04/10/2023,TANDRIDGE LOCAL CARE OP,Britannia Homecare Ltd,Home Care Services,"1,199.48",Not Applicable
04/10/2023,TANDRIDGE LOCAL CARE OP,Britannia Homecare Ltd,Home Care Services,"1,378.19",Not Applicable
04/10/2023,TANDRIDGE LOCAL CARE OP,Britannia Homecare Ltd,Home Care Services,"1,261.35",Not Applicable
04/10/2023,REIGATE & BANSTEAD LOCAL CARE OP,Britannia Homecare Ltd,Home Care Services,523.94,Not Applicable
04/10/2023,TANDRIDGE LOCAL CARE OP,Britannia Homecare Ltd,Home Care Services,521.64,Not Applicable
04/10/2023,REIGATE & BANSTEAD LOCAL CARE OP,Britannia Homecare Ltd,Home Care Services,545.58,Not Applicable
04/10/2023,REIGATE & BANSTEAD LOCAL CARE OP,Britannia Homecare Ltd,Home Care Services,731.32,Not Applicable
04/10/2023,TANDRIDGE LOCAL CARE OP,Britannia Homecare Ltd,Home Care Services,"1,448.44",Not Applicable
04/10/2023,REIGATE & BANSTEAD LOCAL CARE PD,Britannia Homecare Ltd,Home Care Services,757.04,Not Applicable
04/10/2023,TANDRIDGE LOCAL CARE OP,Britannia Homecare Ltd,Home Care Services,779.24,Not Applicable
04/10/2023,REIGATE & BANSTEAD LOCAL CARE OP,Britannia Homecare Ltd,Home Care Services,"1,045.80",Not Applicable
04/10/2023,REIGATE & BANSTEAD LOCAL CARE OP,Britannia Homecare Ltd,Home Care Services,597.38,Not Applicable
04/10/2023,TANDRIDGE LOCAL CARE OP,Britannia Homecare Ltd,Home Care Services,597.38,Not Applicable
04/10/2023,REIGATE & BANSTEAD LOCAL CARE OP,Britannia Homecare Ltd,Home Care Services,"1,246.56",Not Applicable
04/10/2023,REIGATE & BANSTEAD LOCAL CARE OP,Britannia Homecare Ltd,Home Care Services,915.84,Not Applicable
04/10/2023,REIGATE & BANSTEAD LOCAL CARE OP,Britannia Homecare Ltd,Home Care Services,872.18,Not Applicable
04/10/2023,TANDRIDGE LOCAL CARE PD,Britannia Homecare Ltd,Home Care Services,542.08,Not Applicable
04/10/2023,REIGATE & BANSTEAD LOCAL CARE OP,Britannia Homecare Ltd,Home Care Services,727.44,Not Applicable
04/10/2023,REIGATE & BANSTEAD LOCAL CARE OP,Britannia Homecare Ltd,Home Care Services,909.30,Not Applicable
04/10/2023,TANDRIDGE LOCAL CARE PD,Britannia Homecare Ltd,Home Care Services,"1,283.28",Not Applicable
04/10/2023,TANDRIDGE LOCAL CARE OP,Britannia Homecare Ltd,Home Care Services,724.22,Not Applicable
04/10/2023,REIGATE & BANSTEAD LOCAL CARE OP,Britannia Homecare Ltd,Home Care Services,"1,073.92",Not Applicable
04/10/2023,TANDRIDGE LOCAL CARE OP,Britannia Homecare Ltd,Home Care Services,597.38,Not Applicable
04/10/2023,TANDRIDGE LOCAL CARE PD,Britannia Homecare Ltd,Home Care Services,"1,701.72",Not Applicable
04/10/2023,TANDRIDGE LOCAL CARE OP,Britannia Homecare Ltd,Home Care Services,"1,210.28",Not Applicable
04/10/2023,REIGATE & BANSTEAD LOCAL CARE PD,Britannia Homecare Ltd,Home Care Services,"1,832.43",Not Applicable
04/10/2023,REIGATE & BANSTEAD LOCAL CARE OP,Britannia Homecare Ltd,Home Care Services,651.70,Not Applicable
04/10/2023,TANDRIDGE LOCAL CARE PD,Britannia Homecare Ltd,Home Care Services,"1,179.96",Not Applicable
04/10/2023,REIGATE & BANSTEAD LOCAL CARE OP,Britannia Homecare Ltd,Home Care Services,510.98,Not Applicable
04/10/2023,TANDRIDGE LOCAL CARE OP,Britannia Homecare Ltd,Home Care Services,"1,358.92",Not Applicable
04/10/2023,REIGATE & BANSTEAD LOCAL CARE PD,Britannia Homecare Ltd,Home Care Services,779.24,Not Applicable
04/10/2023,REIGATE & BANSTEAD LOCAL CARE OP,Britannia Homecare Ltd,Home Care Services,"1,558.48",Not Applicable
04/10/2023,REIGATE & BANSTEAD LOCAL CARE OP,Britannia Homecare Ltd,Home Care Services,"1,194.76",Not Applicable
04/10/2023,REIGATE & BANSTEAD LOCAL CARE OP,Britannia Homecare Ltd,Home Care Services,820.38,Not Applicable
04/10/2023,REIGATE & BANSTEAD LOCAL CARE OP,Britannia Homecare Ltd,Home Care Services,807.58,Not Applicable
04/10/2023,REIGATE & BANSTEAD LOCAL CARE OP,Britannia Homecare Ltd,Home Care Services,534.76,Not Applicable
04/10/2023,REIGATE & BANSTEAD LOCAL CARE OP,Britannia Homecare Ltd,Home Care Services,727.44,Not Applicable
04/10/2023,REIGATE & BANSTEAD LOCAL CARE PD,Britannia Homecare Ltd,Home Care Services,535.46,Not Applicable
04/10/2023,REIGATE & BANSTEAD LOCAL CARE OP,Britannia Homecare Ltd,Home Care Services,504.00,Not Applicable
04/10/2023,TANDRIDGE LOCAL CARE OP,Britannia Homecare Ltd,Home Care Services,779.24,Not Applicable
04/10/2023,REIGATE & BANSTEAD LOCAL CARE OP,Britannia Homecare Ltd,Home Care Services,"1,573.64",Not Applicable
04/10/2023,TANDRIDGE LOCAL CARE OP,Britannia Homecare Ltd,Home Care Services,582.58,Not Applicable
04/10/2023,TANDRIDGE LOCAL CARE OP,Britannia Homecare Ltd,Home Care Services,802.36,Not Applicable
04/10/2023,TANDRIDGE LOCAL CARE OP,Britannia Homecare Ltd,Home Care Services,552.98,Not Applicable
04/10/2023,REIGATE & BANSTEAD LOCAL CARE PD,Britannia Homecare Ltd,Home Care Services,"1,513.76",Not Applicable
04/10/2023,TANDRIDGE LOCAL CARE OP,Britannia Homecare Ltd,Home Care Services,545.58,Not Applicable
04/10/2023,TANDRIDGE LOCAL CARE PD,Britannia Homecare Ltd,Home Care Services,597.38,Not Applicable
04/10/2023,REIGATE & BANSTEAD LOCAL CARE OP,Britannia Homecare Ltd,Home Care Services,"1,539.21",Not Applicable
04/10/2023,REIGATE & BANSTEAD LOCAL CARE OP,Britannia Homecare Ltd,Home Care Services,545.58,Not Applicable
04/10/2023,TANDRIDGE LOCAL CARE OP,Britannia Homecare Ltd,Home Care Services,"1,318.18",Not Applicable
04/10/2023,REIGATE & BANSTEAD LOCAL CARE OP,Britannia Homecare Ltd,Home Care Services,597.38,Not Applicable
04/10/2023,TANDRIDGE LOCAL CARE OP,Britannia Homecare Ltd,Home Care Services,504.00,Not Applicable
04/10/2023,TANDRIDGE LOCAL CARE OP,Britannia Homecare Ltd,Home Care Services,614.87,Not Applicable
04/10/2023,REIGATE & BANSTEAD LOCAL CARE OP,Britannia Homecare Ltd,Home Care Services,556.22,Not Applicable
04/10/2023,NW IPSB - ACADEMIES,Broadmere Primary Academy,External Placement Fees,702.96,Schools
04/10/2023,NW IPSB - ACADEMIES,Broadmere Primary Academy,External Placement Fees,502.31,Schools
04/10/2023,NW IPSB - ACADEMIES,Broadmere Primary Academy,External Placement Fees,"2,390.00",Schools
04/10/2023,NW IPSB - ACADEMIES,Broadmere Primary Academy,External Placement Fees,502.31,Schools
04/10/2023,NW IPSB - ACADEMIES,Broadmere Primary Academy,External Placement Fees,"1,388.99",Schools
04/10/2023,NW IPSB - ACADEMIES,Broadmere Primary Academy,External Placement Fees,"2,725.00",Schools
04/10/2023,NW IPSB - ACADEMIES,Broadmere Primary Academy,External Placement Fees,"1,279.49",Schools
04/10/2023,SW IPSB - ACADEMIES,Broadwater School,External Placement Fees,524.34,Schools
04/10/2023,SW IPSB - ACADEMIES,Broadwater School,External Placement Fees,524.34,Schools
04/10/2023,SW IPSB - ACADEMIES,Broadwater School,External Placement Fees,524.34,Schools
04/10/2023,SW IPSB - ACADEMIES,Broadwater School,External Placement Fees,771.23,Schools
04/10/2023,SW IPSB - ACADEMIES,Broadwater School,External Placement Fees,524.34,Schools
04/10/2023,SW IPSB - ACADEMIES,Broadwater School,External Placement Fees,524.34,Schools
04/10/2023,SW IPSB - ACADEMIES,Broadwater School,External Placement Fees,524.34,Schools
04/10/2023,SW IPSB - ACADEMIES,Broadwater School,External Placement Fees,771.23,Schools
04/10/2023,NW IPSB - ACADEMIES,Brookwood Primary School,External Placement Fees,"1,716.59",Schools
04/10/2023,SW IPSB - ACADEMIES,Brookwood Primary School,External Placement Fees,524.34,Schools
04/10/2023,NW IPSB - ACADEMIES,Brookwood Primary School,External Placement Fees,619.50,Schools
04/10/2023,NW IPSB - ACADEMIES,Brookwood Primary School,External Placement Fees,771.23,Schools
04/10/2023,NW IPSB - ACADEMIES,Brookwood Primary School,External Placement Fees,502.31,Schools
04/10/2023,SYSTEMS INFORMATION AND TECHNOLOGY,BT UK Business Accounts,Telephones,"25,862.33",Telecare
04/10/2023,NW IPSB - ACADEMIES,Burpham Foundation Primary School,External Placement Fees,504.00,Schools
04/10/2023,SW IPSB - ACADEMIES,Burpham Foundation Primary School,External Placement Fees,504.00,Schools
04/10/2023,SW IPSB - ACADEMIES,Burpham Foundation Primary School,External Placement Fees,771.23,Schools
04/10/2023,SW IPSB - ACADEMIES,Burpham Foundation Primary School,External Placement Fees,800.00,Schools
04/10/2023,SW IPSB - ACADEMIES,Burpham Foundation Primary School,External Placement Fees,742.00,Schools
04/10/2023,SW IPSB - ACADEMIES,Burpham Foundation Primary School,External Placement Fees,"1,295.00",Schools
04/10/2023,SW IPSB - ACADEMIES,Burpham Foundation Primary School,External Placement Fees,771.23,Schools
04/10/2023,SW IPSB - ACADEMIES,Busbridge Infant School,External Placement Fees,771.23,Schools
04/10/2023,NW IPSB - ACADEMIES,Byfleet Primary School,External Placement Fees,702.96,Schools
04/10/2023,NW IPSB - ACADEMIES,Byfleet Primary School,External Placement Fees,621.00,Schools
04/10/2023,NW IPSB - ACADEMIES,Byfleet Primary School,External Placement Fees,"2,416.60",Schools
04/10/2023,NW IPSB - ACADEMIES,Byfleet Primary School,External Placement Fees,524.34,Schools
04/10/2023,SOUTH WEST AGENCY PLACE (ED),Cambian Asperger Syndrome Services,External Placement Fees,"25,979.54",SEN Specialist Supp
04/10/2023,PLD TRANSITION CARE,Cambian Asperger Syndrome Services,Other Internal Transfers,"19,325.12",SEN Specialist Supp
04/10/2023,NW AGENCY/SPI POST 16-EDUC,Cambian Asperger Syndrome Services,External Placement Fees,"23,948.60",SEN Specialist Supp
04/10/2023,NORTH WEST AGENCY PLACE (ED),Cambian Asperger Syndrome Services,External Placement Fees,"9,283.83",SEN Specialist Supp
04/10/2023,NE AGENCY/SPI POST 16-EDUC,Canbury School,External Placement Fees,"14,314.68",SEN Specialist Supp
04/10/2023,NE AGENCY/SPI POST 16-EDUC,Canbury School,External Placement Fees,"2,040.00",SEN Specialist Supp
04/10/2023,NE IPSB - ACADEMIES,Cardinal Newman Catholic Primary School,External Placement Fees,502.31,Schools
04/10/2023,NE IPSB - ACADEMIES,Cardinal Newman Catholic Primary School,External Placement Fees,619.50,Schools
04/10/2023,TANDRIDGE LOCAL CARE OP,Care Centred Ltd,Home Care Services,690.62,Dom Care - Adults
04/10/2023,LD-Autism Central Team Care,Care Centred Ltd,Home Care Services,693.86,Dom Care - Adults
04/10/2023,TANDRIDGE LOCAL CARE OP,Care Centred Ltd,Home Care Services,546.42,Dom Care - Adults
04/10/2023,TANDRIDGE LOCAL CARE OP,Care Centred Ltd,Home Care Services,796.88,Dom Care - Adults
04/10/2023,REIGATE & BANSTEAD LOCAL CARE OP,Care Centred Ltd,Home Care Services,"1,533.00",Dom Care - Adults
04/10/2023,TANDRIDGE LOCAL CARE OP,Care Centred Ltd,Home Care Services,584.36,Dom Care - Adults
04/10/2023,LD-Autism Central Team Care,Care Centred Ltd,Home Care Services,679.82,Dom Care - Adults
04/10/2023,SOUTH EAST AGENCY PLACE (ED),Carmichael Education Ltd,External Placement Fees,"17,413.19",SEND Agncy Placement
04/10/2023,GUM SEXUAL HEALTH INTEGRATED CONTRACT,Central & North West London NHS,Other Agencies/Contractors,"11,894.40",Health Promotion
04/10/2023,GUM SEXUAL HEALTH INTEGRATED CONTRACT,Central & North West London NHS,Other Agencies/Contractors,"9,611.40",Health Promotion
04/10/2023,GUM SEXUAL HEALTH INTEGRATED CONTRACT,Central & North West London NHS,Other Agencies/Contractors,"13,096.80",Health Promotion
04/10/2023,GUM SEXUAL HEALTH INTEGRATED CONTRACT,Central & North West London NHS,Other Agencies/Contractors,"46,666.40",Health Promotion
04/10/2023,GUM SEXUAL HEALTH INTEGRATED CONTRACT,Central & North West London NHS,Other Agencies/Contractors,"25,342.34",Health Promotion
04/10/2023,GUM SEXUAL HEALTH INTEGRATED CONTRACT,Central & North West London NHS,Other Agencies/Contractors,"22,766.32",Health Promotion
04/10/2023,GUM SEXUAL HEALTH INTEGRATED CONTRACT,Central & North West London NHS,Other Agencies/Contractors,"85,933.00",Health Promotion
04/10/2023,GUM SEXUAL HEALTH INTEGRATED CONTRACT,Central & North West London NHS,Other Agencies/Contractors,"98,701.00",Health Promotion
04/10/2023,GUM SEXUAL HEALTH INTEGRATED CONTRACT,Central & North West London NHS,Other Agencies/Contractors,"92,938.00",Health Promotion
04/10/2023,GUM SEXUAL HEALTH INTEGRATED CONTRACT,Central & North West London NHS,Other Agencies/Contractors,"25,061.23",Health Promotion
04/10/2023,GUM SEXUAL HEALTH INTEGRATED CONTRACT,Central & North West London NHS,Other Agencies/Contractors,"6,215.00",Health Promotion
04/10/2023,GUM SEXUAL HEALTH INTEGRATED CONTRACT,Central & North West London NHS,Other Agencies/Contractors,"45,292.00",Health Promotion
04/10/2023,GUM SEXUAL HEALTH INTEGRATED CONTRACT,Central & North West London NHS,Other Agencies/Contractors,"45,292.00",Health Promotion
04/10/2023,GUM SEXUAL HEALTH INTEGRATED CONTRACT,Central & North West London NHS,Other Agencies/Contractors,"45,292.00",Health Promotion
04/10/2023,CSIDE ESTATES OPS,Centrewire Ltd,"Property Repairs, Maintenance & Alterations","2,451.60",General Build Maint
04/10/2023,NW IPSB - ACADEMIES,Chertsey High School,External Placement Fees,524.34,Grants - Member Allocation
04/10/2023,NW IPSB - ACADEMIES,Chertsey High School,External Placement Fees,771.23,Grants - Member Allocation
04/10/2023,NW IPSB - ACADEMIES,Chertsey High School,External Placement Fees,524.34,Grants - Member Allocation
04/10/2023,NW IPSB - ACADEMIES,Chertsey High School,External Placement Fees,524.34,Grants - Member Allocation
04/10/2023,NW IPSB - ACADEMIES,Chertsey High School,External Placement Fees,771.23,Grants - Member Allocation
04/10/2023,NW IPSB - ACADEMIES,Chertsey High School,External Placement Fees,771.23,Grants - Member Allocation
04/10/2023,NW IPSB - ACADEMIES,Chertsey High School,External Placement Fees,771.23,Grants - Member Allocation
04/10/2023,NE IPSB - ACADEMIES,Chertsey High School,External Placement Fees,771.23,Grants - Member Allocation
04/10/2023,NW IPSB - ACADEMIES,Chertsey High School,External Placement Fees,524.34,Grants - Member Allocation
04/10/2023,NE IPSB - ACADEMIES,Cleves Academy Trust,External Placement Fees,800.78,Schools
04/10/2023,NE IPSB - ACADEMIES,Cleves Academy Trust,External Placement Fees,702.96,Schools
04/10/2023,NE IPSB - ACADEMIES,Cleves Academy Trust,External Placement Fees,800.78,Schools
04/10/2023,NE IPSB - ACADEMIES,Cleves Academy Trust,External Placement Fees,502.31,Schools
04/10/2023,NW IPSB - ACADEMIES,Cleves Academy Trust,External Placement Fees,800.78,Schools
04/10/2023,NE IPSB - ACADEMIES,Cleves Academy Trust,External Placement Fees,800.78,Schools
04/10/2023,NE IPSB - ACADEMIES,Cleves Academy Trust,External Placement Fees,799.90,Schools
04/10/2023,NE IPSB - ACADEMIES,Cleves Academy Trust,External Placement Fees,502.31,Schools
04/10/2023,NE IPSB - ACADEMIES,Cobham Free School,External Placement Fees,524.34,Grants - Member Allocation
04/10/2023,NE IPSB - ACADEMIES,Cobham Free School,External Placement Fees,524.34,Grants - Member Allocation
04/10/2023,NE IPSB - ACADEMIES,Cobham Free School,External Placement Fees,829.72,Grants - Member Allocation
04/10/2023,NE IPSB - ACADEMIES,Cobham Free School,External Placement Fees,771.23,Grants - Member Allocation
04/10/2023,NE IPSB - ACADEMIES,Cobham Free School,External Placement Fees,771.23,Grants - Member Allocation
04/10/2023,NE IPSB - ACADEMIES,Cobham Free School,External Placement Fees,524.34,Grants - Member Allocation
04/10/2023,NE IPSB - ACADEMIES,Cobham Free School,External Placement Fees,524.34,Grants - Member Allocation
04/10/2023,NE IPSB - ACADEMIES,Cobham Free School,External Placement Fees,524.34,Grants - Member Allocation
04/10/2023,NE IPSB - ACADEMIES,Cobham Free School,External Placement Fees,771.23,Grants - Member Allocation
04/10/2023,NE IPSB - ACADEMIES,Cobham Free School,External Placement Fees,524.34,Grants - Member Allocation
04/10/2023,NE IPSB - ACADEMIES,Cobham Free School,External Placement Fees,771.23,Grants - Member Allocation
04/10/2023,NE IPSB - ACADEMIES,Cobham Free School,External Placement Fees,771.23,Grants - Member Allocation
04/10/2023,NE IPSB - ACADEMIES,Cobham Free School,External Placement Fees,524.34,Grants - Member Allocation
04/10/2023,NE IPSB - ACADEMIES,Cobham Free School,External Placement Fees,524.34,Grants - Member Allocation
04/10/2023,NE IPSB - ACADEMIES,Cobham Free School,External Placement Fees,502.31,Grants - Member Allocation
04/10/2023,NE IPSB - ACADEMIES,Cobham Free School,External Placement Fees,771.23,Grants - Member Allocation
04/10/2023,NE IPSB - ACADEMIES,Cobham Free School,External Placement Fees,502.31,Grants - Member Allocation
04/10/2023,NE IPSB - ACADEMIES,Cobham Free School,External Placement Fees,502.31,Grants - Member Allocation
04/10/2023,NE IPSB - ACADEMIES,Cobham Free School,External Placement Fees,524.34,Grants - Member Allocation
04/10/2023,NE IPSB - ACADEMIES,Cobham Free School,External Placement Fees,800.78,Grants - Member Allocation
04/10/2023,NE IPSB - ACADEMIES,Cobham Free School,External Placement Fees,800.78,Grants - Member Allocation
04/10/2023,NE IPSB - ACADEMIES,Cobham Free School,External Placement Fees,800.78,Grants - Member Allocation
04/10/2023,NE IPSB - ACADEMIES,Cobham Free School,External Placement Fees,799.90,Grants - Member Allocation
04/10/2023,REASONABLE ADJUSTMENTS,Redacted Personal Data ,Translating & Interpreter Services,945.00,Individual - NEC
04/10/2023,NW IPSB - ACADEMIES,Collingwood College,External Placement Fees,524.34,Schools
04/10/2023,NW IPSB - ACADEMIES,Collingwood College,External Placement Fees,518.37,Schools
04/10/2023,NW IPSB - ACADEMIES,Collingwood College,External Placement Fees,524.34,Schools
04/10/2023,NW IPSB - ACADEMIES,Collingwood College,External Placement Fees,771.23,Schools
04/10/2023,NW IPSB - ACADEMIES,Collingwood College,External Placement Fees,"1,075.56",Schools
04/10/2023,NW IPSB - ACADEMIES,Collingwood College,External Placement Fees,771.23,Schools
04/10/2023,NW IPSB - ACADEMIES,Collingwood College,External Placement Fees,524.34,Schools
04/10/2023,NW IPSB - ACADEMIES,Collingwood College,External Placement Fees,524.34,Schools
04/10/2023,NW IPSB - ACADEMIES,Collingwood College,External Placement Fees,718.37,Schools
04/10/2023,NW IPSB - ACADEMIES,Collingwood College,External Placement Fees,524.34,Schools
04/10/2023,AGENCY NON CWD SOCIAL CARE,Compass Fostering South Ltd,External Placement Fees,"3,852.85",Fostering IFA
04/10/2023,AGENCY NON CWD SOCIAL CARE,Compass Fostering South Ltd,External Placement Fees,"4,355.54",Fostering IFA
04/10/2023,AGENCY NON CWD SOCIAL CARE,Compass Fostering South Ltd,External Placement Fees,"3,756.53",Fostering IFA
04/10/2023,AGENCY NON CWD SOCIAL CARE,Compass Fostering South Ltd,External Placement Fees,"3,790.53",Fostering IFA
04/10/2023,AGENCY NON CWD SOCIAL CARE,Compass Fostering South Ltd,External Placement Fees,"3,655.69",Fostering IFA
04/10/2023,AGENCY NON CWD SOCIAL CARE,Compass Fostering South Ltd,External Placement Fees,"3,756.53",Fostering IFA
04/10/2023,AGENCY NON CWD SOCIAL CARE,Compass Fostering South Ltd,External Placement Fees,"3,662.61",Fostering IFA
04/10/2023,AGENCY NON CWD SOCIAL CARE,Compass Fostering South Ltd,External Placement Fees,"3,756.53",Fostering IFA
04/10/2023,AGENCY NON CWD SOCIAL CARE,Compass Fostering South Ltd,External Placement Fees,"3,662.61",Fostering IFA
04/10/2023,AGENCY NON CWD SOCIAL CARE,Compass Fostering South Ltd,External Placement Fees,"5,258.93",Fostering IFA
04/10/2023,AGENCY NON CWD SOCIAL CARE,Compass Fostering South Ltd,External Placement Fees,536.72,Fostering IFA
04/10/2023,AGENCY NON CWD SOCIAL CARE,Compass Fostering South Ltd,External Placement Fees,"4,355.54",Fostering IFA
04/10/2023,AGENCY NON CWD SOCIAL CARE,Compass Fostering South Ltd,External Placement Fees,"3,756.53",Fostering IFA
04/10/2023,AGENCY NON CWD SOCIAL CARE,Compass Fostering South Ltd,External Placement Fees,"3,756.53",Fostering IFA
04/10/2023,AGENCY NON CWD SOCIAL CARE,Compass Fostering South Ltd,External Placement Fees,"3,756.53",Fostering IFA
04/10/2023,AGENCY NON CWD SOCIAL CARE,Compass Fostering South Ltd,External Placement Fees,"3,764.33",Fostering IFA
04/10/2023,NW IPSB - ACADEMIES,Connaught Junior School,External Placement Fees,820.14,Schools
04/10/2023,NW IPSB - ACADEMIES,Connaught Junior School,External Placement Fees,664.23,Schools
04/10/2023,NW IPSB - ACADEMIES,Connaught Junior School,External Placement Fees,524.34,Schools
04/10/2023,NW IPSB - ACADEMIES,Connaught Junior School,External Placement Fees,771.23,Schools
04/10/2023,NW IPSB - ACADEMIES,Cordwalles Junior School,External Placement Fees,"2,804.34",Grants - Member Allocation
04/10/2023,NW IPSB - ACADEMIES,Cordwalles Junior School,External Placement Fees,503.85,Grants - Member Allocation
04/10/2023,NW IPSB - ACADEMIES,Cordwalles Junior School,External Placement Fees,"13,820.91",Grants - Member Allocation
04/10/2023,NW IPSB - ACADEMIES,Crawley Ridge Infant School,External Placement Fees,524.34,Schools
04/10/2023,NW IPSB - ACADEMIES,Crawley Ridge Junior School,External Placement Fees,502.31,Schools
04/10/2023,NW IPSB - ACADEMIES,Crawley Ridge Junior School,External Placement Fees,"1,299.95",Schools
04/10/2023,NW IPSB - ACADEMIES,Cross Farm Infant School,External Placement Fees,502.31,Schools
04/10/2023,NW IPSB - ACADEMIES,Cross Farm Infant School,External Placement Fees,799.90,Schools
04/10/2023,CARERS CONTRACTS,Crossroads Care Surrey,Nursing Care Respite,"99,877.00",Not Applicable
04/10/2023,NE IPSB - ACADEMIES,Cuddington Community Primary School,External Placement Fees,771.23,Schools
04/10/2023,NE IPSB - ACADEMIES,Cuddington Community Primary School,External Placement Fees,993.21,Schools
04/10/2023,SE IPSB - ACADEMIES,Cuddington Community Primary School,External Placement Fees,"1,291.68",Schools
04/10/2023,NE IPSB - ACADEMIES,Cuddington Community Primary School,External Placement Fees,524.34,Schools
04/10/2023,NE IPSB - NON DELEGATED,Cuddington Community Primary School,External Placement Fees,"4,089.80",Schools
04/10/2023,NE IPSB - ACADEMIES,Cuddington Community Primary School,External Placement Fees,714.11,Schools
04/10/2023,NE IPSB - ACADEMIES,Danetree Junior School,External Placement Fees,664.23,Schools
04/10/2023,NE IPSB - ACADEMIES,Danetree Junior School,External Placement Fees,702.96,Schools
04/10/2023,NE IPSB - ACADEMIES,Danetree Junior School,External Placement Fees,800.78,Schools
04/10/2023,NE IPSB - ACADEMIES,Danetree Junior School,External Placement Fees,502.31,Schools
04/10/2023,NE IPSB - ACADEMIES,Danetree Junior School,External Placement Fees,702.96,Schools
04/10/2023,NE IPSB - ACADEMIES,Danetree Junior School,External Placement Fees,502.31,Schools
04/10/2023,NE IPSB - ACADEMIES,Danetree Junior School,External Placement Fees,502.31,Schools
04/10/2023,NE IPSB - ACADEMIES,Danetree Junior School,External Placement Fees,502.31,Schools
04/10/2023,NE IPSB - ACADEMIES,Danetree Junior School,External Placement Fees,502.31,Schools
04/10/2023,NE IPSB - ACADEMIES,Danetree Junior School,External Placement Fees,619.50,Schools
04/10/2023,NE IPSB - ACADEMIES,Danetree Junior School,External Placement Fees,502.31,Schools
04/10/2023,NE IPSB - ACADEMIES,Danetree Junior School,External Placement Fees,625.77,Schools
04/10/2023,NE IPSB - NON DELEGATED,Danetree Junior School,External Placement Fees,"4,043.00",Schools
04/10/2023,NW IPSB - ACADEMIES,Darley Dene Primary School,External Placement Fees,502.99,Schools
04/10/2023,NW IPSB - ACADEMIES,Darley Dene Primary School,External Placement Fees,781.41,Schools
04/10/2023,SE IPSB - ACADEMIES,De Stafford School,External Placement Fees,"2,901.45",Schools
04/10/2023,SE IPSB - ACADEMIES,De Stafford School,External Placement Fees,714.11,Schools
04/10/2023,SE IPSB - ACADEMIES,De Stafford School,External Placement Fees,993.21,Schools
04/10/2023,SE IPSB - ACADEMIES,De Stafford School,External Placement Fees,771.23,Schools
04/10/2023,SE IPSB - ACADEMIES,De Stafford School,External Placement Fees,921.00,Schools
04/10/2023,SE IPSB - ACADEMIES,De Stafford School,External Placement Fees,"4,577.00",Schools
04/10/2023,SE IPSB - ACADEMIES,De Stafford School,External Placement Fees,524.34,Schools
04/10/2023,SE IPSB - ACADEMIES,De Stafford School,External Placement Fees,524.34,Schools
04/10/2023,SE IPSB - ACADEMIES,De Stafford School,External Placement Fees,524.34,Schools
04/10/2023,IT&D CAPITAL,Dell Corporation Ltd,Purchase of Information & Communication Tech,"50,586.00",Hardware - Sys
04/10/2023,SE IPSB - ACADEMIES,Dovers Green School,External Placement Fees,800.78,Schools
04/10/2023,SE IPSB - ACADEMIES,Dovers Green School,External Placement Fees,502.31,Schools
04/10/2023,SE IPSB - ACADEMIES,Dovers Green School,External Placement Fees,"1,776.02",Schools
04/10/2023,SE IPSB - ACADEMIES,Dovers Green School,External Placement Fees,702.96,Schools
04/10/2023,SE IPSB - ACADEMIES,Dovers Green School,External Placement Fees,502.31,Schools
04/10/2023,SE IPSB - ACADEMIES,Dovers Green School,External Placement Fees,771.23,Schools
04/10/2023,SE IPSB - ACADEMIES,Dovers Green School,External Placement Fees,"1,295.00",Schools
04/10/2023,INSURANCE FUND - PUBLIC LIABILITY,DWF Law LLP,Long Term - Other provisions,"1,332.68",General Support
04/10/2023,INSURANCE FUND - PUBLIC LIABILITY,DWF Law LLP,Long Term - Other provisions,"11,228.40",General Support
04/10/2023,INSURANCE FUND - PUBLIC LIABILITY,DWF Law LLP,Long Term - Other provisions,"1,685.40",General Support
04/10/2023,NE IPSB - ACADEMIES,Echelford Academy,External Placement Fees,502.31,Schools
04/10/2023,NE IPSB - ACADEMIES,Echelford Academy,External Placement Fees,502.31,Schools
04/10/2023,NE IPSB - ACADEMIES,Echelford Academy,External Placement Fees,524.34,Schools
04/10/2023,NE IPSB - ACADEMIES,Echelford Academy,External Placement Fees,502.31,Schools
04/10/2023,NE IPSB - ACADEMIES,Echelford Academy,External Placement Fees,524.34,Schools
04/10/2023,NE IPSB - ACADEMIES,ElmWey Learning Trust,External Placement Fees,771.23,Schools
04/10/2023,NE IPSB - ACADEMIES,ElmWey Learning Trust,External Placement Fees,524.34,Schools
04/10/2023,NE IPSB - ACADEMIES,ElmWey Learning Trust,External Placement Fees,524.34,Schools
04/10/2023,NE IPSB - ACADEMIES,ElmWey Learning Trust,External Placement Fees,524.34,Schools
04/10/2023,NE IPSB - ACADEMIES,ElmWey Learning Trust,External Placement Fees,771.23,Schools
04/10/2023,NE IPSB - ACADEMIES,ElmWey Learning Trust,External Placement Fees,771.23,Schools
04/10/2023,NE IPSB - ACADEMIES,Epsom & Ewell High School,External Placement Fees,524.34,Staff Training
04/10/2023,NE IPSB - ACADEMIES,Epsom & Ewell High School,External Placement Fees,771.23,Staff Training
04/10/2023,NE IPSB - ACADEMIES,Epsom & Ewell High School,External Placement Fees,524.34,Staff Training
04/10/2023,NE IPSB - ACADEMIES,Epsom & Ewell High School,External Placement Fees,524.34,Staff Training
04/10/2023,NE IPSB - ACADEMIES,Epsom & Ewell High School,External Placement Fees,524.34,Staff Training
04/10/2023,NE IPSB - ACADEMIES,Epsom & Ewell High School,External Placement Fees,524.34,Staff Training
04/10/2023,NE IPSB - ACADEMIES,Epsom & Ewell High School,External Placement Fees,524.34,Staff Training
04/10/2023,NE IPSB - ACADEMIES,Epsom & Ewell High School,External Placement Fees,771.23,Staff Training
04/10/2023,SE IPSB - ACADEMIES,Epsom & Ewell High School,External Placement Fees,771.23,Staff Training
04/10/2023,SE IPSB - ACADEMIES,Epsom & Ewell High School,External Placement Fees,524.34,Staff Training
04/10/2023,NE IPSB - ACADEMIES,Epsom Primary School,External Placement Fees,800.78,Schools
04/10/2023,NE IPSB - ACADEMIES,Epsom Primary School,External Placement Fees,"2,044.94",Schools
04/10/2023,NE IPSB - ACADEMIES,Epsom Primary School,External Placement Fees,502.31,Schools
04/10/2023,NE IPSB - ACADEMIES,Epsom Primary School,External Placement Fees,502.31,Schools
04/10/2023,NE IPSB - ACADEMIES,Epsom Primary School,External Placement Fees,762.05,Schools
04/10/2023,NE IPSB - ACADEMIES,Epsom Primary School,External Placement Fees,502.31,Schools
04/10/2023,NE IPSB - ACADEMIES,Epsom Primary School,External Placement Fees,800.78,Schools
04/10/2023,NE IPSB - ACADEMIES,Epsom Primary School,External Placement Fees,"2,548.94",Schools
04/10/2023,SE IPSB - ACADEMIES,Epsom Primary School,External Placement Fees,771.23,Schools
04/10/2023,NE IPSB - ACADEMIES,Epsom Primary School,External Placement Fees,702.96,Schools
04/10/2023,NE IPSB - ACADEMIES,Epsom Primary School,External Placement Fees,502.31,Schools
04/10/2023,NE IPSB - ACADEMIES,Epsom Primary School,External Placement Fees,502.31,Schools
04/10/2023,SE IPSB - ACADEMIES,Epsom Primary School,External Placement Fees,"1,295.00",Schools
04/10/2023,NE IPSB - ACADEMIES,Epsom Primary School,External Placement Fees,502.31,Schools
04/10/2023,NE IPSB - ACADEMIES,Epsom Primary School,External Placement Fees,524.34,Schools
04/10/2023,NE IPSB - ACADEMIES,Esher COE (A) Primary School,External Placement Fees,"1,631.14",Schools
04/10/2023,NE IPSB - ACADEMIES,Esher COE (A) Primary School,External Placement Fees,520.06,Schools
04/10/2023,NE IPSB - ACADEMIES,Esher COE (A) Primary School,External Placement Fees,643.61,Schools
04/10/2023,NE IPSB - ACADEMIES,Esher COE (A) Primary School,External Placement Fees,684.79,Schools
04/10/2023,NE IPSB - ACADEMIES,Esher COE (A) Primary School,External Placement Fees,828.94,Schools
04/10/2023,NE IPSB - ACADEMIES,Esher COE (A) Primary School,External Placement Fees,502.31,Schools
04/10/2023,NE IPSB - ACADEMIES,Esher COE (A) Primary School,External Placement Fees,664.23,Schools
04/10/2023,NE IPSB - ACADEMIES,Esher COE (A) Primary School,External Placement Fees,568.56,Schools
04/10/2023,NE IPSB - ACADEMIES,Esher COE (A) Primary School,External Placement Fees,"6,919.78",Schools
04/10/2023,NE IPSB - ACADEMIES,Esher COE High School,External Placement Fees,524.34,Schools
04/10/2023,NE IPSB - ACADEMIES,Esher COE High School,External Placement Fees,524.34,Schools
04/10/2023,NE IPSB - ACADEMIES,Esher COE High School,External Placement Fees,524.34,Schools
04/10/2023,NE IPSB - ACADEMIES,Esher COE High School,External Placement Fees,524.34,Schools
04/10/2023,NE IPSB - ACADEMIES,Esher COE High School,External Placement Fees,"2,545.00",Schools
04/10/2023,NE IPSB - ACADEMIES,Esher COE High School,External Placement Fees,902.00,Schools
04/10/2023,NE IPSB - ACADEMIES,Esher COE High School,External Placement Fees,771.23,Schools
04/10/2023,NE IPSB - ACADEMIES,Esher COE High School,External Placement Fees,"3,855.00",Schools
04/10/2023,NE IPSB - ACADEMIES,Esher COE High School,External Placement Fees,524.34,Schools
04/10/2023,NE IPSB - ACADEMIES,Esher COE High School,External Placement Fees,524.34,Schools
04/10/2023,NE IPSB - ACADEMIES,Esher COE High School,External Placement Fees,524.34,Schools
04/10/2023,NE IPSB - ACADEMIES,Esher COE High School,External Placement Fees,524.34,Schools
04/10/2023,NE IPSB - ACADEMIES,Esher COE High School,External Placement Fees,524.34,Schools
04/10/2023,NE IPSB - ACADEMIES,Esher COE High School,External Placement Fees,524.34,Schools
04/10/2023,NE IPSB - ACADEMIES,Esher COE High School,External Placement Fees,524.34,Schools
04/10/2023,NE IPSB - ACADEMIES,Esher COE High School,External Placement Fees,524.34,Schools
04/10/2023,NE IPSB - ACADEMIES,Esher COE High School,External Placement Fees,524.34,Schools
04/10/2023,NE IPSB - ACADEMIES,Esher COE High School,External Placement Fees,524.34,Schools
04/10/2023,NE IPSB - ACADEMIES,Esher COE High School,External Placement Fees,524.34,Schools
04/10/2023,NE IPSB - ACADEMIES,Esher COE High School,External Placement Fees,524.34,Schools
04/10/2023,NE IPSB - ACADEMIES,Esher COE High School,External Placement Fees,771.23,Schools
04/10/2023,NE IPSB - ACADEMIES,Esher COE High School,External Placement Fees,791.87,Schools
04/10/2023,NE IPSB - ACADEMIES,Esher COE High School,External Placement Fees,524.34,Schools
04/10/2023,NE IPSB - ACADEMIES,Esher COE High School,External Placement Fees,524.34,Schools
04/10/2023,NE IPSB - ACADEMIES,Esher COE High School,External Placement Fees,"4,582.00",Schools
04/10/2023,NE IPSB - ACADEMIES,Esher COE High School,External Placement Fees,"35,566.16",Schools
04/10/2023,NE IPSB - ACADEMIES,Esher COE High School,External Placement Fees,"3,262.28",Schools
04/10/2023,SEN HOME TO SCHOOL TRANSPORT,Euclid Ltd,IT Software Maintenance,"1,000.68",Appl Serv Provision
04/10/2023,SCC - INVESTMENT MANAGEMENT,Eversheds LLP,Legal Expenses,"1,194.00",Staff Training
04/10/2023,SCC - INVESTMENT MANAGEMENT,Eversheds LLP,Legal Expenses,"1,194.00",Staff Training
04/10/2023,EPSOM IN-HOUSE FAMILY CENTRE,Family Links,Training Expenses - External General,550.00,Family Support
04/10/2023,SW IPSB - ACADEMIES,Farnham Heath End School,External Placement Fees,524.34,Schools
04/10/2023,SW IPSB - ACADEMIES,Farnham Heath End School,External Placement Fees,771.23,Schools
04/10/2023,SW IPSB - NON DELEGATED,Farnham Heath End School,External Placement Fees,800.78,Schools
04/10/2023,SW IPSB - ACADEMIES,Farnham Heath End School,External Placement Fees,771.23,Schools
04/10/2023,SW IPSB - ACADEMIES,Farnham Heath End School,External Placement Fees,771.23,Schools
04/10/2023,EIF 3 & 4 YR OLD,Flying Start Pre-school,Contributions to third parties,"3,666.00",Nursery
04/10/2023,NW IPSB - ACADEMIES,Fordway Centre,External Placement Fees,"3,600.00",Schools
04/10/2023,NW IPSB - ACADEMIES,Frimley COE Junior School,External Placement Fees,520.06,Schools
04/10/2023,NW IPSB - ACADEMIES,Frimley COE Junior School,External Placement Fees,520.06,Schools
04/10/2023,NW IPSB - ACADEMIES,Frimley COE Junior School,External Placement Fees,502.31,Schools
04/10/2023,NW IPSB - ACADEMIES,Frimley COE Junior School,External Placement Fees,524.34,Schools
04/10/2023,NW IPSB - ACADEMIES,Frimley COE Junior School,External Placement Fees,502.31,Schools
04/10/2023,NW IPSB - ACADEMIES,Frimley COE Junior School,External Placement Fees,"3,738.21",Schools
04/10/2023,NW IPSB - ACADEMIES,Fullbrook School,External Placement Fees,"3,186.00",Staff Training
04/10/2023,NW IPSB - ACADEMIES,Fullbrook School,External Placement Fees,524.34,Staff Training
04/10/2023,NW IPSB - ACADEMIES,Fullbrook School,External Placement Fees,"8,584.40",Staff Training
04/10/2023,NW IPSB - ACADEMIES,Fullbrook School,External Placement Fees,"5,392.88",Staff Training
04/10/2023,NW IPSB - ACADEMIES,Fullbrook School,External Placement Fees,524.34,Staff Training
04/10/2023,NW IPSB - ACADEMIES,Fullbrook School,External Placement Fees,524.34,Staff Training
04/10/2023,NW IPSB - ACADEMIES,Fullbrook School,External Placement Fees,771.23,Staff Training
04/10/2023,NW IPSB - ACADEMIES,Fullbrook School,External Placement Fees,771.23,Staff Training
04/10/2023,NW IPSB - ACADEMIES,Fullbrook School,External Placement Fees,524.34,Staff Training
04/10/2023,SW IPSB - ACADEMIES,George Abbot School -Academy,External Placement Fees,524.34,Schools
04/10/2023,SW IPSB - ACADEMIES,George Abbot School -Academy,External Placement Fees,524.34,Schools
04/10/2023,SW IPSB - ACADEMIES,George Abbot School -Academy,External Placement Fees,524.34,Schools
04/10/2023,SW IPSB - ACADEMIES,George Abbot School -Academy,External Placement Fees,771.23,Schools
04/10/2023,SW IPSB - ACADEMIES,George Abbot School -Academy,External Placement Fees,524.34,Schools
04/10/2023,SW IPSB - ACADEMIES,George Abbot School -Academy,External Placement Fees,771.23,Schools
04/10/2023,SW IPSB - ACADEMIES,George Abbot School -Academy,External Placement Fees,771.23,Schools
04/10/2023,SW IPSB - ACADEMIES,George Abbot School -Academy,External Placement Fees,771.23,Schools
04/10/2023,SW IPSB - ACADEMIES,George Abbot School -Academy,External Placement Fees,524.34,Schools
04/10/2023,SW IPSB - ACADEMIES,George Abbot School -Academy,External Placement Fees,771.23,Schools
04/10/2023,SW IPSB - ACADEMIES,George Abbot School -Academy,External Placement Fees,771.23,Schools
04/10/2023,SW IPSB - ACADEMIES,George Abbot School -Academy,External Placement Fees,902.00,Schools
04/10/2023,SW IPSB - ACADEMIES,George Abbot School -Academy,External Placement Fees,524.34,Schools
04/10/2023,SW IPSB - ACADEMIES,George Abbot School -Academy,External Placement Fees,524.34,Schools
04/10/2023,SW IPSB - ACADEMIES,George Abbot School -Academy,External Placement Fees,771.23,Schools
04/10/2023,NE IPSB - ACADEMIES,Glyn School,External Placement Fees,524.34,Info Advice Guidance
04/10/2023,NE IPSB - ACADEMIES,Glyn School,External Placement Fees,518.37,Info Advice Guidance
04/10/2023,NE IPSB - ACADEMIES,Glyn School,External Placement Fees,524.34,Info Advice Guidance
04/10/2023,NE IPSB - ACADEMIES,Glyn School,External Placement Fees,524.34,Info Advice Guidance
04/10/2023,NE IPSB - ACADEMIES,Glyn School,External Placement Fees,524.34,Info Advice Guidance
04/10/2023,NE IPSB - ACADEMIES,Glyn School,External Placement Fees,771.23,Info Advice Guidance
04/10/2023,NE IPSB - ACADEMIES,Glyn School,External Placement Fees,771.23,Info Advice Guidance
04/10/2023,SE IPSB - ACADEMIES,Glyn School,External Placement Fees,771.23,Info Advice Guidance
04/10/2023,NE IPSB - ACADEMIES,Glyn School,External Placement Fees,771.23,Info Advice Guidance
04/10/2023,NW IPSB - ACADEMIES,Goldsworth Primary School,External Placement Fees,"2,662.00",Schools
04/10/2023,NW IPSB - ACADEMIES,Goldsworth Primary School,External Placement Fees,800.78,Schools
04/10/2023,SW IPSB - ACADEMIES,Goldsworth Primary School,External Placement Fees,820.14,Schools
04/10/2023,NW IPSB - ACADEMIES,Goldsworth Primary School,External Placement Fees,"3,607.72",Schools
04/10/2023,NW IPSB - ACADEMIES,Goldsworth Primary School,External Placement Fees,"5,633.24",Schools
04/10/2023,NW IPSB - ACADEMIES,Goldsworth Primary School,External Placement Fees,580.77,Schools
04/10/2023,NW IPSB - ACADEMIES,Goldsworth Primary School,External Placement Fees,800.78,Schools
04/10/2023,NW IPSB - ACADEMIES,Goldsworth Primary School,External Placement Fees,524.34,Schools
04/10/2023,NW IPSB - ACADEMIES,Goldsworth Primary School,External Placement Fees,502.31,Schools
04/10/2023,NW IPSB - ACADEMIES,Goldsworth Primary School,External Placement Fees,"10,003.00",Schools
04/10/2023,NW IPSB - ACADEMIES,Goldsworth Primary School,External Placement Fees,519.00,Schools
04/10/2023,NW IPSB - ACADEMIES,Goldsworth Primary School,External Placement Fees,"4,170.00",Schools
04/10/2023,NW IPSB - ACADEMIES,Goldsworth Primary School,External Placement Fees,"4,965.00",Schools
04/10/2023,NW IPSB - ACADEMIES,Gordons School Academy Trust,External Placement Fees,771.23,Schools
04/10/2023,SW IPSB - ACADEMIES,Gordons School Academy Trust,External Placement Fees,"8,085.95",Schools
04/10/2023,NW IPSB - ACADEMIES,Gordons School Academy Trust,External Placement Fees,524.34,Schools
04/10/2023,NW IPSB - ACADEMIES,Gordons School Academy Trust,External Placement Fees,"1,023.00",Schools
04/10/2023,NW IPSB - ACADEMIES,Gordons School Academy Trust,External Placement Fees,524.34,Schools
04/10/2023,SW IPSB - ACADEMIES,Guildford County School,External Placement Fees,771.23,Schools
04/10/2023,SW IPSB - ACADEMIES,Guildford County School,External Placement Fees,524.34,Schools
04/10/2023,SW IPSB - ACADEMIES,Guildford County School,External Placement Fees,"3,246.90",Schools
04/10/2023,SW IPSB - ACADEMIES,Guildford County School,External Placement Fees,771.23,Schools
04/10/2023,SW IPSB - ACADEMIES,Guildford County School,External Placement Fees,518.37,Schools
04/10/2023,SW IPSB - ACADEMIES,Guildford County School,External Placement Fees,524.34,Schools
04/10/2023,SW IPSB - ACADEMIES,Guildford County School,External Placement Fees,524.34,Schools
04/10/2023,SW IPSB - ACADEMIES,Guildford County School,External Placement Fees,524.34,Schools
04/10/2023,SW IPSB - ACADEMIES,Guildford County School,External Placement Fees,771.23,Schools
04/10/2023,SW IPSB - ACADEMIES,Guildford County School,External Placement Fees,524.34,Schools
04/10/2023,SW IPSB - ACADEMIES,Guildford County School,External Placement Fees,"2,512.00",Schools
04/10/2023,SW IPSB - ACADEMIES,Guildford County School,External Placement Fees,524.34,Schools
04/10/2023,SW IPSB - ACADEMIES,Guildford County School,External Placement Fees,524.34,Schools
04/10/2023,SW IPSB - ACADEMIES,Guildford County School,External Placement Fees,771.23,Schools
04/10/2023,SW IPSB - ACADEMIES,Guildford County School,External Placement Fees,771.23,Schools
04/10/2023,SW IPSB - ACADEMIES,Guildford County School,External Placement Fees,524.34,Schools
04/10/2023,SW IPSB - ACADEMIES,Guildford County School,External Placement Fees,771.23,Schools
04/10/2023,SW IPSB - ACADEMIES,Guildford County School,External Placement Fees,"1,091.00",Schools
04/10/2023,NW IPSB - ACADEMIES,Guildford Grove Primary School,External Placement Fees,964.82,Schools
04/10/2023,SE IPSB - ACADEMIES,Guildford Grove Primary School,External Placement Fees,"1,530.06",Schools
04/10/2023,SW IPSB - ACADEMIES,Guildford Grove Primary School,External Placement Fees,502.31,Schools
04/10/2023,SW IPSB - ACADEMIES,Guildford Grove Primary School,External Placement Fees,800.78,Schools
04/10/2023,SW IPSB - ACADEMIES,Guildford Grove Primary School,External Placement Fees,873.00,Schools
04/10/2023,SW IPSB - ACADEMIES,Guildford Grove Primary School,External Placement Fees,800.78,Schools
04/10/2023,SW IPSB - ACADEMIES,Guildford Grove Primary School,External Placement Fees,"6,604.00",Schools
04/10/2023,SW IPSB - ACADEMIES,Guildford Grove Primary School,External Placement Fees,524.34,Schools
04/10/2023,NW IPSB - ACADEMIES,Guildford Grove Primary School,External Placement Fees,558.00,Schools
04/10/2023,SW IPSB - NON DELEGATED,Guildford Grove Primary School,External Placement Fees,"3,413.82",Schools
04/10/2023,SW IPSB - ACADEMIES,Guildford Grove Primary School,External Placement Fees,800.78,Schools
04/10/2023,SW IPSB - ACADEMIES,Guildford Grove Primary School,External Placement Fees,800.78,Schools
04/10/2023,SW IPSB - ACADEMIES,Guildford Grove Primary School,External Placement Fees,502.31,Schools
04/10/2023,SW IPSB - ACADEMIES,Hale Primary School,External Placement Fees,502.31,Schools
04/10/2023,NW IPSB - ACADEMIES,Hammond School,External Placement Fees,800.78,Schools
04/10/2023,NW IPSB - ACADEMIES,Hammond School,External Placement Fees,502.31,Schools
04/10/2023,NW IPSB - ACADEMIES,Hammond School,External Placement Fees,702.96,Schools
04/10/2023,NW IPSB - ACADEMIES,Hammond School,External Placement Fees,501.99,Schools
04/10/2023,NW IPSB - ACADEMIES,Hammond School,External Placement Fees,781.41,Schools
04/10/2023,NW IPSB - ACADEMIES,Hammond School,External Placement Fees,800.78,Schools
04/10/2023,NW IPSB - ACADEMIES,Hammond School,External Placement Fees,619.50,Schools
04/10/2023,NW IPSB - ACADEMIES,Hammond School,External Placement Fees,800.78,Schools
04/10/2023,NW IPSB - ACADEMIES,Hammond School,External Placement Fees,800.78,Schools
04/10/2023,NW IPSB - ACADEMIES,Hammond School,External Placement Fees,524.34,Schools
04/10/2023,SE IPSB - NON DELEGATED,Hamsey Green Primary School,External Placement Fees,888.08,Schools
04/10/2023,SE IPSB - ACADEMIES,Hamsey Green Primary School,External Placement Fees,580.77,Schools
04/10/2023,SE IPSB - NON DELEGATED,Hamsey Green Primary School,External Placement Fees,"18,008.00",Schools
04/10/2023,SE IPSB - ACADEMIES,Hamsey Green Primary School,External Placement Fees,"4,839.00",Schools
04/10/2023,SE IPSB - ACADEMIES,Hamsey Green Primary School,External Placement Fees,"3,239.00",Schools
04/10/2023,SW IPSB - ACADEMIES,Highfield South Farnham Primary School,External Placement Fees,619.50,Schools
04/10/2023,SW IPSB - ACADEMIES,Highfield South Farnham Primary School,External Placement Fees,771.23,Schools
04/10/2023,SW IPSB - ACADEMIES,Highfield South Farnham Primary School,External Placement Fees,524.34,Schools
04/10/2023,SW IPSB - ACADEMIES,Highfield South Farnham Primary School,External Placement Fees,800.78,Schools
04/10/2023,SE IPSB - ACADEMIES,Hillcroft Primary School,External Placement Fees,800.78,Schools
04/10/2023,SE IPSB - ACADEMIES,Hillcroft Primary School,External Placement Fees,800.78,Schools
04/10/2023,SE IPSB - ACADEMIES,Hillcroft Primary School,External Placement Fees,502.31,Schools
04/10/2023,SE IPSB - ACADEMIES,Hillcroft Primary School,External Placement Fees,524.34,Schools
04/10/2023,SE IPSB - ACADEMIES,Hillcroft Primary School,External Placement Fees,"1,978.00",Schools
04/10/2023,SE IPSB - ACADEMIES,Hillcroft Primary School,External Placement Fees,"1,970.80",Schools
04/10/2023,SE IPSB - ACADEMIES,Hillcroft Primary School,External Placement Fees,771.23,Schools
04/10/2023,SE IPSB - ACADEMIES,Hillcroft Primary School,External Placement Fees,853.00,Schools
04/10/2023,SE IPSB - ACADEMIES,Hillcroft Primary School,External Placement Fees,771.23,Schools
04/10/2023,SE IPSB - ACADEMIES,Hillcroft Primary School,External Placement Fees,985.00,Schools
04/10/2023,SE IPSB - ACADEMIES,Hillcroft Primary School,External Placement Fees,800.78,Schools
04/10/2023,NE IPSB - ACADEMIES,Hinchley Wood School,External Placement Fees,781.00,Grants - Member Allocation
04/10/2023,NE IPSB - ACADEMIES,Hinchley Wood School,External Placement Fees,771.23,Grants - Member Allocation
04/10/2023,NE IPSB - ACADEMIES,Hinchley Wood School,External Placement Fees,771.23,Grants - Member Allocation
04/10/2023,NE IPSB - ACADEMIES,Hinchley Wood School,External Placement Fees,993.21,Grants - Member Allocation
04/10/2023,NE IPSB - ACADEMIES,Hinchley Wood School,External Placement Fees,524.34,Grants - Member Allocation
04/10/2023,NE IPSB - ACADEMIES,Hinchley Wood School,External Placement Fees,771.23,Grants - Member Allocation
04/10/2023,NE IPSB - ACADEMIES,Hinchley Wood School,External Placement Fees,771.23,Grants - Member Allocation
04/10/2023,NE IPSB - ACADEMIES,Hinchley Wood School,External Placement Fees,771.23,Grants - Member Allocation
04/10/2023,NE IPSB - ACADEMIES,Hinchley Wood School,External Placement Fees,524.34,Grants - Member Allocation
04/10/2023,NE IPSB - ACADEMIES,Hinchley Wood School,External Placement Fees,771.23,Grants - Member Allocation
04/10/2023,NW IPSB - ACADEMIES,Hoe Valley School,External Placement Fees,524.34,Pensions
04/10/2023,NW IPSB - ACADEMIES,Hoe Valley School,External Placement Fees,771.23,Pensions
04/10/2023,NW IPSB - ACADEMIES,Hoe Valley School,External Placement Fees,524.34,Pensions
04/10/2023,NW IPSB - ACADEMIES,Hoe Valley School,External Placement Fees,524.34,Pensions
04/10/2023,NW IPSB - ACADEMIES,Hoe Valley School,External Placement Fees,524.34,Pensions
04/10/2023,NW IPSB - ACADEMIES,Hoe Valley School,External Placement Fees,771.23,Pensions
04/10/2023,SW IPSB - ACADEMIES,Hoe Valley School,External Placement Fees,"1,004.00",Pensions
04/10/2023,NW IPSB - ACADEMIES,Hoe Valley School,External Placement Fees,771.23,Pensions
04/10/2023,NW IPSB - ACADEMIES,Hoe Valley School,External Placement Fees,524.34,Pensions
04/10/2023,NW IPSB - ACADEMIES,Hoe Valley School,External Placement Fees,816.00,Pensions
04/10/2023,NW IPSB - ACADEMIES,Hoe Valley School,External Placement Fees,824.00,Pensions
04/10/2023,NW IPSB - ACADEMIES,Hoe Valley School,External Placement Fees,524.34,Pensions
04/10/2023,NW IPSB - ACADEMIES,Hoe Valley School,External Placement Fees,524.34,Pensions
04/10/2023,NW IPSB - ACADEMIES,Hoe Valley School,External Placement Fees,524.34,Pensions
04/10/2023,SE IPSB - ACADEMIES,Holland Junior School,External Placement Fees,665.15,Schools
04/10/2023,SE IPSB - ACADEMIES,Holland Junior School,External Placement Fees,702.96,Schools
04/10/2023,SE IPSB - ACADEMIES,Holland Junior School,External Placement Fees,799.90,Schools
04/10/2023,SW IPSB - ACADEMIES,Holly Lodge Primary School,External Placement Fees,"2,766.12",Schools
04/10/2023,SW IPSB - ACADEMIES,Holly Lodge Primary School,External Placement Fees,"4,174.00",Schools
04/10/2023,SW IPSB - ACADEMIES,Holly Lodge Primary School,External Placement Fees,524.34,Schools
04/10/2023,SW IPSB - ACADEMIES,Holly Lodge Primary School,External Placement Fees,"2,180.31",Schools
04/10/2023,SW IPSB - ACADEMIES,Holly Lodge Primary School,External Placement Fees,800.78,Schools
04/10/2023,SE IPSB - ACADEMIES,Holmesdale Community Infant School,External Placement Fees,"5,173.00",Schools
04/10/2023,NW IPSB - ACADEMIES,Holy Family Catholic Primary School,External Placement Fees,502.31,Schools
04/10/2023,NW IPSB - ACADEMIES,Holy Family Catholic Primary School,External Placement Fees,702.96,Schools
04/10/2023,NW IPSB - ACADEMIES,Holy Trinity CofE Primary School,External Placement Fees,703.21,Schools
04/10/2023,SW CARE - CP & COURT LAC,House of Fisher Ltd,Housing related support,"2,387.84",Res Care
04/10/2023,NE IPSB - ACADEMIES,Howard of Effingham School,External Placement Fees,771.23,Educ Finance Serv
04/10/2023,SE IPSB - ACADEMIES,Howard of Effingham School,External Placement Fees,518.37,Educ Finance Serv
04/10/2023,SE IPSB - ACADEMIES,Howard of Effingham School,External Placement Fees,524.34,Educ Finance Serv
04/10/2023,SW IPSB - ACADEMIES,Howard of Effingham School,External Placement Fees,524.34,Educ Finance Serv
04/10/2023,SW IPSB - ACADEMIES,Howard of Effingham School,External Placement Fees,524.34,Educ Finance Serv
04/10/2023,SE IPSB - ACADEMIES,Howard of Effingham School,External Placement Fees,771.23,Educ Finance Serv
04/10/2023,NE IPSB - ACADEMIES,Howard of Effingham School,External Placement Fees,524.34,Educ Finance Serv
04/10/2023,SE IPSB - ACADEMIES,Howard of Effingham School,External Placement Fees,524.34,Educ Finance Serv
04/10/2023,NE IPSB - ACADEMIES,Howard of Effingham School,External Placement Fees,524.34,Educ Finance Serv
04/10/2023,SE IPSB - ACADEMIES,Howard of Effingham School,External Placement Fees,771.23,Educ Finance Serv
04/10/2023,SE IPSB - ACADEMIES,Howard of Effingham School,External Placement Fees,524.34,Educ Finance Serv
04/10/2023,GREENER FUTURES,IChoosr Ltd,Security / Surveillance Equipment Maintenance,"72,580.80",Energy Efficiency
04/10/2023,HIGHWAYS CAPITAL,Invvu Construction Consultants Ltd,"Construction, Conversion & Renovation","7,236.00",M&E Maintenance
04/10/2023,NW IPSB - ACADEMIES,Jubilee High School,External Placement Fees,524.34,Schools
04/10/2023,NW IPSB - ACADEMIES,Jubilee High School,External Placement Fees,771.23,Schools
04/10/2023,NW IPSB - ACADEMIES,Jubilee High School,External Placement Fees,524.34,Schools
04/10/2023,NW IPSB - ACADEMIES,Jubilee High School,External Placement Fees,"1,552.00",Schools
04/10/2023,NE IPSB - ACADEMIES,Jubilee High School,External Placement Fees,993.21,Schools
04/10/2023,DEVELOPER DEPOSITS,Kempton Homes Southern Limited,Receipts in Advance  - Other Income,"9,393.30",Direct Payments
04/10/2023,NE IPSB - ACADEMIES,Kenyngton Manor Primary School,External Placement Fees,502.31,Schools
04/10/2023,NE IPSB - ACADEMIES,Kenyngton Manor Primary School,External Placement Fees,910.99,Schools
04/10/2023,NE IPSB - ACADEMIES,Kenyngton Manor Primary School,External Placement Fees,747.35,Schools
04/10/2023,NE IPSB - ACADEMIES,Kenyngton Manor Primary School,External Placement Fees,642.01,Schools
04/10/2023,NW IPSB - ACADEMIES,Kingfield Primary School & Nursery,External Placement Fees,502.31,Schools
04/10/2023,NW IPSB - ACADEMIES,Kingfield Primary School & Nursery,External Placement Fees,938.59,Schools
04/10/2023,NW IPSB - ACADEMIES,Kingfield Primary School & Nursery,External Placement Fees,771.23,Schools
04/10/2023,SW IPSB - ACADEMIES,Kings College for the Arts & Technology,External Placement Fees,524.34,Schools
04/10/2023,SW IPSB - ACADEMIES,Kings College for the Arts & Technology,External Placement Fees,"2,730.02",Schools
04/10/2023,SW IPSB - ACADEMIES,Kings College for the Arts & Technology,External Placement Fees,524.34,Schools
04/10/2023,SW IPSB - ACADEMIES,Kings College for the Arts & Technology,External Placement Fees,771.23,Schools
04/10/2023,SW IPSB - ACADEMIES,Kings College for the Arts & Technology,External Placement Fees,771.23,Schools
04/10/2023,SW IPSB - ACADEMIES,Kings College for the Arts & Technology,External Placement Fees,524.34,Schools
04/10/2023,SW IPSB - ACADEMIES,Kings College for the Arts & Technology,External Placement Fees,524.34,Schools
04/10/2023,SW IPSB - ACADEMIES,Kings College for the Arts & Technology,External Placement Fees,"6,497.00",Schools
04/10/2023,SW IPSB - ACADEMIES,Kings College for the Arts & Technology,External Placement Fees,771.23,Schools
04/10/2023,SW IPSB - ACADEMIES,Kings College for the Arts & Technology,External Placement Fees,"2,008.71",Schools
04/10/2023,SW IPSB - ACADEMIES,Kings College for the Arts & Technology,External Placement Fees,524.34,Schools
04/10/2023,SW IPSB - ACADEMIES,Kings College for the Arts & Technology,External Placement Fees,"15,022.48",Schools
04/10/2023,SW IPSB - ACADEMIES,Kings College for the Arts & Technology,External Placement Fees,771.23,Schools
04/10/2023,SW IPSB - ACADEMIES,Kings College for the Arts & Technology,External Placement Fees,524.34,Schools
04/10/2023,SW IPSB - ACADEMIES,Kings College for the Arts & Technology,External Placement Fees,524.34,Schools
04/10/2023,SW IPSB - ACADEMIES,Kings College for the Arts & Technology,External Placement Fees,524.34,Schools
04/10/2023,NW IPSB - ACADEMIES,Knaphill Lower School,External Placement Fees,"1,336.90",Schools
04/10/2023,NW IPSB - ACADEMIES,Knaphill School,External Placement Fees,"3,156.00",Schools
04/10/2023,NW IPSB - ACADEMIES,Knaphill School,External Placement Fees,771.23,Schools
04/10/2023,NORTH WEST AGENCY PLACE (ED),Knowl Hill School,External Placement Fees,"1,991.60",School Support Serv
04/10/2023,NORTH WEST AGENCY PLACE (ED),Knowl Hill School,External Placement Fees,"1,991.60",School Support Serv
04/10/2023,NORTH WEST AGENCY PLACE (ED),Knowl Hill School,External Placement Fees,"1,991.60",School Support Serv
04/10/2023,SOUTH WEST AGENCY PLACE (ED),Knowl Hill School,External Placement Fees,"1,991.60",School Support Serv
04/10/2023,SOUTH WEST AGENCY PLACE (ED),Knowl Hill School,External Placement Fees,"1,926.10",School Support Serv
04/10/2023,NORTH WEST AGENCY PLACE (ED),Knowl Hill School,External Placement Fees,"1,991.60",School Support Serv
04/10/2023,SOUTH WEST AGENCY PLACE (ED),Knowl Hill School,External Placement Fees,"1,926.10",School Support Serv
04/10/2023,SOUTH WEST AGENCY PLACE (ED),Knowl Hill School,External Placement Fees,"1,991.60",School Support Serv
04/10/2023,SOUTH WEST AGENCY PLACE (ED),Knowl Hill School,External Placement Fees,"1,991.60",School Support Serv
04/10/2023,SOUTH WEST AGENCY PLACE (ED),Knowl Hill School,External Placement Fees,"2,632.09",School Support Serv
04/10/2023,NORTH WEST AGENCY PLACE (ED),Knowl Hill School,External Placement Fees,"1,991.60",School Support Serv
04/10/2023,NORTH WEST AGENCY PLACE (ED),Knowl Hill School,External Placement Fees,"1,991.60",School Support Serv
04/10/2023,NORTH EAST AGENCY PLACE (ED),Knowl Hill School,External Placement Fees,"1,991.60",School Support Serv
04/10/2023,NORTH EAST AGENCY PLACE (ED),Knowl Hill School,External Placement Fees,"2,354.50",School Support Serv
04/10/2023,NORTH WEST AGENCY PLACE (ED),Knowl Hill School,External Placement Fees,"1,991.60",School Support Serv
04/10/2023,NORTH EAST AGENCY PLACE (ED),Knowl Hill School,External Placement Fees,"1,991.60",School Support Serv
04/10/2023,NORTH EAST AGENCY PLACE (ED),Knowl Hill School,External Placement Fees,"4,334.66",School Support Serv
04/10/2023,NORTH WEST AGENCY PLACE (ED),Knowl Hill School,External Placement Fees,"2,632.09",School Support Serv
04/10/2023,SOUTH EAST AGENCY PLACE (ED),Knowl Hill School,External Placement Fees,"2,721.58",School Support Serv
04/10/2023,SOUTH WEST AGENCY PLACE (ED),Knowl Hill School,External Placement Fees,"2,064.29",School Support Serv
04/10/2023,NORTH WEST AGENCY PLACE (ED),Knowl Hill School,External Placement Fees,"1,991.60",School Support Serv
04/10/2023,NORTH WEST AGENCY PLACE (ED),Knowl Hill School,Payments to Other Local Authorities,"1,926.10",School Support Serv
04/10/2023,NORTH EAST AGENCY PLACE (ED),Knowl Hill School,External Placement Fees,"1,926.10",School Support Serv
04/10/2023,SOUTH WEST AGENCY PLACE (ED),Knowl Hill School,External Placement Fees,"1,991.59",School Support Serv
04/10/2023,SOUTH WEST AGENCY PLACE (ED),Knowl Hill School,External Placement Fees,"2,636.94",School Support Serv
04/10/2023,INSURANCE FUND - PUBLIC LIABILITY,LACHS,Long Term - Other provisions,681.05,Not Applicable
04/10/2023,NW IPSB - ACADEMIES,Lakeside Primary School,External Placement Fees,775.00,Schools
04/10/2023,NW IPSB - ACADEMIES,Lakeside Primary School,External Placement Fees,"1,794.00",Schools
04/10/2023,NW IPSB - ACADEMIES,Lakeside Primary School,External Placement Fees,619.50,Schools
04/10/2023,NW IPSB - ACADEMIES,Lakeside Primary School,External Placement Fees,524.34,Schools
04/10/2023,NW IPSB - ACADEMIES,Lakeside Primary School,External Placement Fees,799.90,Schools
04/10/2023,NW IPSB - ACADEMIES,Lakeside Primary School,External Placement Fees,502.31,Schools
04/10/2023,NW IPSB - ACADEMIES,Lakeside Primary School,External Placement Fees,524.34,Schools
04/10/2023,BUSINESS SUPPORT & CUSTOMER SERVICE TEAM,Langshott Landscapes Ltd,Payments to Private Contractors,"1,140.00",Highways Structures
04/10/2023,FEASIBILTY FUNDING - SCHOOL PROJECTS,Learning Partners Academy Trust,Fees,"39,236.04",Educ Tuition Fees
04/10/2023,NORTH EAST AGENCY PLACE (ED),Life Chance Education Ltd-School,Payments to Other Local Authorities,"9,865.21",SEND Agncy Placement
04/10/2023,NW IPSB - ACADEMIES,Lightwater Village School,External Placement Fees,800.78,Schools
04/10/2023,NW IPSB - ACADEMIES,Lightwater Village School,External Placement Fees,"1,711.95",Schools
04/10/2023,SE IPSB - ACADEMIES,Lime Tree Primary,External Placement Fees,771.23,Schools
04/10/2023,SE IPSB - ACADEMIES,Lime Tree Primary,External Placement Fees,800.78,Schools
04/10/2023,SE IPSB - ACADEMIES,Lime Tree Primary,External Placement Fees,524.34,Schools
04/10/2023,SE IPSB - ACADEMIES,Lime Tree Primary,External Placement Fees,534.63,Schools
04/10/2023,SE IPSB - ACADEMIES,Lime Tree Primary,External Placement Fees,502.31,Schools
04/10/2023,SE IPSB - ACADEMIES,Lime Tree Primary,External Placement Fees,800.78,Schools
04/10/2023,SE IPSB - ACADEMIES,Lime Tree Primary,External Placement Fees,"2,938.78",Schools
04/10/2023,SE IPSB - ACADEMIES,Lime Tree Primary,External Placement Fees,502.31,Schools
04/10/2023,FUNDING & PRECEPTS,London Borough Of Sutton,Business Rates Income,"1,450,388.00",Local Government
04/10/2023,SW IPSB - ACADEMIES,Loseley Fields Primary School,External Placement Fees,800.78,Schools
04/10/2023,SW IPSB - ACADEMIES,Loseley Fields Primary School,External Placement Fees,542.04,Schools
04/10/2023,SW IPSB - ACADEMIES,Loseley Fields Primary School,External Placement Fees,702.96,Schools
04/10/2023,SW IPSB - ACADEMIES,Loseley Fields Primary School,External Placement Fees,600.14,Schools
04/10/2023,SW IPSB - ACADEMIES,Loseley Fields Primary School,External Placement Fees,596.08,Schools
04/10/2023,SW IPSB - ACADEMIES,Loseley Fields Primary School,External Placement Fees,771.23,Schools
04/10/2023,SW IPSB - ACADEMIES,Loseley Fields Primary School,External Placement Fees,"1,852.00",Schools
04/10/2023,SW IPSB - ACADEMIES,Loseley Fields Primary School,External Placement Fees,524.34,Schools
04/10/2023,SW IPSB - NON DELEGATED,Loseley Fields Primary School,External Placement Fees,981.65,Schools
04/10/2023,ASC L&D TRAINING,Making Connections (Isle Of Wight) Ltd,Training Expenses - External General,"1,020.00",Staff Training
04/10/2023,SE IPSB - ACADEMIES,Marden Lodge Primary School,External Placement Fees,"3,232.15",Schools
04/10/2023,SE IPSB - ACADEMIES,Marden Lodge Primary School,External Placement Fees,800.78,Schools
04/10/2023,FEASIBILITY PROJECTS,Markus Dell Film,Publicity,"1,939.06",Design & Photography
04/10/2023,CIVIL PARKING ENFORCEMENT (CPE),Marston Holdings Ltd,Payments to Private Contractors,"344,224.07",Roads Surveys
04/10/2023,CIVIL PARKING ENFORCEMENT (CPE),Marston Holdings Ltd,Payments to Private Contractors,"398,902.26",Roads Surveys
04/10/2023,NW IPSB - ACADEMIES,Maybury Primary School,External Placement Fees,702.96,Schools
04/10/2023,NW IPSB - ACADEMIES,Maybury Primary School,External Placement Fees,502.31,Schools
04/10/2023,CHANGING FUTURES GRANT,Mazzone Media Ltd,Other Agencies/Contractors,"7,500.00",Performing Arts
04/10/2023,NE IPSB - ACADEMIES,Mead Infant School,External Placement Fees,600.14,Schools
04/10/2023,NE IPSB - ACADEMIES,Meadhurst Primary School,External Placement Fees,"1,213.45",Grants - Member Allocation
04/10/2023,NE IPSB - ACADEMIES,Meadhurst Primary School,External Placement Fees,596.93,Grants - Member Allocation
04/10/2023,NE IPSB - ACADEMIES,Meadhurst Primary School,External Placement Fees,797.57,Grants - Member Allocation
04/10/2023,NE IPSB - ACADEMIES,Meadhurst Primary School,External Placement Fees,747.35,Grants - Member Allocation
04/10/2023,NE IPSB - NON DELEGATED,Meadow Primary School,External Placement Fees,800.78,Schools
04/10/2023,NE IPSB - ACADEMIES,Meadow Primary School,External Placement Fees,781.41,Schools
04/10/2023,NE IPSB - ACADEMIES,Meadow Primary School,External Placement Fees,524.34,Schools
04/10/2023,NE IPSB - NON DELEGATED,Meadow Primary School,External Placement Fees,781.41,Schools
04/10/2023,NE IPSB - NON DELEGATED,Meadow Primary School,External Placement Fees,"1,743.98",Schools
04/10/2023,SE IPSB - ACADEMIES,Merstham Park School,External Placement Fees,524.34,Schools
04/10/2023,SE IPSB - ACADEMIES,Merstham Park School,External Placement Fees,524.34,Schools
04/10/2023,SE IPSB - ACADEMIES,Merstham Park School,External Placement Fees,"1,038.41",Schools
04/10/2023,SE IPSB - ACADEMIES,Merstham Park School,External Placement Fees,524.34,Schools
04/10/2023,SE IPSB - ACADEMIES,Merstham Park School,External Placement Fees,923.76,Schools
04/10/2023,SE IPSB - ACADEMIES,Merstham Park School,External Placement Fees,524.34,Schools
04/10/2023,SE IPSB - ACADEMIES,Merstham Park School,External Placement Fees,524.34,Schools
04/10/2023,SE IPSB - ACADEMIES,Merstham Park School,External Placement Fees,771.23,Schools
04/10/2023,SE IPSB - ACADEMIES,Merstham Park School,External Placement Fees,524.34,Schools
04/10/2023,SE IPSB - ACADEMIES,Merstham Primary School,External Placement Fees,800.78,Schools
04/10/2023,SE IPSB - ACADEMIES,Merstham Primary School,External Placement Fees,502.31,Schools
04/10/2023,SE IPSB - ACADEMIES,Merstham Primary School,External Placement Fees,702.96,Schools
04/10/2023,SE IPSB - ACADEMIES,Merstham Primary School,External Placement Fees,524.34,Schools
04/10/2023,SE IPSB - ACADEMIES,Merstham Primary School,External Placement Fees,"2,952.00",Schools
04/10/2023,SE IPSB - ACADEMIES,Merstham Primary School,External Placement Fees,800.78,Schools
04/10/2023,ASYLUM SEEKERS 18+,Moving On Care Management Ltd,External Placement Fees,"2,838.86",LocPrevFwork
04/10/2023,NW IPSB - ACADEMIES,Mytchett Primary School,External Placement Fees,524.34,Schools
04/10/2023,SW IPSB - ACADEMIES,Mytchett Primary School,External Placement Fees,800.78,Schools
04/10/2023,HIGHWAYS CAPITAL,Network Rail Infrastructure Ltd,"Construction, Conversion & Renovation","1,506.26",Local Bus
04/10/2023,NW IPSB - ACADEMIES,New Haw Community Junior School,External Placement Fees,"18,871.00",Schools
04/10/2023,NW IPSB - ACADEMIES,New Haw Community Junior School,External Placement Fees,502.31,Schools
04/10/2023,NW IPSB - ACADEMIES,New Haw Community Junior School,External Placement Fees,832.16,Schools
04/10/2023,NW IPSB - ACADEMIES,New Haw Community Junior School,External Placement Fees,"12,175.00",Schools
04/10/2023,NW IPSB - ACADEMIES,New Haw Community Junior School,External Placement Fees,"1,178.11",Schools
04/10/2023,NW IPSB - ACADEMIES,New Haw Community Junior School,External Placement Fees,771.23,Schools
04/10/2023,NW IPSB - ACADEMIES,New Monument School,External Placement Fees,502.31,Schools
04/10/2023,NW IPSB - ACADEMIES,New Monument School,External Placement Fees,524.34,Schools
04/10/2023,NW IPSB - ACADEMIES,New Monument School,External Placement Fees,771.23,Schools
04/10/2023,NW IPSB - ACADEMIES,New Monument School,External Placement Fees,800.78,Schools
04/10/2023,NW IPSB - ACADEMIES,New Monument School,External Placement Fees,502.31,Schools
04/10/2023,AGENCY NON CWD SOCIAL CARE,Nexus Fostering Ltd,External Placement Fees,"1,597.50",Fostering IFA
04/10/2023,SOUTH EAST AGENCY PLACE (ED),Northease Manor School,External Placement Fees,"2,590.48",SEN Specialist Supp
04/10/2023,SOUTH EAST AGENCY PLACE (ED),Northease Manor School,External Placement Fees,"5,638.10",SEN Specialist Supp
04/10/2023,SW IPSB - ACADEMIES,Northmead Junior School,External Placement Fees,702.96,Schools
04/10/2023,SW IPSB - ACADEMIES,Northmead Junior School,External Placement Fees,502.31,Schools
04/10/2023,SW IPSB - ACADEMIES,Northmead Junior School,External Placement Fees,702.96,Schools
04/10/2023,SW IPSB - ACADEMIES,Northmead Junior School,External Placement Fees,"4,892.00",Schools
04/10/2023,SW IPSB - ACADEMIES,Northmead Junior School,External Placement Fees,502.31,Schools
04/10/2023,SW IPSB - ACADEMIES,Northmead Junior School,External Placement Fees,820.14,Schools
04/10/2023,SW IPSB - ACADEMIES,Northmead Junior School,External Placement Fees,800.78,Schools
04/10/2023,NW IPSB - ACADEMIES,Northmead Junior School,External Placement Fees,518.47,Schools
04/10/2023,SW IPSB - ACADEMIES,Northmead Junior School,External Placement Fees,"1,190.14",Schools
04/10/2023,SW IPSB - ACADEMIES,Northmead Junior School,External Placement Fees,524.34,Schools
04/10/2023,CL & S APPRENTICESHIPS,NQual,Exam Fees,667.50,Staff Training
04/10/2023,CL & S APPRENTICESHIPS,NQual,Exam Fees,667.50,Staff Training
04/10/2023,RUTH HOUSE,Nurse Plus & Carer Plus UK Ltd,Agency Supply Staff,"4,933.01",Specialist Serv
04/10/2023,STREETWORKS TEAM,Open Road Associates Ltd,Consultancy Services,"15,906.00",Org & Bus Consult
04/10/2023,NW IPSB - ACADEMIES,Ottershaw COE School,External Placement Fees,702.96,Non-Staff Expenses
04/10/2023,NW IPSB - ACADEMIES,Ottershaw COE School,External Placement Fees,625.00,Non-Staff Expenses
04/10/2023,NW IPSB - ACADEMIES,Ottershaw COE School,External Placement Fees,"1,459.00",Non-Staff Expenses
04/10/2023,NW IPSB - ACADEMIES,Ottershaw COE School,External Placement Fees,502.31,Non-Staff Expenses
04/10/2023,NW IPSB - ACADEMIES,Ottershaw COE School,External Placement Fees,502.31,Non-Staff Expenses
04/10/2023,NE IPSB - ACADEMIES,Our Lady Of The Rosary C Primary School,External Placement Fees,701.30,Schools
04/10/2023,NE IPSB - ACADEMIES,Our Lady Of The Rosary C Primary School,External Placement Fees,524.34,Schools
04/10/2023,NE IPSB - ACADEMIES,Our Lady Of The Rosary C Primary School,External Placement Fees,524.34,Schools
04/10/2023,SE IPSB - ACADEMIES,Oxted School,External Placement Fees,"1,658.66",Schools
04/10/2023,SE IPSB - ACADEMIES,Oxted School,External Placement Fees,771.23,Schools
04/10/2023,SE IPSB - ACADEMIES,Oxted School,External Placement Fees,524.34,Schools
04/10/2023,SE IPSB - ACADEMIES,Oxted School,External Placement Fees,"1,038.41",Schools
04/10/2023,SE IPSB - ACADEMIES,Oxted School,External Placement Fees,524.34,Schools
04/10/2023,SE IPSB - ACADEMIES,Oxted School,External Placement Fees,524.34,Schools
04/10/2023,SE IPSB - ACADEMIES,Oxted School,External Placement Fees,771.23,Schools
04/10/2023,SE IPSB - ACADEMIES,Oxted School,External Placement Fees,524.34,Schools
04/10/2023,SE IPSB - ACADEMIES,Oxted School,External Placement Fees,524.34,Schools
04/10/2023,SE IPSB - ACADEMIES,Oxted School,External Placement Fees,524.34,Schools
04/10/2023,SE IPSB - NON DELEGATED,Oxted School,External Placement Fees,"2,693.85",Schools
04/10/2023,SE IPSB - NON DELEGATED,Oxted School,External Placement Fees,"2,693.85",Schools
04/10/2023,PHA HEALTH CHECKS,Park Road Surgery,Other Agencies/Contractors,"21,800.38",Subscriptions
04/10/2023,SW IPSB - ACADEMIES,Peaslake Free School,External Placement Fees,524.34,Schools
04/10/2023,FIRE CAPITAL,Pickup Systems Ltd,"Purchase of Vehicles, Plant, Equip & Machinery","6,708.43",Fire Service Vehicle
04/10/2023,SW IPSB - ACADEMIES,Pirbright Village Primary School,External Placement Fees,910.99,Schools
04/10/2023,SW IPSB - ACADEMIES,Pirbright Village Primary School,External Placement Fees,"7,383.79",Schools
04/10/2023,SW IPSB - ACADEMIES,Pirbright Village Primary School,External Placement Fees,502.31,Schools
04/10/2023,NW IPSB - ACADEMIES,Pirbright Village Primary School,External Placement Fees,781.41,Schools
04/10/2023,SW IPSB - ACADEMIES,Pirbright Village Primary School,External Placement Fees,502.31,Schools
04/10/2023,NW IPSB - ACADEMIES,Pirbright Village Primary School,External Placement Fees,"2,148.00",Schools
04/10/2023,SW IPSB - ACADEMIES,Pirbright Village Primary School,External Placement Fees,502.31,Schools
04/10/2023,DIRECTOR OF HR & OD,Pluxee UK Ltd,Long Service Awards,738.00,Non-Staff Expenses
04/10/2023,SW IPSB - ACADEMIES,Potters Gate COE Primary School,External Placement Fees,502.31,Grants - Member Allocation
04/10/2023,SW IPSB - ACADEMIES,Potters Gate COE Primary School,External Placement Fees,799.90,Grants - Member Allocation
04/10/2023,SW IPSB - ACADEMIES,Potters Gate COE Primary School,External Placement Fees,771.23,Grants - Member Allocation
04/10/2023,NW IPSB - ACADEMIES,Pyrcroft Grange Primary School,External Placement Fees,"1,193.86",Schools
04/10/2023,NW IPSB - ACADEMIES,Pyrcroft Grange Primary School,External Placement Fees,"1,272.31",Schools
04/10/2023,NW IPSB - ACADEMIES,Pyrcroft Grange Primary School,External Placement Fees,"1,291.68",Schools
04/10/2023,NW IPSB - ACADEMIES,Pyrford COE (A) Primary School,External Placement Fees,800.78,Schools
04/10/2023,NW IPSB - ACADEMIES,Pyrford COE (A) Primary School,External Placement Fees,502.31,Schools
04/10/2023,NW IPSB - ACADEMIES,Pyrford COE (A) Primary School,External Placement Fees,524.34,Schools
04/10/2023,NW IPSB - ACADEMIES,Pyrford COE (A) Primary School,External Placement Fees,771.23,Schools
04/10/2023,NW IPSB - ACADEMIES,Pyrford COE (A) Primary School,External Placement Fees,504.85,Schools
04/10/2023,NW IPSB - ACADEMIES,Pyrford COE (A) Primary School,External Placement Fees,"4,212.46",Schools
04/10/2023,SW IPSB - ACADEMIES,Queen Eleanors COE Junior School,External Placement Fees,800.78,Schools
04/10/2023,SW IPSB - ACADEMIES,Queen Eleanors COE Junior School,External Placement Fees,800.78,Schools
04/10/2023,SW IPSB - ACADEMIES,Queen Eleanors COE Junior School,External Placement Fees,800.78,Schools
04/10/2023,SW IPSB - ACADEMIES,Queen Eleanors COE Junior School,External Placement Fees,600.14,Schools
04/10/2023,SW IPSB - ACADEMIES,Queen Eleanors COE Junior School,External Placement Fees,524.34,Schools
04/10/2023,SW IPSB - ACADEMIES,Queen Eleanors COE Junior School,External Placement Fees,524.34,Schools
04/10/2023,NW IPSB - ACADEMIES,Ravenscote Junior School,External Placement Fees,702.96,Schools
04/10/2023,NW IPSB - ACADEMIES,Ravenscote Junior School,External Placement Fees,502.31,Schools
04/10/2023,NW IPSB - ACADEMIES,Ravenscote Junior School,External Placement Fees,"5,857.00",Schools
04/10/2023,NW IPSB - ACADEMIES,Ravenscote Junior School,External Placement Fees,800.78,Schools
04/10/2023,NW IPSB - ACADEMIES,Ravenscote Junior School,External Placement Fees,542.04,Schools
04/10/2023,MOLE VALLEY LOCAL CARE OP,Redacted Personal Data,Nursing Care,"9,150.00",Compensation
04/10/2023,NW AREA SEN MANAGEMENT TEAM,Redacted Personal Data,Compensation Claims payments,"1,200.00",Non-Staff Expenses
04/10/2023,STREETWORKS - SECTION 50,Redacted Personal Data,Long Term - Deferred Liabilities,"1,297.00",Highway - Construct
04/10/2023,STREETWORKS - SECTION 50,Redacted Personal Data,Long Term - Deferred Liabilities,"1,297.00",Highway - Construct
04/10/2023,TANDRIDGE LOCAL CARE OP,Redacted Personal Data,Direct Payments,"10,432.00",Adults direct payment
04/10/2023,SE FOSTERING CARE,Redacted Personal Data,Children's Act S24 Payments,513.78,Foster Carers
04/10/2023,NE FOSTERING CARE,Redacted Personal Data,Children's Act S24 Payments,513.78,Foster Carers
04/10/2023,SE FOSTERING CARE,Redacted Personal Data,Children's Act S24 Payments,513.78,Foster Carers
04/10/2023,SE FOSTERING CARE,Redacted Personal Data,Children's Act S24 Payments,513.78,Foster Carers
04/10/2023,SE FOSTERING CARE,Redacted Personal Data,Children's Act S24 Payments,513.78,Foster Carers
04/10/2023,NE FOSTERING CARE,Redacted Personal Data,Children's Act S24 Payments,513.78,Foster Carers
04/10/2023,NE FOSTERING CARE,Redacted Personal Data,Children's Act S24 Payments,513.78,Foster Carers
04/10/2023,SE FOSTERING CARE,Redacted Personal Data,Children's Act S24 Payments,513.78,Individual - NEC
04/10/2023,SE FOSTERING CARE,Redacted Personal Data,Children's Act S24 Payments,513.78,Foster Carers
04/10/2023,SE FOSTERING CARE,Redacted Personal Data,Children's Act S24 Payments,513.78,Invoicing Plan Req.
04/10/2023,SW FOSTERING CARE,Redacted Personal Data,Children's Act S24 Payments,513.78,Foster Carers
04/10/2023,NE FOSTERING CARE,Redacted Personal Data,Children's Act S24 Payments,513.78,Foster Carers
04/10/2023,SE FOSTERING CARE,Redacted Personal Data,Children's Act S24 Payments,513.78,Invoicing Plan Req.
04/10/2023,SE FOSTERING CARE,Redacted Personal Data,Children's Act S24 Payments,513.78,Non-Staff Expenses
04/10/2023,SW FOSTERING CARE,Redacted Personal Data,Children's Act S24 Payments,513.78,Foster Carers
04/10/2023,SE FOSTERING CARE,Redacted Personal Data,Children's Act S24 Payments,513.78,Invoicing Plan Req.
04/10/2023,SE FOSTERING CARE,Redacted Personal Data,Children's Act S24 Payments,513.78,Invoicing Plan Req.
04/10/2023,SW FOSTERING CARE,Redacted Personal Data,Children's Act S24 Payments,513.78,Foster Carers
04/10/2023,NW FOSTERING CARE,Redacted Personal Data,Children's Act S24 Payments,513.78,Foster Carers
04/10/2023,NE FOSTERING CARE,Redacted Personal Data,Children's Act S24 Payments,513.78,Foster Carers
04/10/2023,SW FOSTERING CARE,Redacted Personal Data,Children's Act S24 Payments,513.78,Foster Carers
04/10/2023,NW FOSTERING CARE,Redacted Personal Data,Children's Act S24 Payments,513.78,Foster Carers
04/10/2023,NW FOSTERING CARE,Redacted Personal Data,Children's Act S24 Payments,513.78,Foster Carers
04/10/2023,NW FOSTERING CARE,Redacted Personal Data,Children's Act S24 Payments,513.78,Foster Carers
04/10/2023,SE FOSTERING CARE,Redacted Personal Data,Children's Act S24 Payments,653.78,Foster Carers
04/10/2023,NW FOSTERING CARE,Redacted Personal Data,Children's Act S24 Payments,513.78,Foster Carers
04/10/2023,SW FOSTERING CARE,Redacted Personal Data,Children's Act S24 Payments,982.74,Foster Carers
04/10/2023,NE FOSTERING CARE,Redacted Personal Data,Children's Act S24 Payments,513.78,Individual - NEC
04/10/2023,SW FOSTERING CARE,Redacted Personal Data,Children's Act S24 Payments,513.78,Foster Carers
04/10/2023,SW FOSTERING CARE,Redacted Personal Data,Children's Act S24 Payments,920.00,Foster Carers
04/10/2023,SW FOSTERING CARE,Redacted Personal Data,Children's Act S24 Payments,748.26,Foster Carers
04/10/2023,SE FOSTERING CARE,Redacted Personal Data,Children's Act S24 Payments,513.78,Foster Carers
04/10/2023,NW FOSTERING CARE,Redacted Personal Data,Children's Act S24 Payments,513.78,Foster Carers
04/10/2023,SE FOSTERING CARE,Redacted Personal Data,Fostering Allowances,"1,064.74",Foster Carers
04/10/2023,SW FOSTERING CARE,Redacted Personal Data,Fostering Allowances,"1,067.66",Foster Carers
04/10/2023,CWD EAST FOSTERING ALLOWANCES,Redacted Personal Data,Fostering Allowances,"1,208.84",Foster Carers
04/10/2023,SE FOSTERING CARE,Redacted Personal Data,Fostering Allowances,"1,067.66",Foster Carers
04/10/2023,SE FOSTERING CARE,Redacted Personal Data,Fostering Allowances,830.26,Foster Carers
04/10/2023,SE FOSTERING CARE,Redacted Personal Data,Fostering Allowances,974.36,Foster Carers
04/10/2023,SW FOSTERING CARE,Redacted Personal Data,Fostering Allowances,830.26,Invoicing Plan Req.
04/10/2023,SW FOSTERING CARE,Redacted Personal Data,Fostering Allowances,"1,067.66",Foster Carers
04/10/2023,SW FOSTERING CARE,Redacted Personal Data,Fostering Allowances,"1,067.66",Foster Carers
04/10/2023,SE FOSTERING CARE,Redacted Personal Data,Fostering Allowances,"1,067.66",Foster Carers
04/10/2023,NE FOSTERING CARE,Redacted Personal Data,Fostering Allowances,974.36,Invoicing Plan Req.
04/10/2023,NE FOSTERING CARE,Redacted Personal Data,Public Transport - Non Staff,759.00,Invoicing Plan Req.
04/10/2023,SW FOSTERING CARE,Redacted Personal Data,Fostering Allowances,"1,067.66",Foster Carers
04/10/2023,SE FOSTERING CARE,Redacted Personal Data,Fostering Allowances,"1,067.66",Foster Carers
04/10/2023,NW FOSTERING CARE,Redacted Personal Data,Fostering Allowances,"1,067.66",Foster Carers
04/10/2023,SW FOSTERING CARE,Redacted Personal Data,Fostering Allowances,"1,067.66",Foster Carers
04/10/2023,CWD EAST FOSTERING ALLOWANCES,Redacted Personal Data,Fostering Allowances,"1,299.22",Foster Carers
04/10/2023,SW FOSTERING CARE,Redacted Personal Data,Fostering Allowances,"1,064.74",Foster Carers
04/10/2023,SW FOSTERING CARE,Redacted Personal Data,Fostering Allowances,"1,067.66",Foster Carers
04/10/2023,SW FOSTERING CARE,Redacted Personal Data,Fostering Allowances,974.36,Foster Carers
04/10/2023,SE FOSTERING CARE,Redacted Personal Data,Fostering Allowances,"1,067.66",Foster Carers
04/10/2023,NE FOSTERING CARE,Redacted Personal Data,Fostering Allowances,974.36,Invoicing Plan Req.
04/10/2023,NW FOSTERING CARE,Redacted Personal Data,Fostering Allowances,"1,064.74",Invoicing Plan Req.
04/10/2023,SE FOSTERING CARE,Redacted Personal Data,Fostering Allowances,866.72,Foster Carers
04/10/2023,NW FOSTERING CARE,Redacted Personal Data,Fostering Allowances,"1,067.66",Foster Carers
04/10/2023,NW FOSTERING CARE,Redacted Personal Data,Fostering Allowances,830.26,Foster Carers
04/10/2023,NW FOSTERING CARE,Redacted Personal Data,Fostering Allowances,974.36,Foster Carers
04/10/2023,SW FOSTERING CARE,Redacted Personal Data,Fostering Allowances,"1,067.66",Foster Carers
04/10/2023,SE FOSTERING CARE,Redacted Personal Data,Fostering Allowances,"1,067.66",Foster Carers
04/10/2023,NE FOSTERING CARE,Redacted Personal Data,Fostering Allowances,830.26,Invoicing Plan Req.
04/10/2023,NE FOSTERING CARE,Redacted Personal Data,Fostering Allowances,830.26,Individual - NEC
04/10/2023,NE FOSTERING CARE,Redacted Personal Data,Fostering Allowances,"1,067.66",Foster Carers
04/10/2023,NE FOSTERING CARE,Redacted Personal Data,Fostering Allowances,974.36,Foster Carers
04/10/2023,NW FOSTERING CARE,Redacted Personal Data,Fostering Allowances,"1,067.66",Foster Carers
04/10/2023,SW FOSTERING CARE,Redacted Personal Data,Fostering Allowances,"1,302.14",Foster Carers
04/10/2023,NE FOSTERING CARE,Redacted Personal Data,Fostering Allowances,"1,067.66",Invoicing Plan Req.
04/10/2023,SE FOSTERING CARE,Redacted Personal Data,Fostering Allowances,866.72,Foster Carers
04/10/2023,NE FOSTERING CARE,Redacted Personal Data,Fostering Allowances,"1,067.66",Foster Carers
04/10/2023,NE FOSTERING CARE,Redacted Personal Data,Fostering Allowances,830.26,Invoicing Plan Req.
04/10/2023,SE FOSTERING CARE,Redacted Personal Data,Fostering Allowances,866.72,Foster Carers
04/10/2023,NE FOSTERING CARE,Redacted Personal Data,Fostering Allowances,"1,067.66",Foster Carers
04/10/2023,NE FOSTERING CARE,Redacted Personal Data,Fostering Allowances,830.26,Foster Carers
04/10/2023,NE FOSTERING CARE,Redacted Personal Data,Fostering Allowances,"1,443.32",Invoicing Plan Req.
04/10/2023,NW FOSTERING CARE,Redacted Personal Data,Fostering Allowances,830.26,Foster Carers
04/10/2023,NW FOSTERING CARE,Redacted Personal Data,Fostering Allowances,974.36,Foster Carers
04/10/2023,NE FOSTERING CARE,Redacted Personal Data,Fostering Allowances,"1,147.54",Individual - NEC
04/10/2023,NW FOSTERING CARE,Redacted Personal Data,Fostering Allowances,830.26,Invoicing Plan Req.
04/10/2023,NW FOSTERING CARE,Redacted Personal Data,Fostering Allowances,"1,067.66",Foster Carers
04/10/2023,SE FOSTERING CARE,Redacted Personal Data,Fostering Allowances,830.26,Foster Carers
04/10/2023,SE FOSTERING CARE,Redacted Personal Data,Fostering Allowances,"1,067.66",Foster Carers
04/10/2023,SE FOSTERING CARE,Redacted Personal Data,Fostering Allowances,974.36,Foster Carers
04/10/2023,SW FOSTERING CARE,Redacted Personal Data,Fostering Allowances,"1,299.22",Foster Carers
04/10/2023,SE FOSTERING CARE,Redacted Personal Data,Fostering Allowances,"1,067.66",Foster Carers
04/10/2023,SE FOSTERING CARE,Redacted Personal Data,Fostering Allowances,"1,402.61",Foster Carers
04/10/2023,NW FOSTERING CARE,Redacted Personal Data,Fostering Allowances,"1,067.66",Foster Carers
04/10/2023,SW FOSTERING CARE,Redacted Personal Data,Fostering Allowances,830.26,Invoicing Plan Req.
04/10/2023,NE FOSTERING CARE,Redacted Personal Data,Fostering Allowances,"1,067.66",Invoicing Plan Req.
04/10/2023,NE FOSTERING CARE,Redacted Personal Data,Fostering Allowances,779.08,Invoicing Plan Req.
04/10/2023,NE FOSTERING CARE,Redacted Personal Data,Fostering Allowances,974.36,Invoicing Plan Req.
04/10/2023,NE FOSTERING CARE,Redacted Personal Data,Public Transport - Non Staff,759.00,Invoicing Plan Req.
04/10/2023,NE FOSTERING CARE,Redacted Personal Data,Fostering Allowances,"1,067.66",CYP Transport
04/10/2023,NW FOSTERING CARE,Redacted Personal Data,Fostering Allowances,779.08,Invoicing Plan Req.
04/10/2023,NW FOSTERING CARE,Redacted Personal Data,Fostering Allowances,"1,067.66",Individual - NEC
04/10/2023,SW FOSTERING CARE,Redacted Personal Data,Fostering Allowances,"1,067.66",Foster Carers
04/10/2023,SE FOSTERING CARE,Redacted Personal Data,Fostering Allowances,"1,067.66",Foster Carers
04/10/2023,SE FOSTERING CARE,Redacted Personal Data,Fostering Allowances,912.61,Foster Carers
04/10/2023,SE FOSTERING CARE,Redacted Personal Data,Fostering Allowances,912.61,Foster Carers
04/10/2023,SE FOSTERING CARE,Redacted Personal Data,Fostering Allowances,"1,067.66",Foster Carers
04/10/2023,SE FOSTERING CARE,Redacted Personal Data,Fostering Allowances,"1,302.14",Foster Carers
04/10/2023,SW FOSTERING CARE,Redacted Personal Data,Fostering Allowances,"1,402.61",Foster Carers
04/10/2023,SE FOSTERING CARE,Redacted Personal Data,Fostering Allowances,"1,606.60",Foster Carers
04/10/2023,SE FOSTERING CARE,Redacted Personal Data,Fostering Allowances,830.26,Foster Carers
04/10/2023,NE FOSTERING CARE,Redacted Personal Data,Fostering Allowances,"1,064.74",Foster Carers
04/10/2023,SW FOSTERING CARE,Redacted Personal Data,Fostering Allowances,974.36,Foster Carers
04/10/2023,SE FOSTERING CARE,Redacted Personal Data,Fostering Allowances,830.26,Foster Carers
04/10/2023,SE FOSTERING CARE,Redacted Personal Data,Fostering Allowances,830.26,Foster Carers
04/10/2023,SW FOSTERING CARE,Redacted Personal Data,Fostering Allowances,779.08,Foster Carers
04/10/2023,SE FOSTERING CARE,Redacted Personal Data,Fostering Allowances,830.26,Foster Carers
04/10/2023,NW FOSTERING CARE,Redacted Personal Data,Fostering Allowances,974.36,Individual - NEC
04/10/2023,SE FOSTERING CARE,Redacted Personal Data,Fostering Allowances,"1,056.51",Foster Carers
04/10/2023,SE FOSTERING CARE,Redacted Personal Data,Fostering Allowances,830.26,Foster Carers
04/10/2023,NW FOSTERING CARE,Redacted Personal Data,Fostering Allowances,"1,067.66",Foster Carers
04/10/2023,NW FOSTERING CARE,Redacted Personal Data,Fostering Allowances,"1,299.22",Foster Carers
04/10/2023,SW FOSTERING CARE,Redacted Personal Data,Fostering Allowances,974.36,Individual - NEC
04/10/2023,NE FOSTERING CARE,Redacted Personal Data,Fostering Allowances,"1,067.66",Foster Carers
04/10/2023,SW FOSTERING CARE,Redacted Personal Data,Fostering Allowances,"1,339.91",CYP Transport
04/10/2023,CWD EAST FOSTERING ALLOWANCES,Redacted Personal Data,Fostering Allowances,"2,200.24",Invoicing Plan Req.
04/10/2023,SE FOSTERING CARE,Redacted Personal Data,Fostering Allowances,"1,413.56",Invoicing Plan Req.
04/10/2023,SE FOSTERING CARE,Redacted Personal Data,Fostering Allowances,830.26,Foster Carers
04/10/2023,SW FOSTERING CARE,Redacted Personal Data,Fostering Allowances,974.36,Foster Carers
04/10/2023,SW FOSTERING CARE,Redacted Personal Data,Fostering Allowances,830.26,Invoicing Plan Req.
04/10/2023,NW FOSTERING CARE,Redacted Personal Data,Fostering Allowances,779.08,Foster Carers
04/10/2023,SW FOSTERING CARE,Redacted Personal Data,Fostering Allowances,"1,067.66",Foster Carers
04/10/2023,SW FOSTERING CARE,Redacted Personal Data,Fostering Allowances,830.26,Invoicing Plan Req.
04/10/2023,NW FOSTERING CARE,Redacted Personal Data,Fostering Allowances,"1,064.74",Foster Carers
04/10/2023,SW FOSTERING CARE,Redacted Personal Data,Fostering Allowances,830.26,Invoicing Plan Req.
04/10/2023,SE FOSTERING CARE,Redacted Personal Data,Fostering Allowances,840.26,Foster Carers
04/10/2023,NW FOSTERING CARE,Redacted Personal Data,Fostering Allowances,"1,067.66",Fostering Placement
04/10/2023,SW FOSTERING CARE,Redacted Personal Data,Fostering Allowances,974.36,Invoicing Plan Req.
04/10/2023,SE FOSTERING CARE,Redacted Personal Data,Fostering Allowances,"1,067.66",Foster Carers
04/10/2023,SW FOSTERING CARE,Redacted Personal Data,Fostering Respite,"1,040.00",Non-Staff Expenses
04/10/2023,NE FOSTERING CARE,Redacted Personal Data,Fostering Allowances,"1,606.60",Foster Carers
04/10/2023,SW FOSTERING CARE,Redacted Personal Data,Fostering Allowances,830.26,Foster Carers
04/10/2023,NW FOSTERING CARE,Redacted Personal Data,Fostering Allowances,830.26,Foster Carers
04/10/2023,SE FOSTERING CARE,Redacted Personal Data,Fostering Allowances,"1,067.66",Foster Carers
04/10/2023,NE FOSTERING CARE,Redacted Personal Data,Fostering Allowances,"1,208.84",Foster Carers
04/10/2023,SE FOSTERING CARE,Redacted Personal Data,Fostering Allowances,"1,064.74",Foster Carers
04/10/2023,NW FOSTERING CARE,Redacted Personal Data,Fostering Allowances,"1,067.66",Foster Carers
04/10/2023,SW FOSTERING CARE,Redacted Personal Data,Fostering Allowances,830.26,Foster Carers
04/10/2023,SW FOSTERING CARE,Redacted Personal Data,Fostering Allowances,"1,302.14",Foster Carers
04/10/2023,CWD EAST FOSTERING ALLOWANCES,Redacted Personal Data,Fostering Allowances,"1,302.14",Foster Carers
04/10/2023,SW FOSTERING CARE,Redacted Personal Data,Fostering Allowances,"1,064.74",Foster Carers
04/10/2023,SE FOSTERING CARE,Redacted Personal Data,Fostering Allowances,"1,248.04",Foster Carers
04/10/2023,NE FOSTERING CARE,Redacted Personal Data,Fostering Allowances,"1,302.14",Foster Carers
04/10/2023,NE FOSTERING CARE,Redacted Personal Data,Fostering Allowances,519.21,Foster Carers
04/10/2023,NE FOSTERING CARE,Redacted Personal Data,Fostering Allowances,"1,013.56",Nurseries
04/10/2023,NW FOSTERING CARE,Redacted Personal Data,Fostering Allowances,742.72,Foster Carers
04/10/2023,SW FOSTERING CARE,Redacted Personal Data,Fostering Allowances,"1,064.74",Foster Carers
04/10/2023,SW FOSTERING CARE,Redacted Personal Data,Fostering Allowances,"1,208.84",Foster Carers
04/10/2023,SE FOSTERING CARE,Redacted Personal Data,Fostering Allowances,"1,067.66",Foster Carers
04/10/2023,NW FOSTERING CARE,Redacted Personal Data,Fostering Allowances,779.08,Foster Carers
04/10/2023,SE FOSTERING CARE,Redacted Personal Data,Fostering Respite,"1,040.00",Invoicing Plan Req.
04/10/2023,SE FOSTERING CARE,Redacted Personal Data,Fostering Allowances,"1,067.66",Invoicing Plan Req.
04/10/2023,NE FOSTERING CARE,Redacted Personal Data,Fostering Allowances,"1,013.56",Invoicing Plan Req.
04/10/2023,NE FOSTERING CARE,Redacted Personal Data,Fostering Allowances,779.08,Individual - NEC
04/10/2023,CWD EAST FOSTERING ALLOWANCES,Redacted Personal Data,Fostering Allowances,"1,013.56",Foster Carers
04/10/2023,NE FOSTERING CARE,Redacted Personal Data,Fostering Allowances,969.74,Individual - NEC
04/10/2023,NE FOSTERING CARE,Redacted Personal Data,Fostering Allowances,830.26,Invoicing Plan Req.
04/10/2023,SW FOSTERING CARE,Redacted Personal Data,Fostering Allowances,"1,208.84",Foster Carers
04/10/2023,NW FOSTERING CARE,Redacted Personal Data,Fostering Allowances,"1,067.66",Foster Carers
04/10/2023,NE FOSTERING CARE,Redacted Personal Data,Fostering Allowances,779.08,Invoicing Plan Req.
04/10/2023,NW FOSTERING CARE,Redacted Personal Data,Fostering Allowances,974.36,Foster Carers
04/10/2023,SW FOSTERING CARE,Redacted Personal Data,Fostering Allowances,"1,067.66",Invoicing Plan Req.
04/10/2023,SE FOSTERING CARE,Redacted Personal Data,Fostering Allowances,"1,302.14",Foster Carers
04/10/2023,SW FOSTERING CARE,Redacted Personal Data,Fostering Allowances,830.26,Invoicing Plan Req.
04/10/2023,NW FOSTERING CARE,Redacted Personal Data,Fostering Allowances,"1,248.04",Foster Carers
04/10/2023,NE FOSTERING CARE,Redacted Personal Data,Fostering Allowances,659.90,Foster Carers
04/10/2023,NE FOSTERING CARE,Redacted Personal Data,Fostering Allowances,974.36,Foster Carers
04/10/2023,NE FOSTERING CARE,Redacted Personal Data,Fostering Allowances,830.26,Foster Carers
04/10/2023,NE FOSTERING CARE,Redacted Personal Data,Fostering Allowances,974.36,Invoicing Plan Req.
04/10/2023,SW FOSTERING CARE,Redacted Personal Data,Fostering Allowances,779.08,Nurseries
04/10/2023,NE FOSTERING CARE,Redacted Personal Data,Fostering Allowances,974.36,Invoicing Plan Req.
04/10/2023,SE FOSTERING CARE,Redacted Personal Data,Fostering Allowances,863.78,Foster Carers
04/10/2023,NE FOSTERING CARE,Redacted Personal Data,Fostering Allowances,830.26,Individual - NEC
04/10/2023,SE FOSTERING CARE,Redacted Personal Data,Fostering Allowances,779.08,Foster Carers
04/10/2023,SW FOSTERING CARE,Redacted Personal Data,Fostering Allowances,830.26,Foster Carers
04/10/2023,SE FOSTERING CARE,Redacted Personal Data,Fostering Allowances,779.08,Foster Carers
04/10/2023,SE FOSTERING CARE,Redacted Personal Data,Fostering Allowances,"1,067.66",Foster Carers
04/10/2023,NE FOSTERING CARE,Redacted Personal Data,Fostering Allowances,974.36,Foster Carers
04/10/2023,SW FOSTERING CARE,Redacted Personal Data,Fostering Allowances,"1,013.56",Foster Carers
04/10/2023,NW FOSTERING CARE,Redacted Personal Data,Fostering Allowances,863.78,Invoicing Plan Req.
04/10/2023,SW FOSTERING CARE,Redacted Personal Data,Fostering Allowances,"1,064.74",Foster Carers
04/10/2023,SW FOSTERING CARE,Redacted Personal Data,Fostering Allowances,779.08,Foster Carers
04/10/2023,NE FOSTERING CARE,Redacted Personal Data,Fostering Allowances,830.26,Foster Carers
04/10/2023,SE FOSTERING CARE,Redacted Personal Data,Fostering Allowances,"1,067.66",Fostering Placement
04/10/2023,SE FOSTERING CARE,Redacted Personal Data,Fostering Allowances,830.26,Non Trade Payment
04/10/2023,SE FOSTERING CARE,Redacted Personal Data,Fostering Allowances,779.08,Foster Carers
04/10/2023,SE FOSTERING CARE,Redacted Personal Data,Fostering Allowances,830.26,Foster Carers
04/10/2023,SE FOSTERING CARE,Redacted Personal Data,Fostering Allowances,"1,067.66",Foster Carers
04/10/2023,NE FOSTERING CARE,Redacted Personal Data,Fostering Allowances,779.08,Invoicing Plan Req.
04/10/2023,NW FOSTERING CARE,Redacted Personal Data,Fostering Allowances,779.08,Foster Carers
04/10/2023,NE FOSTERING CARE,Redacted Personal Data,Fostering Allowances,"1,208.84",Foster Carers
04/10/2023,NW FOSTERING CARE,Redacted Personal Data,Fostering Allowances,830.26,Foster Carers
04/10/2023,SW FOSTERING CARE,Redacted Personal Data,Fostering Allowances,"1,067.66",Foster Carers
04/10/2023,NE FOSTERING CARE,Redacted Personal Data,Fostering Allowances,779.08,Foster Carers
04/10/2023,NW FOSTERING CARE,Redacted Personal Data,Fostering Allowances,830.26,Foster Carers
04/10/2023,SE FOSTERING CARE,Redacted Personal Data,Fostering Allowances,"1,208.84",Foster Carers
04/10/2023,NE FOSTERING CARE,Redacted Personal Data,Fostering Allowances,"1,302.14",Foster Carers
04/10/2023,SE FOSTERING CARE,Redacted Personal Data,Fostering Allowances,974.36,Foster Carers
04/10/2023,NE FOSTERING CARE,Redacted Personal Data,Fostering Allowances,"1,067.66",Foster Carers
04/10/2023,SW FOSTERING CARE,Redacted Personal Data,Fostering Allowances,"1,067.66",Foster Carers
04/10/2023,NE FOSTERING CARE,Redacted Personal Data,Fostering Allowances,779.08,Foster Carers
04/10/2023,NE FOSTERING CARE,Redacted Personal Data,Fostering Allowances,779.08,Foster Carers
04/10/2023,NW FOSTERING CARE,Redacted Personal Data,Fostering Allowances,779.08,Invoicing Plan Req.
04/10/2023,SW FOSTERING CARE,Redacted Personal Data,Fostering Allowances,"1,067.66",Foster Carers
04/10/2023,SW FOSTERING CARE,Redacted Personal Data,Fostering Allowances,793.70,Foster Carers
04/10/2023,SW FOSTERING CARE,Redacted Personal Data,Fostering Allowances,"1,013.56",Nurseries
04/10/2023,SW FOSTERING CARE,Redacted Personal Data,Fostering Allowances,770.43,Nurseries
04/10/2023,SE FOSTERING CARE,Redacted Personal Data,Fostering Allowances,779.08,Foster Carers
04/10/2023,CWD EAST FOSTERING ALLOWANCES,Redacted Personal Data,Fostering Allowances,"1,067.66",CYP Transport
04/10/2023,SW FOSTERING CARE,Redacted Personal Data,Fostering Allowances,830.26,Foster Carers
04/10/2023,SE FOSTERING CARE,Redacted Personal Data,Fostering Allowances,830.26,Foster Carers
04/10/2023,SE FOSTERING CARE,Redacted Personal Data,Foster Parents Support,617.23,Foster Carers
04/10/2023,NE FOSTERING CARE,Redacted Personal Data,Fostering Allowances,"1,064.74",Foster Carers
04/10/2023,NE FOSTERING CARE,Redacted Personal Data,Fostering Allowances,830.26,Foster Carers
04/10/2023,NE FOSTERING CARE,Redacted Personal Data,Fostering Allowances,830.26,Foster Carers
04/10/2023,SE FOSTERING CARE,Redacted Personal Data,Fostering Allowances,779.08,Foster Carers
04/10/2023,NE FOSTERING CARE,Redacted Personal Data,Fostering Allowances,779.08,Invoicing Plan Req.
04/10/2023,NE FOSTERING CARE,Redacted Personal Data,Fostering Allowances,779.08,Invoicing Plan Req.
04/10/2023,NE FOSTERING CARE,Redacted Personal Data,Fostering Allowances,830.26,Invoicing Plan Req.
04/10/2023,NW FOSTERING CARE,Redacted Personal Data,Fostering Allowances,"1,067.66",Foster Carers
04/10/2023,SE FOSTERING CARE,Redacted Personal Data,Fostering Allowances,830.26,Foster Carers
04/10/2023,SE FOSTERING CARE,Redacted Personal Data,Fostering Allowances,974.36,Foster Carers
04/10/2023,NE FOSTERING CARE,Redacted Personal Data,Fostering Allowances,779.08,Foster Carers
04/10/2023,NE FOSTERING CARE,Redacted Personal Data,Fostering Allowances,779.08,Foster Carers
04/10/2023,NW FOSTERING CARE,Redacted Personal Data,Fostering Allowances,779.08,Staff Expenses
04/10/2023,SE FOSTERING CARE,Redacted Personal Data,Fostering Allowances,974.36,Foster Carers
04/10/2023,SE FOSTERING CARE,Redacted Personal Data,Fostering Allowances,"1,067.66",Foster Carers
04/10/2023,SE FOSTERING CARE,Redacted Personal Data,Fostering Allowances,830.26,Foster Carers
04/10/2023,SW FOSTERING CARE,Redacted Personal Data,Fostering Allowances,"1,067.66",Foster Carers
04/10/2023,NW FOSTERING CARE,Redacted Personal Data,Fostering Allowances,779.08,Foster Carers
04/10/2023,SE FOSTERING CARE,Redacted Personal Data,Fostering Allowances,779.08,Foster Carers
04/10/2023,SW FOSTERING CARE,Redacted Personal Data,Fostering Allowances,830.26,Individual - NEC
04/10/2023,SW FOSTERING CARE,Redacted Personal Data,Fostering Allowances,"1,064.74",Individual - NEC
04/10/2023,NW FOSTERING CARE,Redacted Personal Data,Fostering Allowances,779.08,Foster Carers
04/10/2023,NE FOSTERING CARE,Redacted Personal Data,Fostering Allowances,779.08,Foster Carers
04/10/2023,NE FOSTERING CARE,Redacted Personal Data,Fostering Allowances,830.26,Foster Carers
04/10/2023,NE FOSTERING CARE,Redacted Personal Data,Fostering Allowances,830.26,Foster Carers
04/10/2023,NE FOSTERING CARE,Redacted Personal Data,Fostering Allowances,969.74,Invoicing Plan Req.
04/10/2023,SE FOSTERING CARE,Redacted Personal Data,Fostering Allowances,779.08,Foster Carers
04/10/2023,SW FOSTERING CARE,Redacted Personal Data,Fostering Allowances,969.74,Foster Carers
04/10/2023,SE FOSTERING CARE,Redacted Personal Data,Fostering Allowances,"1,751.84",Foster Carers
04/10/2023,SE FOSTERING CARE,Redacted Personal Data,Fostering Allowances,"1,699.90",Foster Carers
04/10/2023,NE FOSTERING CARE,Redacted Personal Data,Fostering Allowances,575.20,Foster Carers
04/10/2023,SE FOSTERING CARE,Redacted Personal Data,Fostering Allowances,"1,067.66",Foster Carers
04/10/2023,SE FOSTERING CARE,Redacted Personal Data,Fostering Allowances,686.69,Foster Carers
04/10/2023,NE FOSTERING CARE,Redacted Personal Data,Fostering Allowances,575.20,Foster Carers
04/10/2023,NW FOSTERING CARE,Redacted Personal Data,Fostering Allowances,"1,067.66",Foster Carers
04/10/2023,NE FOSTERING CARE,Redacted Personal Data,Fostering Allowances,575.20,Foster Carers
04/10/2023,NW FOSTERING CARE,Redacted Personal Data,Fostering Allowances,830.26,Foster Carers
04/10/2023,NW FOSTERING CARE,Redacted Personal Data,Fostering Allowances,779.08,Foster Carers
04/10/2023,NE FOSTERING CARE,Redacted Personal Data,Fostering Allowances,"1,606.60",Foster Carers
04/10/2023,NW FOSTERING CARE,Redacted Personal Data,Fostering Allowances,"1,190.00",Foster Carers
04/10/2023,NW FOSTERING CARE,Redacted Personal Data,Fostering Allowances,543.22,CYP Transport
04/10/2023,NW FOSTERING CARE,Redacted Personal Data,Fostering Allowances,974.36,Carers
04/10/2023,NW FOSTERING CARE,Redacted Personal Data,Fostering Allowances,574.21,CYP Transport
04/10/2023,NE FOSTERING CARE,Redacted Personal Data,Fostering Allowances,779.08,Invoicing Plan Req.
04/10/2023,NE FOSTERING CARE,Redacted Personal Data,Fostering Allowances,779.08,Invoicing Plan Req.
04/10/2023,SW FOSTERING CARE,Redacted Personal Data,Fostering Allowances,"3,355.50",Foster Carers
04/10/2023,NE FOSTERING CARE,Redacted Personal Data,Fostering Allowances,"1,402.61",Individual - NEC
04/10/2023,SE FOSTERING CARE,Redacted Personal Data,Fostering Allowances,779.08,Foster Carers
04/10/2023,NW FOSTERING CARE,Redacted Personal Data,Foster Parents Support,757.61,Foster Carers
04/10/2023,NW FOSTERING CARE,Redacted Personal Data,Fostering Allowances,"1,183.13",Foster Carers
04/10/2023,SE FOSTERING CARE,Redacted Personal Data,Fostering Allowances,"2,111.92",Foster Carers
04/10/2023,CHILD ARRANGEMENT ORDERS,Redacted Personal Data,Special Guardianship,"1,055.42",Non-Staff Expenses
04/10/2023,CHILD ARRANGEMENT ORDERS,Redacted Personal Data,Special Guardianship,663.86,CYP Transport
04/10/2023,CHILD ARRANGEMENT ORDERS,Redacted Personal Data,Special Guardianship,647.66,CYP Transport
04/10/2023,CHILD ARRANGEMENT ORDERS,Redacted Personal Data,Special Guardianship,638.10,Foster Carers
04/10/2023,CHILD ARRANGEMENT ORDERS,Redacted Personal Data,Special Guardianship,621.90,Foster Carers
04/10/2023,CHILD ARRANGEMENT ORDERS,Redacted Personal Data,Special Guardianship,544.80,Adults direct payment
04/10/2023,CHILD ARRANGEMENT ORDERS,Redacted Personal Data,Special Guardianship,621.90,Carers
04/10/2023,CHILD ARRANGEMENT ORDERS,Redacted Personal Data,Special Guardianship,638.10,Carers
04/10/2023,CHILD ARRANGEMENT ORDERS,Redacted Personal Data,Special Guardianship,"1,291.22",Foster Carers
04/10/2023,CHILD ARRANGEMENT ORDERS,Redacted Personal Data,Special Guardianship,882.14,Special Guardianship
04/10/2023,CHILD ARRANGEMENT ORDERS,Redacted Personal Data,Special Guardianship,708.14,Foster Carers
04/10/2023,CHILD ARRANGEMENT ORDERS,Redacted Personal Data,Special Guardianship,724.34,Foster Carers
04/10/2023,CHILD ARRANGEMENT ORDERS,Redacted Personal Data,Special Guardianship,621.90,Foster Carers
04/10/2023,CHILD ARRANGEMENT ORDERS,Redacted Personal Data,Special Guardianship,621.90,Invoicing Plan Req.
04/10/2023,CHILD ARRANGEMENT ORDERS,Redacted Personal Data,Special Guardianship,708.10,Foster Carers
04/10/2023,CHILD ARRANGEMENT ORDERS,Redacted Personal Data,Special Guardianship,544.80,CWD 16-17
04/10/2023,CHILD ARRANGEMENT ORDERS,Redacted Personal Data,Special Guardianship,987.84,Foster Carers
04/10/2023,CHILD ARRANGEMENT ORDERS,Redacted Personal Data,Special Guardianship,"1,004.04",Foster Carers
04/10/2023,CHILD ARRANGEMENT ORDERS,Redacted Personal Data,Special Guardianship,808.98,Foster Carers
04/10/2023,CHILD ARRANGEMENT ORDERS,Redacted Personal Data,Special Guardianship,621.90,Day Services
04/10/2023,CHILD ARRANGEMENT ORDERS,Redacted Personal Data,Special Guardianship,974.72,Foster Carers
04/10/2023,CHILD ARRANGEMENT ORDERS,Redacted Personal Data,Special Guardianship,958.52,Foster Carers
04/10/2023,CHILD ARRANGEMENT ORDERS,Redacted Personal Data,Special Guardianship,550.26,Invoicing Plan Req.
04/10/2023,CHILD ARRANGEMENT ORDERS,Redacted Personal Data,Special Guardianship,544.80,Carers
04/10/2023,CHILD ARRANGEMENT ORDERS,Redacted Personal Data,Special Guardianship,"1,055.42",Foster Carers
04/10/2023,CHILD ARRANGEMENT ORDERS,Redacted Personal Data,Special Guardianship,544.80,Carers
04/10/2023,CHILD ARRANGEMENT ORDERS,Redacted Personal Data,Special Guardianship,786.84,Order Allowance
04/10/2023,CHILD ARRANGEMENT ORDERS,Redacted Personal Data,Special Guardianship,617.36,Carers
04/10/2023,CHILD ARRANGEMENT ORDERS,Redacted Personal Data,Special Guardianship,803.04,Order Allowance
04/10/2023,CHILD ARRANGEMENT ORDERS,Redacted Personal Data,Special Guardianship,544.80,Foster Carers
04/10/2023,CHILD ARRANGEMENT ORDERS,Redacted Personal Data,Special Guardianship,621.90,Foster Carers
04/10/2023,CHILD ARRANGEMENT ORDERS,Redacted Personal Data,Special Guardianship,621.90,Foster Carers
04/10/2023,CHILD ARRANGEMENT ORDERS,Redacted Personal Data,Special Guardianship,528.60,Invoicing Plan Req.
04/10/2023,CHILD ARRANGEMENT ORDERS,Redacted Personal Data,Special Guardianship,588.98,Invoicing Plan Req.
04/10/2023,CHILD ARRANGEMENT ORDERS,Redacted Personal Data,Special Guardianship,528.60,Foster Carers
04/10/2023,CHILD ARRANGEMENT ORDERS,Redacted Personal Data,Special Guardianship,"1,029.66",Foster Carers
04/10/2023,CHILD ARRANGEMENT ORDERS,Redacted Personal Data,Special Guardianship,808.46,Foster Carers
04/10/2023,CHILD ARRANGEMENT ORDERS,Redacted Personal Data,Special Guardianship,544.80,Foster Carers
04/10/2023,CHILD ARRANGEMENT ORDERS,Redacted Personal Data,Special Guardianship,786.82,Special Guardianship
04/10/2023,CHILD ARRANGEMENT ORDERS,Redacted Personal Data,Special Guardianship,803.02,Special Guardianship
04/10/2023,CHILD ARRANGEMENT ORDERS,Redacted Personal Data,Special Guardianship,700.30,Leaving Care
04/10/2023,CHILD ARRANGEMENT ORDERS,Redacted Personal Data,Special Guardianship,528.60,Foster Carers
04/10/2023,CHILD ARRANGEMENT ORDERS,Redacted Personal Data,Special Guardianship,972.40,Invoicing Plan Req.
04/10/2023,CHILD ARRANGEMENT ORDERS,Redacted Personal Data,Foster Parents Support,633.32,Foster Carers
04/10/2023,CHILD ARRANGEMENT ORDERS,Redacted Personal Data,Special Guardianship,748.32,Carers
04/10/2023,CHILD ARRANGEMENT ORDERS,Redacted Personal Data,Special Guardianship,621.90,Fostering Placement
04/10/2023,CHILD ARRANGEMENT ORDERS,Redacted Personal Data,Special Guardianship,641.56,CYP Transport
04/10/2023,CHILD ARRANGEMENT ORDERS,Redacted Personal Data,Special Guardianship,621.90,Foster Carers
04/10/2023,CHILD ARRANGEMENT ORDERS,Redacted Personal Data,Special Guardianship,823.87,Invoicing Plan Req.
04/10/2023,CHILD ARRANGEMENT ORDERS,Redacted Personal Data,Special Guardianship,785.69,Invoicing Plan Req.
04/10/2023,SW FOSTERING CARE,Redacted Personal Data,Children's Act S24 Payments,513.78,Foster Carers
04/10/2023,SE FOSTERING CARE,Redacted Personal Data,Fostering Allowances,653.78,Foster Carers
04/10/2023,SE FOSTERING CARE,Redacted Personal Data,Children's Act S24 Payments,513.78,Invoicing Plan Req.
04/10/2023,SE FOSTERING CARE,Redacted Personal Data,Children's Act S24 Payments,653.78,Invoicing Plan Req.
04/10/2023,SE FOSTERING CARE,Redacted Personal Data,Fostering Allowances,653.78,Foster Carers
04/10/2023,SW FOSTERING CARE,Redacted Personal Data,Children's Act S24 Payments,653.78,Foster Carers
04/10/2023,NW FOSTERING CARE,Redacted Personal Data,Children's Act S24 Payments,513.78,Foster Carers
04/10/2023,NW FOSTERING CARE,Redacted Personal Data,Children's Act S24 Payments,653.78,Foster Carers
04/10/2023,SE FOSTERING CARE,Redacted Personal Data,Fostering Allowances,653.78,Foster Carers
04/10/2023,SE FOSTERING CARE,Redacted Personal Data,Children's Act S24 Payments,653.78,Foster Carers
04/10/2023,SE FOSTERING CARE,Redacted Personal Data,Fostering Allowances,513.78,Invoicing Plan Req.
04/10/2023,SW FOSTERING CARE,Redacted Personal Data,Children's Act S24 Payments,513.78,Foster Carers
04/10/2023,SW FOSTERING CARE,Redacted Personal Data,Children's Act S24 Payments,513.78,Foster Carers
04/10/2023,NE FOSTERING CARE,Redacted Personal Data,Children's Act S24 Payments,513.78,Foster Carers
04/10/2023,NE FOSTERING CARE,Redacted Personal Data,Children's Act S24 Payments,513.78,Invoicing Plan Req.
04/10/2023,SE FOSTERING CARE,Redacted Personal Data,Children's Act S24 Payments,513.78,Invoicing Plan Req.
04/10/2023,SW FOSTERING CARE,Redacted Personal Data,Children's Act S24 Payments,513.78,Foster Carers
04/10/2023,SW FOSTERING CARE,Redacted Personal Data,Children's Act S24 Payments,513.78,Invoicing Plan Req.
04/10/2023,SW FOSTERING CARE,Redacted Personal Data,Children's Act S24 Payments,653.78,Foster Carers
04/10/2023,NW FOSTERING CARE,Redacted Personal Data,Fostering Allowances,653.78,Foster Carers
04/10/2023,NW FOSTERING CARE,Redacted Personal Data,Foster Parents Support,910.67,Foster Carers
04/10/2023,NW FOSTERING CARE,Redacted Personal Data,Fostering Allowances,910.67,Foster Carers
04/10/2023,NW FOSTERING CARE,Redacted Personal Data,Fostering Allowances,888.26,Carers
04/10/2023,SW FOSTERING CARE,Redacted Personal Data,Children's Act S24 Payments,653.78,Foster Carers
04/10/2023,NE FOSTERING CARE,Redacted Personal Data,Children's Act S24 Payments,513.78,Foster Carers
04/10/2023,SW FOSTERING CARE,Redacted Personal Data,Children's Act S24 Payments,513.78,Foster Carers
04/10/2023,SW FOSTERING CARE,Redacted Personal Data,Fostering Allowances,653.78,Foster Carers
